{"text_format":"1","workbook":"xlsx","n_sheets":16,"sheets":["必要書類","設計申請書","変更設計","建設申請書","変更建設","確認申請書","別紙","委任状","自己評価書","設計内容説明書_必須・長期","設計内容説明書_選択","変更_確認申請書","軽微変更","確認書","確認書 (変更)","長期使用構造でない確認書"],"not_rendered":{"charts":0,"images":1,"macros":1,"external_links":1,"defined_names":17,"comments":0,"pivot_tables":0},"unopened":[],"bounds":{"document_bytes":16777216,"sheet_cells":100000,"rows_first":2000,"rows_last":500,"rows_between":2000,"halvings":0,"cell_chars":16384,"cell_head_chars":4096},"cells_cut":0,"cells_raw":0,"read":"whole","date_system":"1900"}

{"sheet":"必要書類","index":0,"n_rows":28,"n_cols":15,"rows_kept":28,"cut":false,"hidden":false,"merged":[[25,8,26,8],[25,9,26,9],[27,12,28,12],[27,13,28,13],[27,14,28,14],[27,6,28,6],[27,7,28,7],[27,8,28,8],[27,9,28,9],[27,10,28,10],[27,11,28,11],[25,10,26,10],[25,11,26,11],[25,12,26,12],[25,13,26,13],[25,14,26,14],[27,0,28,0],[27,1,28,2],[27,3,28,3],[27,4,28,4],[27,5,28,5],[25,4,26,4],[25,5,26,5],[25,6,26,6],[25,7,26,7],[25,0,26,0],[25,1,26,2],[25,3,26,3],[19,14,20,14],[21,14,22,14],[23,14,24,14],[23,13,24,13],[23,10,24,10],[23,11,24,11],[23,4,24,4],[23,5,24,5],[23,6,24,6],[23,7,24,7],[23,8,24,8],[23,9,24,9],[19,12,20,12],[19,8,20,8],[19,9,20,9],[19,10,20,10],[8,1,8,2],[9,1,10,2],[11,1,12,2],[13,1,14,2],[15,1,16,2],[19,13,20,13],[21,13,22,13],[17,11,18,11],[19,11,20,11],[21,11,22,11],[21,3,22,3],[21,4,22,4],[21,5,22,5],[21,6,22,6],[21,7,22,7],[21,8,22,8],[21,9,22,9],[21,10,22,10],[17,10,18,10],[19,3,20,3],[19,4,20,4],[19,5,20,5],[19,6,20,6],[19,7,20,7],[9,14,10,14],[11,14,12,14],[13,14,14,14],[15,14,16,14],[17,14,18,14],[9,12,10,12],[11,12,12,12],[13,12,14,12],[15,12,16,12],[17,13,18,13],[17,12,18,12],[9,13,10,13],[11,13,12,13],[13,13,14,13],[15,13,16,13],[23,0,24,0],[17,3,18,3],[23,3,24,3],[17,1,18,2],[19,1,20,2],[21,1,22,2],[23,1,24,2],[13,8,14,8],[21,12,22,12],[23,12,24,12],[15,8,16,8],[15,9,16,9],[15,10,16,10],[17,4,18,4],[17,5,18,5],[17,6,18,6],[17,7,18,7],[17,8,18,8],[17,9,18,9],[17,0,18,0],[19,0,20,0],[21,0,22,0],[15,0,16,0],[15,3,16,3],[15,4,16,4],[15,5,16,5],[15,6,16,6],[15,7,16,7],[13,6,14,6],[13,7,14,7],[9,11,10,11],[11,11,12,11],[13,11,14,11],[15,11,16,11],[13,9,14,9],[9,10,10,10],[11,10,12,10],[13,10,14,10],[11,8,12,8],[11,9,12,9],[9,0,10,0],[9,3,10,3],[9,4,10,4],[9,5,10,5],[9,6,10,6],[9,7,10,7],[9,8,10,8],[9,9,10,9],[13,0,14,0],[13,3,14,3],[13,4,14,4],[13,5,14,5],[11,0,12,0],[11,3,12,3],[11,4,12,4],[11,5,12,5],[11,6,12,6],[11,7,12,7]]}
["申請に必要な書類"]
[]
["該当する性能評価の申請書・確認書のご提出をお願いいたします。"]
["（各申請、ボタンをクリックすると必要書類が開きます）"]
["※1　別紙は申請者が2名以上の場合にご使用ください"]
["※2　設計及び建設性能評価の変更申請は第一面に変更申請書をお使いください"]
["※3　選択項目を選ぶ場合にお使いください"]
[]
["性能評価の区分",null,null,"設計住宅性能評価","確認申請書","自己評価書","設計内容説明書＿必須","設計内容説明書＿選択（選択項目を選ぶ場合）","委任状","別紙\n※1","建設性能評価申請書","変更\n設計評価申請書　※2","変更\n建設評価申請書　※2","変更\n確認申請書","軽微変更該当証明申請書"]
["設計のみ",null,null,"○",null,"○","○","○※3","○","○"]
[]
["設計と長期確認",null,null,"○",null,"○","○","○※3","○","○"]
[]
["設計・建設",null,null,"○",null,"○","○","○※3","○","○","○"]
[]
["設計・建設と\n長期確認",null,null,"○",null,"○","○","○※3","○","○","○"]
[]
["設計のみ\n（変更）",null,null,"○※2",null,"○","○","○※3",null,"○",null,"○"]
[]
["設計と長期確認\n（変更）",null,null,"○※2",null,"○","○","○※3",null,"○",null,"○"]
[]
["設計・建設\n（変更）",null,null,"○※2",null,"○","○","○※3",null,"○",null,"○"]
[]
["設計・建設と\n長期確認\n（変更）",null,null,"○※2",null,"○","○","○※3",null,"○",null,"○"]
[]
["建設のみ（変更）",null,null,null,null,"○","○","○※3",null,"○","○※2",null,"○"]
[]
["軽微変更",null,null,null,null,"○","○","○※3",null,"○",null,null,null,null,"○"]

{"sheet":"設計申請書","index":1,"n_rows":264,"n_cols":35,"rows_kept":264,"cut":false,"hidden":false,"merged":[[65,11,65,16],[68,11,68,30],[69,11,69,30],[70,11,70,14],[72,11,72,16],[71,11,71,33],[75,12,75,13],[75,21,75,25],[75,29,75,32],[77,12,77,13],[94,12,94,16],[77,21,77,23],[77,29,77,32],[80,11,80,33],[81,19,81,23],[93,12,93,16],[93,17,93,18],[78,11,78,30],[79,11,79,14],[76,11,76,17],[81,11,81,16],[81,24,81,29],[191,11,191,32],[183,11,183,14],[184,11,184,12],[184,13,184,15],[185,11,185,12],[185,13,185,15],[186,11,186,17],[186,22,186,28],[182,11,182,14],[94,27,94,28],[93,19,93,21],[93,22,93,23],[93,24,93,26],[93,27,93,28],[13,20,13,33],[172,8,172,11],[178,11,178,13],[179,11,179,13],[143,3,144,33],[152,3,152,33],[175,8,175,11],[175,17,175,20],[175,26,175,29],[157,8,159,33],[166,8,166,11],[170,8,170,11],[94,17,94,18],[94,19,94,21],[94,24,94,26],[94,22,94,23],[4,1,4,34],[12,20,12,33],[7,31,7,32],[7,28,7,29],[7,24,7,26],[21,2,23,33],[64,11,64,33],[57,11,57,33],[54,11,54,30],[15,20,15,33],[55,11,55,30],[56,11,56,14],[58,11,58,16],[61,11,61,30],[62,11,62,30],[63,11,63,14]]}
[]
[null,"第四号様式（第三条関係）",null,null,null,null,null,null,null,null,null,null,null,null,null,null,null,null,null,null,null,null,null,null,null,null,null,null,null,null,null,null,null,null,"（第一面）"]
[]
[]
[null,"設計住宅性能評価申請書"]
[]
[]
[null,null,null,null,null,null,null,null,null,null,null,null,null,null,null,null,null,null,null,null,null,null,null,null,null,null,null,"年",null,null,"月",null,null,"日"]
[]
[null,null,"株式会社　ハウスジーメン　殿"]
[]
[]
[null,null,null,null,null,null,null,null,null,null,null,null,null,null,null,null,null,null,"申請者の氏名又は名称"]
[]
[]
[null,null,null,null,null,null,null,null,null,null,null,null,null,null,null,null,null,null,"代表者の氏名"]
[]
[]
[]
[]
[]
[null,null,"　住宅の品質確保の促進等に関する法律第５条第１項の規定に基づき、設計住宅性能評価を申請します。この申請書及び添付図書に記載の事項は、事実に相違ありません。"]
[]
[]
[]
[]
[]
[]
[]
[]
[]
[]
[]
[]
[]
[]
[]
[]
[]
[]
[]
[]
[]
[]
[null,"※受付欄",null,null,null,null,null,null,null,null,null,null,null,"※料金欄"]
[null,null,null,null,"年",null,null,"月",null,null,"日"]
[null,null,"第",null,null,null,null,null,null,null,null,"号"]
[null,null,"依頼受理者氏名"]
[]
[]
[]
[null,"申請者等の概要",null,null,null,null,null,null,null,null,null,null,null,null,null,null,null,null,null,null,null,null,null,null,null,null,null,null,null,null,null,null,null,null,"（第二面）"]
[]
[null,"【１．申請者】"]
[null,null,"【氏名又は名称のフリガナ】"]
[null,null,"【氏名又は名称】"]
[null,null,"【郵便番号】"]
[null,null,"【住所】"]
[null,null,"【電話番号】"]
[]
[null,"【２．代理者】"]
[null,null,"【氏名又は名称のフリガナ】"]
[null,null,"【氏名又は名称】"]
[null,null,"【郵便番号】"]
[null,null,"【住所】"]
[null,null,"【電話番号】"]
[]
[null,"【３．建築主】"]
[null,null,"【氏名又は名称のフリガナ】"]
[null,null,"【氏名又は名称】"]
[null,null,"【郵便番号】"]
[null,null,"【住所】"]
[null,null,"【電話番号】"]
[]
[null,"【４．設計者】"]
[null,null,"【資格】",null,null,null,null,null,null,null,null,"（",null,null,"）建築士",null,null,null,null,null,"（",null,null,null,null,null,"）登録",null,null,null,null,null,null,"号"]
[null,null,"【氏名】"]
[null,null,"【建築士事務所名】",null,null,null,null,null,null,null,null,"（",null,null,"）建築士事務所",null,null,null,null,null,"（",null,null,null,"）知事登録",null,null,null,"第",null,null,null,null,"号"]
[]
[null,null,"【郵便番号】"]
[null,null,"【所在地】"]
[null,null,"【電話番号】",null,null,null,null,null,null,null,null,null,null,null,null,null,null,null,null,"【FAX番号】"]
[]
[null,"【５．設計住宅性能評価を希望する性能表示事項】"]
[null,null,"※必須評価事項以外で設計住宅性能評価を希望する性能表示事項を選択してください。"]
[]
[null,null,null,null,"別紙による"]
[]
[null,"【６．長期使用構造等であることの確認の要否】",null,null,null,null,null,null,null,null,null,null,null,null,null,null,null,null,null,"□","要",null,null,null,null,null,"□","否"]
[]
[]
[null,"【７．備考】"]
[null,null,null,"※","上記６．が要の場合"]
[null,null,null,null,"認定申請予定年月日",null,null,null,null,null,null,null,null,null,null,null,null,"年",null,null,null,null,"月",null,null,null,null,"日"]
[null,null,null,null,"工事着手予定年月日",null,null,null,null,null,null,null,null,null,null,null,null,"年",null,null,null,null,"月",null,null,null,null,"日"]
[]
[]
[]
[]
[]
[]
[]
[]
[]
[]
[]
[]
[null,null,null,null,null,null,null,null,null,null,null,null,null,null,null,null,null,null,null,null,null,null,null,null,null,null,null,null,null,null,null,null,null,null,"（第二面別紙）"]
[null,"【設計住宅性能評価を希望する性能表示事項】"]
[null,"１． 構造の安定に関すること"]
[null,null,"□","１－２　耐震等級（構造躯体の損傷防止）"]
[null,null,"□","１－４　耐風等級（構造躯体の倒壊等防止及び損傷防止）"]
[null,null,"□","１－５　耐積雪等級（構造躯体の倒壊等防止及び損傷防止）"]
[]
[null,"２． 火災時の安全に関すること"]
[null,null,"□","２－１　感知警報装置設置等級（自住戸火災時）"]
[null,null,"□","２－４　脱出対策（火災時）"]
[null,null,"□","２－５　耐火等級（延焼のおそれのある部分（開口部））"]
[null,null,"□","２－６　耐火等級（延焼のおそれのある部分（開口部以外））"]
[]
[null,"５．温熱環境・エネルギー消費量に関すること"]
[null,null,"□","５－１　断熱等性能等級"]
[null,null,"□","５－２　一次エネルギー消費量等級"]
[]
[null,"６．空気環境に関すること"]
[null,null,"□","６－１　ホルムアルデヒド対策（内装及び天井裏等）"]
[null,null,"□","６－２　換気対策"]
[]
[null,"７．光・視環境に関すること"]
[null,null,"□","７－１　単純開口率"]
[null,null,"□","７－２　方位別開口比"]
[]
[null,"８．音環境に関すること"]
[null,null,"□","８－４　透過損失等級（外壁開口部）"]
[]
[null,"９．高齢者等への配慮に関すること"]
[null,null,"□","９－１　高齢者等配慮対策等級（専用部分）"]
[]
[null,"１０．防犯に関すること"]
[null,null,"□","１０－１　開口部の侵入防止対策"]
[]
[null,"（注意）"]
[null,null,"①","選択を希望する性能表示事項のチェックボックスに「レ」マークを入れてください。"]
[null,null,"②","「５．温熱環境・エネルギー消費量に関すること」については「５－１　断熱等性能等級」又は「５－２　一次エネルギー消費量等級」のいずれか、若しくは両方の選択が必要です。"]
[]
[]
[]
[null,"【地盤の液状化に関する情報提供】"]
[null,null,"□","地盤の液状化に関する情報提供を行う（情報提供の内容は申出書による）"]
[null,null,"□","地盤の液状化に関する情報提供を行わない"]
[]
[null,"（注意）"]
[null,null,null,"情報提供について、いずれかのチェックボックスに「レ」マークを入れてください。"]
[]
[]
[null,"建築物に関する事項",null,null,null,null,null,null,null,null,null,null,null,null,null,null,null,null,null,null,null,null,null,null,null,null,null,null,null,null,null,null,null,null,"（第三面）"]
[]
[null,"【１．地名地番】"]
[]
[]
[null,"【２．都市計画区域及び準都市計画区域の内外の別等】"]
[null,null,null,"□","都市計画区域内",null,null,null,null,null,"（","□","市街化区域",null,null,null,null,"□","市街化調整区域",null,null,null,null,null,"□","区域区分未設定",null,null,null,null,"）"]
[null,null,null,"□","準都市計画区域内",null,null,null,null,null,null,"□","都市計画区域及び準都市計画区域外"]
[]
[null,"【３．防火地域】",null,null,null,null,null,null,"□","防火地域",null,null,null,null,"□","準防火地域",null,null,null,null,"□","指定なし"]
[]
[null,"【４．敷地面積】",null,null,null,null,null,null,null,null,null,null,"㎡"]
[]
[null,"【５．建て方】",null,null,null,null,null,null,"□","一戸建ての住宅",null,null,null,null,null,"□","共同住宅等",null,null,null,"（","□","共同住宅",null,null,null,"□","長屋",null,"□","重ね建て",null,null,"）"]
[]
[null,"【６．建築面積】",null,null,null,null,null,null,null,null,null,null,"㎡"]
[]
[null,"【７．延べ面積】",null,null,null,null,null,null,null,null,null,null,"㎡"]
[]
[null,null,"※第二面【６．長期使用構造等であることの確認の要否】が要の場合　各階の床面積を記入"]
[null,null,null,null,null,null,null,"階",null,null,null,null,"㎡",null,null,null,"階",null,null,null,null,"㎡",null,null,null,"階",null,null,null,null,"㎡"]
[]
[null,"【８．住戸の数】"]
[null,null,null,"【建物全体】",null,null,null,null,null,null,null,null,null,null,"戸"]
[null,null,null,"【評価対象住戸】",null,null,null,null,null,null,null,null,null,null,"戸"]
[]
[null,"【９．建築物の高さ等】"]
[null,null,null,"【最高の高さ】",null,null,null,null,null,null,null,null,null,null,null,"ｍ"]
[null,null,null,"【最高の軒の高さ】",null,null,null,null,null,null,null,null,null,null,null,"ｍ"]
[null,null,null,"【階数】",null,null,null,null,null,null,null,"地上（",null,null,null,null,"）"]
[null,null,null,null,null,null,null,null,null,null,null,"地下（",null,null,null,null,"）"]
[null,null,null,"【構造】",null,null,null,null,null,null,"　",null,null,null,null,null,null,null,"　一部",null,null,null,"　"]
[]
[null,"【１０．利用関係】",null,null,null,null,null,null,"□","持家",null,null,"□","貸家",null,null,"□","給与住宅",null,null,null,"□","分譲住宅"]
[]
[null,"【１１．その他必要な事項】",null,null,null,null,null,null,null,null,null,"（※住宅の名称について記入して下さい）"]
[null,null,null,null,null,"住宅の名称",null,null,null,null,"（",null,null,null,null,null,null,null,null,null,null,null,null,null,null,null,null,null,null,null,null,null,null,"）"]
[]
[null,"【１２．備考】"]
[null,null,null,"建物の用途",null,null,null,null,"□","居住専用",null,null,null,null,"□","併用"]
[]
[]
[]
[]
[]
[]
[]
[]
[]
[]
[]
[]
[]
[]
[]
[]
[]
[]
[]
[null,"（注意）"]
[null,"１．各面共通関係",null,null,null,null,null,"数字は算用数字を、単位はメートル法を用いてください。"]
[null,"２．第一面関係",null,null,null,null,null,"※印のある欄は記入しないでください。"]
[null,"３．第二面関係"]
[null,null,"①","申請者からの委任を受けて申請を代理で行う者がいる場合においては、２欄に記入してください。"]
[null,null,"②","申請者が２以上のときは、１欄には代表者となる申請者のみについて記入し、別紙に他の申請者についてそれぞれ必要な"]
[null,null,null,"事項を記入してください。"]
[null,null,"③","建築主が２以上のときは、３欄には代表となる建築主のみについて記入し、別紙に他の建築主についてそれぞれ必要な"]
[null,null,null,"事項を記入して添えてください。"]
[null,null,"④","４欄の郵便番号、所在地及び電話番号には、設計者が建築士事務所に属しているときはそれぞれ建築士事務所のものを、"]
[null,null,null,"設計者が建築士事務所に属してないときはそれぞれ設計者のもの（所在地は住所とします。）を書いてください。"]
[null,null,"⑤","５欄は、必須評価事項以外で設計住宅性能評価を希望する性能表示事項を記入してください。"]
[null,null,"⑥","６欄には、住宅の品質確保の促進等に関する法律第６条の２の規定による長期使用構造等（長期優良住宅の普及の促進に"]
[null,null,null,"関する法律（平成20年法律第87号）第２条第４項に規定する長期使用構造等をいう。）であることの確認の要否に"]
[null,null,null,"ついて、該当するチェックボックスに「レ」マークを入れてください。"]
[null,null,"⑦","６欄において、「要」のチェックボックスに「レ」マークを入れた場合は、７欄に工事の着手予定年月日及び認定申請"]
[null,null,null,"予定年月日について記載してください"]
[null,"４．第三面関係"]
[null,null,"①","１欄は、地名地番と併せて住居表示が定まっているときは、当該住居表示を括弧書きで併記して下さい。"]
[null,null,"②","２欄は、該当するチェックボックスに「レ」マークを入れてください。ただし、建築物の敷地が都市計画区域、"]
[null,null,null,"準都市計画区域又はこれらの区域以外の区域のうち２以上の区域にわたる場合においては、当該敷地の過半の属する"]
[null,null,null,"区域について記入してください。なお、当該敷地が３の区域にわたる場合で、かつ、当該敷地の過半の属する区域が"]
[null,null,null,"ない場合においては、都市計画区域又は準都市計画区域のうち、当該敷地の属する面積が大きい区域について記入"]
[null,null,null,"してください。"]
[null,null,"③","３欄は、該当するチェックボックスに「レ」マークを入れてください。なお、建築物の敷地が防火地域、"]
[null,null,null,"準防火地域又は指定のない区域のうち２以上の地域又は区域にわたるときは、それぞれの地域又は区域について"]
[null,null,null,"記入してください。"]
[null,null,"④","７欄は、第二面６欄において、「要」のチェックボックスに「レ」マークを入れた場合は、各階の床面積を併せて"]
[null,null,null,"記載してください。"]
[null,null,"⑤","10欄の「利用関係」は、該当するチェックボックスに「レ」マークを入れてください。なお、利用関係が未定の"]
[null,null,null,"ときは、予定する利用関係としてください。また、「持家」、「貸家」、「給与住宅」、「分譲住宅」とは、"]
[null,null,null,"次のとおりです。"]
[null,null,null,null,"イ．持家 建築主が自ら居住する目的で建築する住宅"]
[null,null,null,null,"ロ．貸家 建築主が賃貸する目的で建築する住宅"]
[null,null,null,null,"ハ．給与住宅 会社、官公署等がその社員、職員等を居住させる目的で建築する住宅"]
[null,null,null,null,"ニ．分譲住宅 建売り又は分譲の目的で建築する住宅"]
[null,null,"⑥","ここに書き表せない事項で、評価に当たり特に注意を要する事項は、11欄又は別紙に記載して添えてください。"]
[null,null,"⑦","変更設計住宅性能評価に係る申請の際は、12欄に第三面に係る部分の変更の概要について記入してください。"]
[null,"５．第四面関係"]
[null,null,"①","１欄は、住戸の数が１のときは「１」と記入し、住戸の数が２以上のときは、申請住戸ごとに通し番号を付し、"]
[null,null,null,"その番号を記入してください。"]
[null,null,"②","４欄及び５欄は、該当するチェックボックスに「レ」マークを入れてください。"]
[null,null,"③","変更設計住宅性能評価に係る申請の際は、７欄に第四面に係る部分の変更の概要について記入してください。"]
[]
[null,"備考"]
[null,null,1,"この用紙の大きさは、日本産業規格Ａ４としてください。"]
[null,null,2,"第二面から第四面までについては、建築確認等他の制度の申請書の写しに必要事項を補うこと、複数の住戸に関する"]
[null,null,null,"情報を集約して記載すること等により記載すべき事項のすべてが明示された別の書面をもって代えることができます。"]
[null,null,3,"共同住宅等に係る設計住宅性能評価の申請にあっては、第四面を申請に係る住戸ごとに作成した場合、この申請書を"]
[null,null,null,"共同住宅等一棟又は複数の住戸につき一部とすることができます。"]

{"sheet":"変更設計","index":2,"n_rows":52,"n_cols":40,"rows_kept":52,"cut":false,"hidden":false,"merged":[[13,20,13,33],[33,15,33,25],[21,2,23,33],[49,1,49,2],[15,20,15,33],[29,16,29,24],[31,15,31,18],[31,20,31,21],[31,23,31,24],[25,1,25,34],[35,9,38,33],[4,1,4,34],[12,20,12,33],[7,24,7,26],[7,28,7,29],[7,31,7,32]]}
[]
[null,"第五号様式（第三条関係）",null,null,null,null,null,null,null,null,null,null,null,null,null,null,null,null,null,null,null,null,null,null,null,null,null,null,null,null,null,null,null,null,"（第一面）"]
[]
[]
[null,"変更設計住宅性能評価申請書"]
[]
[]
[null,null,null,null,null,null,null,null,null,null,null,null,null,null,null,null,null,null,null,null,null,null,null,null,null,null,null,"年",null,null,"月",null,null,"日"]
[null,null,null,null,null,null,null,null,null,null,null,null,null,null,null,null,null,null,null,null,null,null,null,null,null,null,null,null,null,null,null,null,null,null,null,null,null,null,null,"　"]
[null,null,"株式会社　ハウスジーメン　殿"]
[]
[]
[null,null,null,null,null,null,null,null,null,null,null,null,null,null,null,null,null,null,"申請者の氏名又は名称",null,{"$f":"IF(設計申請書!$U$13<>\"\",設計申請書!$U$13,\"\")","v":""}]
[null,null,null,null,null,null,null,null,null,null,null,null,null,null,null,null,null,null,null,null,{"$f":"IF(設計申請書!$U$14<>\"\",設計申請書!$U$14,\"\")","v":""}]
[]
[null,null,null,null,null,null,null,null,null,null,null,null,null,null,null,null,null,null,"代表者の氏名",null,{"$f":"IF(設計申請書!$U$16<>\"\",設計申請書!$U$16,\"\")","v":""}]
[]
[]
[]
[]
[]
[null,null,"　下記の住宅について、住宅の品質確保の促進等に関する法律施行規則第３条第１項の規定に基づき、変更設計住宅性能評価を申請します。この申請書及び添付図書に記載の事項は、事実に相違ありません。"]
[]
[]
[]
[null,"記"]
[]
[null,null,"【計画を変更する住宅の直前の設計住宅性能評価】"]
[]
[null,null,"１．設計住宅性能評価書交付番号　",null,null,null,null,null,null,null,null,null,null,null,null,"第",null,null,null,null,null,null,null,null,null,"号"]
[]
[null,null,"２．設計住宅性能評価書交付年月日",null,null,null,null,null,null,null,null,null,null,null,null,null,null,null,null,"年",null,null,"月",null,null,"日"]
[]
[null,null,"３．設計住宅性能評価書交付者",null,null,null,null,null,null,null,null,null,null,null,null,"株式会社ハウスジーメン"]
[]
[null,null,"４．変更の概要"]
[]
[]
[]
[]
[]
[null,"※受付欄",null,null,null,null,null,null,null,null,null,null,null,"※料金欄"]
[null,null,null,null,"年",null,null,"月",null,null,"日"]
[null,null,"第",null,null,null,null,null,null,null,null,"号"]
[null,null,"申請受理者氏名"]
[null,"（注意）"]
[null,null,"①","数字は算用数字を用いてください。"]
[null,null,"②","※印のある欄は記入しないでください。"]
[]
[null,"備考",null,"１","　この用紙の大きさは、日本産業規格Ａ４としてください。"]
[null,null,null,"２","　共同住宅等に係る変更設計住宅性能評価の申請にあっては、この申請書を共同住宅等一棟又は複数の住戸に"]
[null,null,null,null,"つき一部とすることができます。"]

{"sheet":"建設申請書","index":3,"n_rows":241,"n_cols":35,"rows_kept":241,"cut":false,"hidden":false,"merged":[[70,11,70,14],[79,11,79,14],[7,24,7,26],[7,28,7,29],[7,31,7,32],[54,11,54,30],[55,11,55,30],[61,11,61,30],[62,11,62,30],[68,11,68,30],[69,11,69,30],[72,11,72,16],[75,12,75,13],[75,21,75,25],[75,29,75,32],[76,11,76,33],[77,12,77,13],[77,21,77,23],[77,29,77,32],[78,11,78,33],[182,4,182,5],[182,8,182,11],[182,13,182,14],[182,16,182,17],[182,20,182,32],[179,4,179,5],[179,8,179,11],[179,13,179,14],[179,16,179,17],[179,20,179,32],[180,4,180,5],[180,8,180,11],[180,13,180,14],[180,16,180,17],[180,20,180,32],[181,4,181,5],[181,8,181,11],[181,13,181,14],[181,16,181,17],[181,20,181,32],[217,1,217,2],[227,1,227,2],[235,1,235,2],[183,4,183,5],[183,8,183,11],[183,13,183,14],[183,16,183,17],[183,20,183,32],[184,4,184,5],[184,8,184,11],[184,13,184,14],[184,16,184,17],[184,20,184,32],[189,11,193,33],[186,11,186,32],[215,1,215,2],[174,16,174,19],[174,21,174,22],[174,24,174,25],[176,16,176,19],[176,21,176,22],[176,24,176,25],[168,16,168,27],[170,16,170,19],[170,21,170,22],[170,24,170,25],[172,16,172,27],[164,16,164,19],[164,21,164,22],[164,24,164,25],[159,8,161,33],[103,11,104,33],[90,19,90,23],[97,19,97,23],[94,17,94,22],[94,25,94,29],[97,11,97,16],[97,24,97,29],[95,11,95,14],[96,11,96,33],[93,11,93,33],[90,11,90,16],[90,24,90,29],[87,11,87,30],[88,11,88,14],[145,3,146,33],[154,3,154,33],[162,16,162,27],[81,19,81,23],[80,11,80,33],[81,11,81,16],[81,24,81,29],[166,15,166,28],[4,1,4,34],[12,20,12,33],[15,20,15,33],[57,11,57,33],[13,20,13,33],[21,2,23,33],[31,17,31,30],[33,17,33,30],[35,17,35,30],[64,11,64,33],[65,11,65,16],[58,11,58,16],[56,11,56,14],[63,11,63,14],[89,11,89,33],[84,12,84,13],[86,12,86,13],[84,21,84,25],[86,21,86,23],[84,29,84,32],[71,11,71,33],[86,29,86,32],[85,11,85,17]]}
[]
[null,"第七号様式（第五条関係）",null,null,null,null,null,null,null,null,null,null,null,null,null,null,null,null,null,null,null,null,null,null,null,null,null,null,null,null,null,null,null,null,"（第一面）"]
[]
[]
[null,"建設住宅性能評価申請書（新築住宅）"]
[]
[]
[null,null,null,null,null,null,null,null,null,null,null,null,null,null,null,null,null,null,null,null,null,null,null,null,null,null,null,"年",null,null,"月",null,null,"日"]
[]
[null,null,"株式会社　ハウスジーメン　殿"]
[]
[]
[null,null,null,null,null,null,null,null,null,null,null,null,null,null,null,null,null,null,"申請者の氏名又は名称",null,{"$f":"IF(設計申請書!$U$13<>\"\",設計申請書!$U$13,\"\")","v":""}]
[null,null,null,null,null,null,null,null,null,null,null,null,null,null,null,null,null,null,null,null,{"$f":"_xlfn.IFS(設計申請書!$U$14<>\"\",設計申請書!$U$14,TRUE,\"\")","v":""}]
[]
[null,null,null,null,null,null,null,null,null,null,null,null,null,null,null,null,null,null,"代表者の氏名",null,{"$f":"_xlfn.IFS(設計申請書!$U$16<>\"\",設計申請書!$U$16,TRUE,\"\")","v":""}]
[]
[]
[]
[]
[]
[null,null,"　住宅の品質確保の促進等に関する法律第５条第１項の規定に基づき、建設住宅性能評価を申請します。　この申請書及び添付図書に記載の事項は、事実に相違ありません。"]
[]
[]
[]
[]
[]
[]
[]
[]
[]
[null,null,null,null,null,null,null,null,null,null,null,null,null,null,null,"工事施工者の氏名又は名称"]
[]
[null,null,null,null,null,null,null,null,null,null,null,null,null,null,null,"代表者の氏名"]
[]
[null,null,null,null,null,null,null,null,null,null,null,null,null,null,null,"工事監理者の氏名"]
[]
[]
[]
[]
[]
[]
[]
[]
[null,"※受付欄",null,null,null,null,null,null,null,null,null,null,null,"※料金欄"]
[null,null,null,null,"年",null,null,"月",null,null,"日"]
[null,null,"第",null,null,null,null,null,null,null,null,"号"]
[null,null,"申請受理者氏名"]
[]
[]
[]
[null,"申請者等の概要",null,null,null,null,null,null,null,null,null,null,null,null,null,null,null,null,null,null,null,null,null,null,null,null,null,null,null,null,null,null,null,null,"（第二面）"]
[]
[null,"【１．申請者】"]
[null,null,"【氏名又は名称のフリガナ】",null,null,null,null,null,null,null,null,{"$f":"IF(設計申請書!$L$55<>\"\",設計申請書!$L$55,\"\")","v":""}]
[null,null,"【氏名又は名称】",null,null,null,null,null,null,null,null,{"$f":"IF(設計申請書!$L$56<>\"\",設計申請書!$L$56,\"\")","v":""}]
[null,null,"【郵便番号】",null,null,null,null,null,null,null,null,{"$f":"IF(設計申請書!$L$57<>\"\",設計申請書!$L$57,\"\")","v":""}]
[null,null,"【住所】",null,null,null,null,null,null,null,null,{"$f":"IF(設計申請書!$L$58<>\"\",設計申請書!$L$58,\"\")","v":""}]
[null,null,"【電話番号】",null,null,null,null,null,null,null,null,{"$f":"IF(設計申請書!$L$59<>\"\",設計申請書!$L$59,\"\")","v":""}]
[]
[null,"【２．代理者】"]
[null,null,"【氏名又は名称のフリガナ】",null,null,null,null,null,null,null,null,{"$f":"IF(設計申請書!$L$62<>\"\",設計申請書!$L$62,\"\")","v":""}]
[null,null,"【氏名又は名称】",null,null,null,null,null,null,null,null,{"$f":"IF(設計申請書!$L$63<>\"\",設計申請書!$L$63,\"\")","v":""}]
[null,null,"【郵便番号】",null,null,null,null,null,null,null,null,{"$f":"IF(設計申請書!$L$64<>\"\",設計申請書!$L$64,\"\")","v":""}]
[null,null,"【住所】",null,null,null,null,null,null,null,null,{"$f":"IF(設計申請書!$L$65<>\"\",設計申請書!$L$65,\"\")","v":""}]
[null,null,"【電話番号】",null,null,null,null,null,null,null,null,{"$f":"IF(設計申請書!$L$66<>\"\",設計申請書!$L$66,\"\")","v":""}]
[]
[null,"【３．建築主】"]
[null,null,"【氏名又は名称のフリガナ】",null,null,null,null,null,null,null,null,{"$f":"IF(設計申請書!$L$69<>\"\",設計申請書!$L$69,\"\")","v":""}]
[null,null,"【氏名又は名称】",null,null,null,null,null,null,null,null,{"$f":"IF(設計申請書!$L$70<>\"\",設計申請書!$L$70,\"\")","v":""}]
[null,null,"【郵便番号】",null,null,null,null,null,null,null,null,{"$f":"IF(設計申請書!$L$71<>\"\",設計申請書!$L$71,\"\")","v":""}]
[null,null,"【住所】",null,null,null,null,null,null,null,null,{"$f":"IF(設計申請書!$L$72<>\"\",設計申請書!$L$72,\"\")","v":""}]
[null,null,"【電話番号】",null,null,null,null,null,null,null,null,{"$f":"IF(設計申請書!$L$73<>\"\",設計申請書!$L$73,\"\")","v":""}]
[]
[null,"【４．設計者】"]
[null,null,"【資格】",null,null,null,null,null,null,null,null,"（",{"$f":"IF(設計申請書!$M$76<>\"\",設計申請書!$M$76,\"\")","v":""},null,"）建築士",null,null,null,null,null,"（",{"$f":"IF(設計申請書!$V$76<>\"\",設計申請書!$V$76,\"\")","v":""},null,null,null,null,"）登録",null,null,{"$f":"IF(設計申請書!$AD$76<>\"\",設計申請書!$AD$76,\"\")","v":""},null,null,null,"号"]
[null,null,"【氏名】",null,null,null,null,null,null,null,null,{"$f":"IF(設計申請書!$L$77<>\"\",設計申請書!$L$77,\"\")","v":""}]
[null,null,"【建築士事務所名】",null,null,null,null,null,null,null,null,"（",{"$f":"IF(設計申請書!$M$78<>\"\",設計申請書!$M$78,\"\")","v":""},null,"）建築士事務所",null,null,null,null,null,"（",{"$f":"IF(設計申請書!$V$78<>\"\",設計申請書!$V$78,\"\")","v":""},null,null,"）知事登録",null,null,null,"第",{"$f":"IF(設計申請書!$AD$78<>\"\",設計申請書!$AD$78,\"\")","v":""},null,null,null,"号"]
[null,null,null,null,null,null,null,null,null,null,null,{"$f":"IF(設計申請書!$L$79<>\"\",設計申請書!$L$79,\"\")","v":""}]
[null,null,"【郵便番号】",null,null,null,null,null,null,null,null,{"$f":"IF(設計申請書!$L$80<>\"\",設計申請書!$L$80,\"\")","v":""}]
[null,null,"【所在地】",null,null,null,null,null,null,null,null,{"$f":"IF(設計申請書!$L$81<>\"\",設計申請書!$L$81,\"\")","v":""}]
[null,null,"【電話番号】",null,null,null,null,null,null,null,null,{"$f":"IF(設計申請書!$L$82<>\"\",設計申請書!$L$82,\"\")","v":""},null,null,null,null,null,null,null,"【FAX番号】",null,null,null,null,{"$f":"IF(設計申請書!$Y$82<>\"\",設計申請書!$Y$82,\"\")","v":""}]
[]
[null,"【５．工事監理者】"]
[null,null,"【資格】",null,null,null,null,null,null,null,null,"（",null,null,"）建築士",null,null,null,null,null,"（",null,null,null,null,null,"）登録",null,"第",null,null,null,null,"号"]
[null,null,"【氏名】"]
[null,null,"【建築士事務所名】",null,null,null,null,null,null,null,null,"（",null,null,"）建築士事務所",null,null,null,null,null,"（",null,null,null,"）知事登録",null,null,null,"第",null,null,null,null,"号"]
[]
[null,null,"【郵便番号】"]
[null,null,"【所在地】"]
[null,null,"【電話番号】",null,null,null,null,null,null,null,null,null,null,null,null,null,null,null,null,"【FAX番号】"]
[]
[null,"【６．工事施工者】"]
[null,null,"【氏名又は名称】"]
[null,null,"【営業所名】",null,null,null,null,null,null,null,null,"営業の許可",null,null,null,null,"（",null,null,null,null,null,null,"）","第",null,null,null,null,null,"号"]
[null,null,"【郵便番号】"]
[null,null,"【所在地】"]
[null,null,"【電話番号】",null,null,null,null,null,null,null,null,null,null,null,null,null,null,null,null,"【FAX番号】"]
[]
[null,"【７．建設住宅性能評価を希望する性能表示事項】"]
[null,null,"※必須事項以外で希望する事項を選択してください。"]
[null,null,null,null,"別紙による"]
[]
[null,"【８．備考】"]
[]
[]
[]
[]
[null,null,null,null,null,null,null,null,null,null,null,null,null,null,null,null,null,null,null,null,null,null,null,null,null,null,null,null,null,null,null,null,null,null,"（第二面別紙）"]
[null,"【建設住宅性能評価を希望する性能表示事項】"]
[null,"１． 構造の安定に関すること"]
[null,null,{"$f":"設計申請書!$C$111","v":"□"},"１－２　耐震等級（構造躯体の損傷防止）"]
[null,null,{"$f":"設計申請書!$C$112","v":"□"},"１－４　耐風等級（構造躯体の倒壊等防止及び損傷防止）"]
[null,null,{"$f":"設計申請書!$C$113","v":"□"},"１－５　耐積雪等級（構造躯体の倒壊等防止及び損傷防止）"]
[]
[null,"２． 火災時の安全に関すること"]
[null,null,{"$f":"設計申請書!$C$116","v":"□"},"２－１　感知警報装置設置等級（自住戸火災時）"]
[null,null,{"$f":"設計申請書!$C$117","v":"□"},"２－４　脱出対策（火災時）"]
[null,null,{"$f":"設計申請書!$C$118","v":"□"},"２－５　耐火等級（延焼のおそれのある部分（開口部））"]
[null,null,{"$f":"設計申請書!$C$119","v":"□"},"２－６　耐火等級（延焼のおそれのある部分（開口部以外））"]
[]
[null,"５．温熱環境・エネルギー消費量に関すること"]
[null,null,{"$f":"設計申請書!$C$122","v":"□"},"５－１　断熱等性能等級"]
[null,null,{"$f":"設計申請書!$C$123","v":"□"},"５－２　一次エネルギー消費量等級"]
[]
[null,"６．空気環境に関すること"]
[null,null,{"$f":"設計申請書!$C$126","v":"□"},"６－１　ホルムアルデヒド対策（内装及び天井裏等）"]
[null,null,{"$f":"設計申請書!$C$127","v":"□"},"６－２　換気対策"]
[null,null,"□","６－３　室内空気中の化学物質の濃度等"]
[]
[null,"７．光・視環境に関すること"]
[null,null,{"$f":"設計申請書!$C$130","v":"□"},"７－１　単純開口率"]
[null,null,{"$f":"設計申請書!$C$131","v":"□"},"７－２　方位別開口比"]
[]
[null,"８．音環境に関すること"]
[null,null,{"$f":"設計申請書!$C$134","v":"□"},"８－４　透過損失等級（外壁開口部）"]
[]
[null,"９．高齢者等への配慮に関すること"]
[null,null,{"$f":"設計申請書!$C$137","v":"□"},"９－１　高齢者等配慮対策等級（専用部分）"]
[]
[null,"１０．防犯に関すること"]
[null,null,{"$f":"設計申請書!$C$140","v":"□"},"１０－１　開口部の侵入防止対策"]
[]
[null,"（注意）"]
[null,null,"①","選択を希望する性能表示事項のチェックボックスに「レ」マークを入れてください。"]
[null,null,"②","「５．温熱環境・エネルギー消費量に関すること」については「５－１　断熱等性能等級」又は「５－２　一次エネルギー消費量等級」のいずれか、若しくは両方の選択が必要です。"]
[]
[]
[]
[null,"【地盤の液状化に関する情報提供】"]
[null,null,{"$f":"設計申請書!$C$149","v":"□"},"地盤の液状化に関する情報提供を行う（情報提供の内容は申出書による）"]
[null,null,{"$f":"設計申請書!$C$150","v":"□"},"地盤の液状化に関する情報提供を行わない"]
[]
[null,"（注意）"]
[null,null,null,"情報提供について、いずれかのチェックボックスに「レ」マークを入れてください。"]
[]
[]
[null,"申請する工事の概要",null,null,null,null,null,null,null,null,null,null,null,null,null,null,null,null,null,null,null,null,null,null,null,null,null,null,null,null,null,null,null,null,"（第三面）"]
[]
[null,"【１．建築場所】",null,null,null,null,null,null,{"$f":"IF(設計申請書!$I$158<>\"\",設計申請書!$I$158,\"\")","v":""}]
[]
[]
[null,"【２．設計住宅性能評価書の交付番号】",null,null,null,null,null,null,null,null,null,null,null,null,null,"第",null,null,null,null,null,null,null,null,null,null,null,null,"号"]
[]
[null,"【３．設計住宅性能評価書交付年月日】",null,null,null,null,null,null,null,null,null,null,null,null,null,null,null,null,null,null,"年",null,null,"月",null,null,"日"]
[]
[null,"【４．設計住宅性能評価書交付者】",null,null,null,null,null,null,null,null,null,null,null,null,null,"株式会社　ハウスジーメン"]
[]
[null,"【５．確認済証番号】",null,null,null,null,null,null,null,null,null,null,null,null,null,"第",null,null,null,null,null,null,null,null,null,null,null,null,"号"]
[]
[null,"【６．確認済証交付年月日】",null,null,null,null,null,null,null,null,null,null,null,null,null,null,null,null,null,null,"年",null,null,"月",null,null,"日"]
[]
[null,"【７．確認済証交付者】"]
[]
[null,"【８．工事着手（予定）年月日】",null,null,null,null,null,null,null,null,null,null,null,null,null,null,null,null,null,null,"年",null,null,"月",null,null,"日"]
[]
[null,"【９．工事完了予定年月日】",null,null,null,null,null,null,null,null,null,null,null,null,null,null,null,null,null,null,"年",null,null,"月",null,null,"日"]
[]
[null,"【１０．検査対象工程工事終了予定年月日】"]
[null,null,null,"（第",1,null,"回）",null,null,null,null,null,"年",null,null,"月",null,null,"日","（","基礎配筋工事の完了時",null,null,null,null,null,null,null,null,null,null,null,null,"）"]
[null,null,null,"（第",2,null,"回）",null,null,null,null,null,"年",null,null,"月",null,null,"日","（","躯体工事の完了時",null,null,null,null,null,null,null,null,null,null,null,null,"）"]
[null,null,null,"（第",3,null,"回）",null,null,null,null,null,"年",null,null,"月",null,null,"日","（","下地張り直前の工事の完了時",null,null,null,null,null,null,null,null,null,null,null,null,"）"]
[null,null,null,"（第",4,null,"回）",null,null,null,null,null,"年",null,null,"月",null,null,"日","（","竣工時",null,null,null,null,null,null,null,null,null,null,null,null,"）"]
[]
[]
[null,"【１１．その他必要な事項】",null,null,null,null,null,null,null,null,null,"（※住宅の名称について記入して下さい）"]
[null,null,null,null,null,"住宅の名称",null,null,null,null,"（",{"$f":"設計申請書!$L$192","v":0},null,null,null,null,null,null,null,null,null,null,null,null,null,null,null,null,null,null,null,null,null,"）"]
[]
[null,"【１２．備考】"]
[]
[]
[]
[]
[]
[]
[]
[]
[]
[]
[]
[]
[]
[]
[]
[]
[]
[]
[]
[]
[]
[]
[]
[]
[]
[null,"（注意）"]
[null,"１.",null,"第一面関係"]
[null,null,null,"※印のある欄は記入しないでください。"]
[null,"２.",null,"第二面関係"]
[null,null,"①","　申請者からの委任を受けて申請を代理で行う者がいる場合においては、２欄に記入してください。"]
[null,null,"②","　申請者が２以上のときは、１欄には代表となる申請者のみについて記入し、別紙に他の申請者についてそれぞ"]
[null,null,null,"れ必要な事項を記入してください。"]
[null,null,"③","　建築主が２以上のときは、３欄には代表となる建築主のみについて記入し、別紙に他の建築主についてそれぞ"]
[null,null,null,"れ必要な事項を記入して添えてください。"]
[null,null,"④","　４欄及び５欄の郵便番号、所在地及び電話番号には、設計者又は工事監理者が建築士事務所に属しているとき"]
[null,null,null,"はそれぞれ建築士事務所のものを、設計者又は工事監理者が建築士事務所に属していないときはそれぞれ設計者"]
[null,null,null,"又は工事監理者のもの（所在地は住所とします。）を書いてください。"]
[null,null,"⑤","　７欄は、必須評価事項以外で建設住宅性能評価を希望する性能表示事項を記入してください。"]
[null,"３.",null,"第三面関係"]
[null,null,"①","　１欄は、地名地番と併せて住居表示が定まっているときは、当該住居表示を括弧書きで併記してください。"]
[null,null,"②","　５欄から７欄までは、確認済証が交付されていない場合は空欄としてください。"]
[null,null,"③","　８欄は、既に工事を着手している場合はその年月日を、それ以外の場合は予定日の年月日を記入してください。"]
[null,null,"④","　10欄は、検査の回数が５回以上の場合は、適宜記入欄を増やして記入してください。"]
[null,null,"⑤","　ここに書き表せない事項で、評価に当たり特に注意を要する事項は、11欄又は別紙に記載して添えてください。"]
[null,null,"⑥","　変更建設住宅性能評価に係る申請の際は、12欄に第三面に係る部分の変更の概要について記入してください。"]
[]
[null,"備考",null,"１","　この用紙の大きさは、日本産業規格Ａ４としてください。"]
[null,null,null,"２","　第二面及び第三面については、建築確認等他の制度の申請書の写しに必要事項を補うこと、複数の住戸に"]
[null,null,null,null,"関する情報を集約して記載すること等により記載すべき事項のすべてが明示された別の書面をもって代える"]
[null,null,null,null,"ことができます。"]
[null,null,null,"３","　共同住宅等に係る建設住宅性能評価の申請にあっては、この申請書を共同住宅等一棟又は複数の住戸につ"]
[null,null,null,null,"き一部とすることができます。"]

{"sheet":"変更建設","index":4,"n_rows":244,"n_cols":35,"rows_kept":244,"cut":false,"hidden":false,"merged":[[187,4,187,5],[187,8,187,11],[187,13,187,14],[187,16,187,17],[187,20,187,32],[186,4,186,5],[186,8,186,11],[232,1,232,2],[240,1,240,2],[188,4,188,5],[188,8,188,11],[188,13,188,14],[188,16,188,17],[186,13,186,14],[186,16,186,17],[186,20,186,32],[190,11,190,32],[220,1,220,2],[222,1,222,2],[188,20,188,32],[180,16,180,19],[180,21,180,22],[180,24,180,25],[185,4,185,5],[185,8,185,11],[185,13,185,14],[185,16,185,17],[185,20,185,32],[184,4,184,5],[184,8,184,11],[184,13,184,14],[184,16,184,17],[184,20,184,32],[183,4,183,5],[183,8,183,11],[183,13,183,14],[183,16,183,17],[183,20,183,32],[178,16,178,19],[178,21,178,22],[178,24,178,25],[163,8,163,13],[164,8,165,33],[166,16,166,27],[168,16,168,19],[168,21,168,22],[100,8,100,17],[100,19,100,23],[100,24,100,33],[149,3,150,33],[158,3,158,33],[168,24,168,25],[170,16,170,33],[172,16,172,27],[174,16,174,19],[174,21,174,22],[174,24,174,25],[176,16,176,33],[96,11,96,33],[97,17,97,22],[97,25,97,29],[98,11,98,33],[99,11,99,33],[87,12,87,13],[87,21,87,25],[87,29,87,32],[88,11,88,33],[89,12,89,13],[89,21,89,23],[89,29,89,32],[90,11,90,33],[91,11,91,33],[92,11,92,33],[93,8,93,17],[93,19,93,23],[93,24,93,33],[83,11,83,33],[84,8,84,17],[84,19,84,23],[84,24,84,33],[75,8,75,17],[75,19,75,23],[75,24,75,33],[64,11,64,33],[65,11,65,33],[66,11,66,33],[67,11,67,33],[68,8,68,17],[68,19,68,23],[68,24,68,33],[78,12,78,13],[78,21,78,25],[78,29,78,32],[79,11,79,33],[80,12,80,13],[80,21,80,23],[80,29,80,32],[81,11,81,33],[82,11,82,33],[71,11,71,33],[72,11,72,33],[73,11,73,33],[74,11,74,33],[24,17,24,30],[26,17,26,30],[31,16,31,24],[33,15,33,18],[33,20,33,21],[33,23,33,24],[58,11,58,33],[59,11,59,33],[60,11,60,33],[61,8,61,17],[61,19,61,23],[61,24,61,33],[4,1,4,34],[7,25,7,27],[7,29,7,30],[7,32,7,33],[11,20,11,33],[57,11,57,33],[49,1,49,2],[14,20,14,33],[16,2,18,33],[22,17,22,30],[35,15,35,25],[37,9,40,33],[12,20,12,33]]}
[]
[null,"第九号様式（第五条関係）",null,null,null,null,null,null,null,null,null,null,null,null,null,null,null,null,null,null,null,null,null,null,null,null,null,null,null,null,null,null,null,null,"（第一面）"]
[]
[]
[null,"変更建設住宅性能評価申請書"]
[]
[]
[null,null,null,null,null,null,null,null,null,null,null,null,null,null,null,null,null,null,null,null,null,null,null,null,null,null,null,null,"年",null,null,"月",null,null,"日"]
[null,"株式会社　ハウスジーメン　殿"]
[]
[]
[null,null,null,null,null,null,null,null,null,null,null,null,null,null,null,null,null,null,"申請者の氏名又は名称"]
[]
[]
[null,null,null,null,null,null,null,null,null,null,null,null,null,null,null,null,null,null,"代表者の氏名"]
[]
[null,null,"　下記の住宅について、住宅の品質確保の促進等に関する法律施行規則第５条第１項の規定に基づき、変更建設住宅性能評価を申請します。この申請書及び添付図書に記載の事項は、事実に相違ありません。"]
[]
[]
[]
[]
[]
[null,null,null,null,null,null,null,null,null,null,null,null,null,null,null,"工事施工者の氏名又は名称"]
[]
[null,null,null,null,null,null,null,null,null,null,null,null,null,null,null,"代表者の氏名"]
[]
[null,null,null,null,null,null,null,null,null,null,null,null,null,null,null,"工事監理者の氏名"]
[]
[]
[null,null,"【建設工事を変更する直前の建設住宅性能評価】"]
[]
[null,null,"１．建設住宅性能評価書交付番号　",null,null,null,null,null,null,null,null,null,null,null,null,"第",null,null,null,null,null,null,null,null,null,"号"]
[]
[null,null,"２．建設住宅性能評価書交付年月日",null,null,null,null,null,null,null,null,null,null,null,null,null,null,null,null,"年",null,null,"月",null,null,"日"]
[]
[null,null,"３．建設住宅性能評価書交付者",null,null,null,null,null,null,null,null,null,null,null,null,"株式会社ハウスジーメン"]
[]
[null,null,"４．変更の概要"]
[]
[]
[]
[]
[null,"※受付欄",null,null,null,null,null,null,null,null,null,null,null,"※料金欄"]
[null,null,null,null,"年",null,null,"月",null,null,"日"]
[null,null,"第",null,null,null,null,null,null,null,null,"号"]
[null,null,"依頼受理者氏名"]
[null,"（注意）"]
[null,null,"①","数字は算用数字を用いてください。"]
[null,null,"②","※印のある欄は記入しないでください。"]
[null,"備考",null,"１","　この用紙の大きさは、日本産業規格Ａ４としてください。"]
[null,null,null,"２","　共同住宅等に係る変更建設住宅性能評価の申請にあっては、この申請書を共同住宅等一棟又は複数の住戸に"]
[null,null,null,null,"つき一部とすることができます。"]
[]
[]
[null,"申請者等の概要",null,null,null,null,null,null,null,null,null,null,null,null,null,null,null,null,null,null,null,null,null,null,null,null,null,null,null,null,null,null,null,null,"（第二面）"]
[]
[null,"【１．申請者】"]
[null,null,"【氏名又は名称のフリガナ】"]
[null,null,"【氏名又は名称】"]
[null,null,"【郵便番号】"]
[null,null,"【住所】"]
[null,null,"【電話番号】",null,null,null,null,null,null,null,null,null,null,null,null,null,null,null,null,"【FAX番号】"]
[]
[null,"【２．代理者】"]
[null,null,"【氏名又は名称のフリガナ】"]
[null,null,"【氏名又は名称】"]
[null,null,"【郵便番号】"]
[null,null,"【住所】"]
[null,null,"【電話番号】",null,null,null,null,null,null,null,null,null,null,null,null,null,null,null,null,"【FAX番号】"]
[]
[null,"【３．建築主】"]
[null,null,"【氏名又は名称のフリガナ】"]
[null,null,"【氏名又は名称】"]
[null,null,"【郵便番号】"]
[null,null,"【住所】"]
[null,null,"【電話番号】",null,null,null,null,null,null,null,null,null,null,null,null,null,null,null,null,"【FAX番号】"]
[]
[null,"【４．設計者】"]
[null,null,"【資格】",null,null,null,null,null,null,null,null,"（",null,null,"）建築士",null,null,null,null,null,"（",null,null,null,null,null,"）登録",null,null,null,null,null,null,"号"]
[null,null,"【氏名】"]
[null,null,"【建築士事務所名】",null,null,null,null,null,null,null,null,"（",null,null,"）建築士事務所",null,null,null,null,null,"（",null,null,null,"）知事登録",null,null,null,"第",null,null,null,null,"号"]
[]
[null,null,"【郵便番号】"]
[null,null,"【所在地】"]
[null,null,"【電話番号】",null,null,null,null,null,null,null,null,null,null,null,null,null,null,null,null,"【FAX番号】"]
[]
[null,"【５．工事監理者】"]
[null,null,"【資格】",null,null,null,null,null,null,null,null,"（",null,null,"）建築士",null,null,null,null,null,"（",null,null,null,null,null,"）登録",null,null,null,null,null,null,"号"]
[null,null,"【氏名】"]
[null,null,"【建築士事務所名】",null,null,null,null,null,null,null,null,"（",null,null,"）建築士事務所",null,null,null,null,null,"（",null,null,null,"）知事登録",null,null,null,"第",null,null,null,null,"号"]
[]
[null,null,"【郵便番号】"]
[null,null,"【所在地】"]
[null,null,"【電話番号】",null,null,null,null,null,null,null,null,null,null,null,null,null,null,null,null,"【FAX番号】"]
[]
[null,"【６．工事施工者】"]
[null,null,"【氏名又は名称】"]
[null,null,"【営業所名】",null,null,null,null,null,null,null,null,"営業の許可",null,null,null,null,"（",null,null,null,null,null,null,"）","第",null,null,null,null,null,"号"]
[null,null,"【郵便番号】"]
[null,null,"【所在地】"]
[null,null,"【電話番号】",null,null,null,null,null,null,null,null,null,null,null,null,null,null,null,null,"【FAX番号】"]
[]
[null,"【７．建設住宅性能評価を希望する性能表示事項】"]
[null,null,"※必須事項以外で希望する事項を選択してください。"]
[null,null,null,null,"別紙による"]
[]
[null,"【８．備考】"]
[]
[]
[]
[]
[]
[null,null,null,null,null,null,null,null,null,null,null,null,null,null,null,null,null,null,null,null,null,null,null,null,null,null,null,null,null,null,null,null,null,null,"（第二面別紙）"]
[null,"【建設住宅性能評価を希望する性能表示事項】"]
[null,"１． 構造の安定に関すること"]
[null,null,"□","１－２　耐震等級（構造躯体の損傷防止）"]
[null,null,"□","１－４　耐風等級（構造躯体の倒壊等防止及び損傷防止）"]
[null,null,"□","１－５　耐積雪等級（構造躯体の倒壊等防止及び損傷防止）"]
[]
[null,"２． 火災時の安全に関すること"]
[null,null,"□","２－１　感知警報装置設置等級（自住戸火災時）"]
[null,null,"□","２－４　脱出対策（火災時）"]
[null,null,"□","２－５　耐火等級（延焼のおそれのある部分（開口部））"]
[null,null,"□","２－６　耐火等級（延焼のおそれのある部分（開口部以外））"]
[]
[null,"５．温熱環境・エネルギー消費量に関すること"]
[null,null,"□","５－１　断熱等性能等級"]
[null,null,"□","５－２　一次エネルギー消費量等級"]
[]
[null,"６．空気環境に関すること"]
[null,null,"□","６－１　ホルムアルデヒド対策（内装及び天井裏等）"]
[null,null,"□","６－２　換気対策"]
[null,null,"□","６－３　室内空気中の化学物質の濃度等"]
[]
[null,"７．光・視環境に関すること"]
[null,null,"□","７－１　単純開口率"]
[null,null,"□","７－２　方位別開口比"]
[]
[null,"８．音環境に関すること"]
[null,null,"□","８－４　透過損失等級（外壁開口部）"]
[]
[null,"９．高齢者等への配慮に関すること"]
[null,null,"□","９－１　高齢者等配慮対策等級（専用部分）"]
[]
[null,"１０．防犯に関すること"]
[null,null,"□","１０－１　開口部の侵入防止対策"]
[]
[null,"（注意）"]
[null,null,"①","選択を希望する性能表示事項のチェックボックスに「レ」マークを入れてください。"]
[null,null,"②","「５．温熱環境・エネルギー消費量に関すること」については「５－１　断熱等性能等級」又は「５－２　一次エネルギー消費量等級」のいずれか、若しくは両方の選択が必要です。"]
[]
[]
[]
[null,"【地盤の液状化に関する情報提供】"]
[null,null,"□","地盤の液状化に関する情報提供を行う（情報提供の内容は申出書による）"]
[null,null,"□","地盤の液状化に関する情報提供を行わない"]
[]
[null,"（注意）"]
[null,null,null,"情報提供について、いずれかのチェックボックスに「レ」マークを入れてください。"]
[]
[]
[null,"申請する工事の概要",null,null,null,null,null,null,null,null,null,null,null,null,null,null,null,null,null,null,null,null,null,null,null,null,null,null,null,null,null,null,null,null,"（第三面）"]
[]
[null,"【１．建築場所】",null,null,null,null,null,"〒"]
[]
[]
[null,"【２．設計住宅性能評価書の交付番号】",null,null,null,null,null,null,null,null,null,null,null,null,null,"第",null,null,null,null,null,null,null,null,null,null,null,null,"号"]
[]
[null,"【３．設計住宅性能評価書交付年月日】",null,null,null,null,null,null,null,null,null,null,null,null,null,null,null,null,null,null,"年",null,null,"月",null,null,"日"]
[]
[null,"【４．設計住宅性能評価書交付者】"]
[]
[null,"【５．確認済証番号】",null,null,null,null,null,null,null,null,null,null,null,null,null,"第",null,null,null,null,null,null,null,null,null,null,null,null,"号"]
[]
[null,"【６．確認済証交付年月日】",null,null,null,null,null,null,null,null,null,null,null,null,null,null,null,null,null,null,"年",null,null,"月",null,null,"日"]
[]
[null,"【７．確認済証交付者】"]
[]
[null,"【８．工事着手（予定）年月日】",null,null,null,null,null,null,null,null,null,null,null,null,null,null,null,null,null,null,"年",null,null,"月",null,null,"日"]
[]
[null,"【９．工事完了予定年月日】",null,null,null,null,null,null,null,null,null,null,null,null,null,null,null,null,null,null,"年",null,null,"月",null,null,"日"]
[]
[null,"【１０．検査対象工程工事終了予定年月日】"]
[null,null,null,"（第",null,null,"回）",null,null,null,null,null,"年",null,null,"月",null,null,"日","（",null,null,null,null,null,null,null,null,null,null,null,null,null,"）"]
[null,null,null,"（第",null,null,"回）",null,null,null,null,null,"年",null,null,"月",null,null,"日","（",null,null,null,null,null,null,null,null,null,null,null,null,null,"）"]
[null,null,null,"（第",null,null,"回）",null,null,null,null,null,"年",null,null,"月",null,null,"日","（",null,null,null,null,null,null,null,null,null,null,null,null,null,"）"]
[null,null,null,"（第",null,null,"回）",null,null,null,null,null,"年",null,null,"月",null,null,"日","（",null,null,null,null,null,null,null,null,null,null,null,null,null,"）"]
[]
[]
[null,"【１１．その他必要な事項】",null,null,null,null,null,null,null,null,null,"（※住宅の名称について記入して下さい）"]
[null,null,null,null,null,"住宅の名称",null,null,null,null,"（",null,null,null,null,null,null,null,null,null,null,null,null,null,null,null,null,null,null,null,null,null,null,"）"]
[]
[null,"【１２．備考】"]
[]
[]
[]
[]
[]
[]
[]
[]
[]
[]
[]
[]
[]
[]
[]
[]
[]
[]
[]
[]
[]
[]
[]
[]
[]
[]
[null,"（注意）"]
[null,"１.",null,"第一面関係"]
[null,null,null,"※印のある欄は記入しないでください。"]
[null,"２.",null,"第二面関係"]
[null,null,"①","　申請者からの委任を受けて申請を代理で行う者がいる場合においては、２欄に記入してください。"]
[null,null,"②","　申請者が２以上のときは、１欄には代表となる申請者のみについて記入し、別紙に他の申請者についてそれぞ"]
[null,null,null,"れ必要な事項を記入してください。"]
[null,null,"③","　建築主が２以上のときは、３欄には代表となる建築主のみについて記入し、別紙に他の建築主についてそれぞ"]
[null,null,null,"れ必要な事項を記入して添えてください。"]
[null,null,"④","　４欄及び５欄の郵便番号、所在地及び電話番号には、設計者又は工事監理者が建築士事務所に属しているとき"]
[null,null,null,"はそれぞれ建築士事務所のものを、設計者又は工事監理者が建築士事務所に属していないときはそれぞれ設計者"]
[null,null,null,"又は工事監理者のもの（所在地は住所とします。）を書いてください。"]
[null,null,"⑤","　７欄は、必須評価事項以外で建設住宅性能評価を希望する性能表示事項を記入してください。"]
[null,"３.",null,"第三面関係"]
[null,null,"①","　１欄は、地名地番と併せて住居表示が定まっているときは、当該住居表示を括弧書きで併記してください。"]
[null,null,"②","　５欄から７欄までは、確認済証が交付されていない場合は空欄としてください。"]
[null,null,"③","　８欄は、既に工事を着手している場合はその年月日を、それ以外の場合は予定日の年月日を記入してください。"]
[null,null,"④","　10欄は、検査の回数が５回以上の場合は、適宜記入欄を増やして記入してください。"]
[null,null,"⑤","　ここに書き表せない事項で、評価に当たり特に注意を要する事項は、11欄又は別紙に記載して添えてください。"]
[null,null,"⑥","　変更建設住宅性能評価に係る申請の際は、12欄に第三面に係る部分の変更の概要について記入してください。"]
[]
[null,"備考",null,"１","　この用紙の大きさは、日本産業規格Ａ４としてください。"]
[null,null,null,"２","　第二面及び第三面については、建築確認等他の制度の申請書の写しに必要事項を補うこと、複数の住戸に"]
[null,null,null,null,"関する情報を集約して記載すること等により記載すべき事項のすべてが明示された別の書面をもって代える"]
[null,null,null,null,"ことができます。"]

{"sheet":"確認申請書","index":5,"n_rows":124,"n_cols":35,"rows_kept":124,"cut":false,"hidden":true,"merged":[[105,11,105,14],[107,11,107,14],[109,11,109,14],[103,1,103,34],[83,18,83,20],[83,22,83,23],[83,25,83,26],[72,23,72,27],[87,12,87,27],[63,10,63,13],[65,10,65,13],[52,1,52,34],[85,18,85,20],[85,22,85,23],[85,25,85,26],[73,23,73,27],[75,12,75,15],[76,12,76,15],[77,14,77,16],[77,24,77,26],[79,10,79,16],[79,21,79,27],[68,25,68,28],[69,25,69,28],[70,25,70,28],[13,21,14,33],[19,2,22,33],[55,10,57,33],[59,10,59,13],[15,21,15,33],[16,21,16,33],[6,1,6,34],[4,1,5,34],[8,25,8,27],[8,29,8,30],[8,32,8,33]]}
[]
[null,"第十一号の二様式（第七条の二関係）",null,null,null,null,null,null,null,null,null,null,null,null,null,null,null,null,null,null,null,null,null,null,null,null,null,null,null,null,null,null,null,null,"（第一面）"]
[]
[]
[null,"確認申請書\n（新築／増築・改築）"]
[]
[null,"（第一面）"]
[]
[null,null,null,null,null,null,null,null,null,null,null,null,null,null,null,null,null,null,null,null,null,null,null,null,null,null,null,null,"年",null,null,"月",null,null,"日"]
[]
[null,"株式会社　ハウスジーメン　殿"]
[]
[]
[null,null,null,null,null,null,null,null,null,null,null,null,null,"申請者の住所又は"]
[null,null,null,null,null,null,null,null,null,null,null,null,null,"主たる事務所の所在地"]
[null,null,null,null,null,null,null,null,null,null,null,null,null,"申請者の氏名又は名称\n"]
[null,null,null,null,null,null,null,null,null,null,null,null,null,"代表者の氏名"]
[]
[]
[null,null,"　住宅の品質確保の促進等に関する法律第６条の２第１項の規定に基づき、本申請に係る住宅の構造及び設備が長期使用構造等（長期優良住宅の普及の促進に関する法律（平成20年法律第87号）第２条第４項に規定する長期使用構造等をいう。）であることの確認を行うことを求めます。この申請書及び添付図書に記載の事項は、事実に相違ありません。"]
[]
[]
[]
[]
[]
[]
[]
[]
[]
[]
[null,null,null,"※受付欄",null,null,null,null,null,null,null,null,null,"※料金欄"]
[null,null,null,null,null,null,"年",null,null,"月",null,null,"日"]
[null,null,null,"第",null,null,null,null,null,null,null,null,"号"]
[null,null,null,"申請受理者氏名"]
[]
[]
[null,null,null,"（注意）"]
[null,null,null,"１．この様式において、「一戸建ての住宅」は、人の居住の用以外の用途に供する部分を有しないものに限り、"]
[null,null,null,null,"「共同住宅等」とは、共同住宅、長屋その他の一戸建ての住宅以外の住宅をいいます。"]
[null,null,null,"２．共同住宅等に係る申請にあっては、第三面を申請に係る住戸（認定を求める住戸）ごとに作成してください。"]
[null,null,null,"３．数字は算用数字を、単位はメートル法を用いてください。"]
[null,null,null,"４．※印のある欄は記入しないでください。"]
[]
[null,null,null,"備考",null,"この用紙の大きさは、日本産業規格Ａ４としてください。"]
[]
[]
[null,null,null,null,"特記事項"]
[null,null,null,null,null,"　以下の表示を希望します。"]
[null,null,null,null,null,"　　免震建築物、耐震等級２又は耐震等級３に係る適合審査を受けようとする場合"]
[null,null,null,null,null,null,null,"□","免震建築物",null,null,null,"□","耐震等級２",null,null,null,null,"耐震等級３"]
[]
[]
[null,"（第ニ面）"]
[null,"１．建築をしようとする住宅の位置、構造及び設備並びに規模等に関する事項"]
[null,null,"〔建築物に関する事項〕"]
[null,null,"【１．地名地番】"]
[]
[]
[]
[null,null,"【２．敷地面積】",null,null,null,null,null,null,null,null,null,null,null,"㎡"]
[]
[null,null,"【３．工事種別】",null,null,null,null,null,null,null,"□","新築",null,null,null,"□","増築・改築"]
[]
[null,null,"【４．建築面積】",null,null,null,null,null,null,null,null,null,null,null,"㎡"]
[]
[null,null,"【５．床面積の合計】",null,null,null,null,null,null,null,null,null,null,null,"㎡"]
[]
[null,null,"【６．建て方】",null,null,null,null,null,null,null,"□","一戸建ての住宅",null,null,null,null,null,"□","共同住宅等"]
[null,null,null,null,"【一戸建ての住宅の場合：各階の床面積】",null,null,null,null,null,null,null,null,null,null,null,null,null,null,null,null,null,null,null,"階",null,null,null,null,"㎡"]
[null,null,null,null,null,null,null,null,null,null,null,null,null,null,null,null,null,null,null,null,null,null,null,null,"階",null,null,null,null,"㎡"]
[null,null,null,null,null,null,null,null,null,null,null,null,null,null,null,null,null,null,null,null,null,null,null,null,"階",null,null,null,null,"㎡"]
[]
[null,null,null,null,"【共同住宅等の場合：住戸の数】",null,null,null,null,null,null,null,null,null,null,null,null,null,"建築物全体",null,null,null,null,null,null,null,null,null,null,"戸"]
[null,null,null,null,null,null,null,null,null,null,null,null,null,null,null,null,null,null,"申請対象住戸",null,null,null,null,null,null,null,null,null,null,"戸"]
[null,null,"【７．建築物の高さ等】"]
[null,null,null,null,"【最高の高さ】",null,null,null,null,null,null,null,null,null,null,null,"ｍ"]
[null,null,null,null,"【最高の軒の高さ】",null,null,null,null,null,null,null,null,null,null,null,"ｍ"]
[null,null,null,null,"【階数】",null,null,null,null,null,null,"（地上）",null,null,null,null,null,"階",null,null,null,"（地下）",null,null,null,null,null,"階"]
[]
[null,null,"【８．構造】",null,null,null,null,null,null,"　",null,null,null,null,null,null,null,"　一部",null,null,null,"　"]
[]
[null,null,"【９．長期使用構造等に係る構造及び設備の概要】",null,null,null,null,null,null,null,null,null,null,null,null,null,null,null,null,null,"別添設計内容説明書による"]
[]
[null,null,"【10．建築に関する工事の着手の予定年月日】",null,null,null,null,null,null,null,null,null,null,null,null,null,null,null,null,null,null,"年",null,null,"月",null,null,"日"]
[]
[null,null,"【11. 認定申請予定日】",null,null,null,null,null,null,null,null,null,null,null,null,null,null,null,null,null,null,"年",null,null,"月",null,null,"日"]
[]
[null,null,"【12. 備考】",null,null,null,null,null,"住宅の名称"]
[]
[]
[null,null,"（注意）"]
[null,null,"1．【３．工事種別】及び【６．建て方】の欄は、該当するチェックボックスに「レ」マークを入れてください。"]
[null,null,"2．【11．認定申請予定日】については、長期優良住宅の普及の促進に関する法律第５条第１項から第５項までの規定"]
[null,null,null,"による認定申請予定日を記載してください。"]
[null,null,"3．この面は、建築確認等他の制度の申請書の写しに必要事項を補うこと等により記載すべき事項の全てが明示された"]
[null,null,null,"別の書面をもって代えることができます。"]
[]
[]
[]
[]
[]
[]
[]
[null,"（第三面）"]
[null,null,"〔申請に係る共同住宅等の住戸に関する事項〕"]
[null,null,"【１．住戸の番号】"]
[]
[null,null,"【２．住戸の存する階】",null,null,null,null,null,null,null,null,null,null,null,null,"階"]
[]
[null,null,"【３．専用部分の床面積】",null,null,null,null,null,null,null,null,null,null,null,null,"㎡"]
[]
[null,null,"【４．当該住戸への経路】"]
[null,null,null,null,"【共用階段】",null,null,null,null,null,null,"□","無",null,null,"□","有"]
[null,null,null,null,"【共用廊下】",null,null,null,null,null,null,"□","無",null,null,"□","有"]
[null,null,null,null,"【エレベーター】",null,null,null,null,null,null,"□","無",null,null,"□","有"]
[]
[]
[null,null,"（注意）"]
[null,null,"1．この面は、共同住宅等に係る申請の場合に作成してください。"]
[null,null,"2．この面は、申請対象住戸について作成してください。"]
[null,null,"3．住戸の階数が二以上である場合には、【３．専用部分の床面積】に各階の床面積を併せて記載してください。"]
[null,null,"4．【４．当該住戸への経路】の欄は該当するチェックボックスに「レ」マークを入れてください。"]
[null,null,"5．この面は、住宅性能表示等他の制度の申請書の写しに必要事項を補うこと、複数の住戸に関する情報を集約して"]
[null,null,null,"記載すること等により記載すべき事項の全てが明示された別の書面をもって代えることができます。"]

{"sheet":"別紙","index":6,"n_rows":58,"n_cols":35,"rows_kept":58,"cut":false,"hidden":false,"merged":[[19,11,19,30],[20,11,20,14],[21,11,21,33],[22,11,22,16],[12,11,12,30],[13,11,13,14],[14,11,14,33],[15,11,15,16],[18,11,18,30],[4,11,4,30],[6,11,6,14],[7,11,7,33],[8,11,8,16],[11,11,11,30],[5,11,5,30],[25,11,25,30],[26,11,26,30],[27,11,27,14],[28,11,28,33],[29,11,29,16],[32,11,32,30],[34,11,34,14],[35,11,35,33],[36,11,36,16],[39,11,39,30],[33,11,33,30],[40,11,40,30],[41,11,41,14],[42,11,42,33],[43,11,43,16],[46,11,46,30],[47,11,47,30],[55,11,55,14],[56,11,56,33],[57,11,57,16],[48,11,48,14],[49,11,49,33],[50,11,50,16],[53,11,53,30],[54,11,54,30]]}
[]
[null,"申請者等の概要",null,null,null,null,null,null,null,null,null,null,null,null,null,null,null,null,null,null,null,null,null,null,null,null,null,null,null,null,null,null,null,null,"（別紙）"]
[]
[null,"【１．申請者２】"]
[null,null,"【氏名又は名称のフリガナ】"]
[null,null,"【氏名又は名称】"]
[null,null,"【郵便番号】"]
[null,null,"【住所】"]
[null,null,"【電話番号】"]
[]
[null,"【３．建築主２】"]
[null,null,"【氏名又は名称のフリガナ】"]
[null,null,"【氏名又は名称】"]
[null,null,"【郵便番号】"]
[null,null,"【住所】"]
[null,null,"【電話番号】"]
[]
[null,"【１．申請者３】"]
[null,null,"【氏名又は名称のフリガナ】"]
[null,null,"【氏名又は名称】"]
[null,null,"【郵便番号】"]
[null,null,"【住所】"]
[null,null,"【電話番号】"]
[]
[null,"【３．建築主３】"]
[null,null,"【氏名又は名称のフリガナ】"]
[null,null,"【氏名又は名称】"]
[null,null,"【郵便番号】"]
[null,null,"【住所】"]
[null,null,"【電話番号】"]
[]
[null,"【１．申請者４】"]
[null,null,"【氏名又は名称のフリガナ】"]
[null,null,"【氏名又は名称】"]
[null,null,"【郵便番号】"]
[null,null,"【住所】"]
[null,null,"【電話番号】"]
[]
[null,"【３．建築主４】"]
[null,null,"【氏名又は名称のフリガナ】"]
[null,null,"【氏名又は名称】"]
[null,null,"【郵便番号】"]
[null,null,"【住所】"]
[null,null,"【電話番号】"]
[]
[null,"【１．申請者５】"]
[null,null,"【氏名又は名称のフリガナ】"]
[null,null,"【氏名又は名称】"]
[null,null,"【郵便番号】"]
[null,null,"【住所】"]
[null,null,"【電話番号】"]
[]
[null,"【３．建築主５】"]
[null,null,"【氏名又は名称のフリガナ】"]
[null,null,"【氏名又は名称】"]
[null,null,"【郵便番号】"]
[null,null,"【住所】"]
[null,null,"【電話番号】"]

{"sheet":"委任状","index":7,"n_rows":43,"n_cols":19,"rows_kept":43,"cut":false,"hidden":false,"merged":[[3,1,4,31],[42,18,43,30],[14,1,16,31],[11,7,11,30],[20,4,21,30],[24,4,26,30],[38,18,40,30]]}
[]
[]
[]
[null,"委任状"]
[]
[]
[]
[]
[null,null,null,"私は次の者を代理人と定め、下記事項の手続きに関する一切の権限を委任します。"]
[]
[]
[null,null,null,"代理人",null,null,null,{"$f":"IF(設計申請書!$L$63<>\"\",設計申請書!$L$63,\"\")","v":""}]
[]
[]
[null,"記"]
[]
[]
[]
[]
[null,null,null,"１.住宅の名称"]
[null,null,null,null,{"$f":"IF(設計申請書!$L$192<>\"\",設計申請書!$L$192,\"\")","v":""}]
[]
[]
[null,null,null,"２.住宅の所在地（地名地番）"]
[null,null,null,null,{"$f":"IF(設計申請書!$I$158<>\"\",設計申請書!$I$158,\"\")","v":""}]
[]
[]
[]
[null,null,null,"３.委任の区分　"]
[]
[null,null,null,null,null,{"$f":"IF(設計申請書!$L$56<>\"\",\"■\",\"□\")","v":"□"},"品確法の規定に基づく設計住宅性能評価"]
[]
[null,null,null,null,null,{"$f":"IF(建設申請書!$L$88<>\"\",\"■\",\"□\")","v":"□"},"品確法の規定に基づく建設住宅性能評価"]
[]
[null,null,null,null,null,{"$f":"IF(設計申請書!T89=\"■\",\"■\",\"□\")","v":"□"},"品確法第6条の２第4項に基づく長期使用構造等であることの確認"]
[]
[]
[]
[null,null,null,null,null,null,null,null,null,null,"申請者の氏名又は名称",null,null,null,null,null,null,null,{"$f":"IF(設計申請書!$U$13<>\"\",設計申請書!$U$13&\"　\"&設計申請書!$U$14,\"\")","v":""}]
[]
[]
[]
[null,null,null,null,null,null,null,null,null,null,"代表者の氏名",null,null,null,null,null,null,null,{"$f":"IF(設計申請書!$U$16<>\"\",設計申請書!$U$16,\"\")","v":""}]

{"sheet":"自己評価書","index":8,"n_rows":70,"n_cols":55,"rows_kept":70,"cut":false,"hidden":false,"merged":[[46,39,46,40],[9,1,10,3],[9,4,10,8],[9,9,9,20],[9,22,10,24],[9,25,10,29],[9,30,9,41],[10,9,10,20],[10,30,10,41],[11,1,13,3],[11,4,11,8],[11,11,11,18],[26,4,33,8],[34,1,36,3],[34,4,36,8],[34,11,34,18],[34,27,35,29],[37,1,39,3],[37,4,38,8],[37,11,37,18],[36,27,37,29],[39,4,39,8],[38,22,40,24],[38,25,40,29],[1,25,1,35],[3,1,3,8],[4,1,4,8],[5,1,5,8],[3,10,3,40],[4,10,4,40],[6,1,6,8],[8,1,8,20],[8,22,8,41],[5,10,5,25],[5,26,5,40],[6,10,6,40],[18,46,19,46],[20,10,20,14],[20,16,20,17],[14,4,14,8],[14,25,16,29],[15,32,15,39],[17,4,24,8],[16,44,17,46],[18,10,18,14],[18,16,18,17],[17,25,19,29],[19,10,19,14],[11,22,14,24],[11,25,11,29],[12,30,12,31],[12,32,12,39],[19,16,19,17],[18,32,18,39],[18,44,19,44],[18,45,19,45],[12,4,12,8],[15,4,16,8],[26,44,34,44],[28,13,28,19],[27,25,27,29],[28,25,30,29],[30,12,30,19],[29,35,29,40],[31,10,31,19],[21,10,21,14],[21,16,21,17],[20,22,22,24],[20,25,22,29],[20,44,25,44],[23,10,23,19],[25,10,25,19],[24,25,25,29],[24,36,24,39],[32,12,32,14],[32,16,32,18],[31,25,31,29],[33,12,33,14],[33,16,33,18],[32,27,33,29],[25,36,25,39],[27,13,27,19],[40,1,44,3],[40,4,44,8],[39,31,39,36],[41,11,41,12],[41,14,41,17],[41,18,41,19],[42,9,42,14],[42,15,42,17],[42,18,42,20],[41,25,42,29],[43,9,43,17],[43,18,43,19],[42,32,42,33],[43,32,43,33],[48,22,51,24],[48,25,49,29],[49,30,49,33],[49,34,49,35],[50,30,50,33],[50,34,50,35],[44,32,44,33],[46,11,46,12],[46,15,46,17],[46,18,46,19],[45,32,45,33],[47,9,47,20],[46,32,46,33],[46,35,46,36],[57,1,60,3],[57,4,57,8],[58,11,58,18],[59,4,59,8],[59,26,59,27],[59,28,59,29],[52,22,54,24],[52,25,54,29],[53,30,53,31],[55,1,56,3],[55,4,56,8],[55,9,55,20],[55,22,58,24],[55,25,56,29],[56,9,56,20],[62,28,62,29],[62,32,62,40],[66,1,68,3],[66,4,67,8],[66,32,66,40],[67,11,67,18],[67,32,67,40],[68,4,68,8],[68,31,68,32],[68,34,68,35],[68,37,68,38],[68,40,68,41],[49,40,49,41],[50,36,50,39],[50,40,50,41],[45,4,49,8],[53,32,53,39],[48,11,48,15],[63,4,63,8],[63,32,63,40],[64,4,65,8],[64,11,64,18],[64,32,64,40],[48,16,48,19],[49,36,49,39],[46,37,46,38],[65,26,65,27],[65,28,65,29],[65,32,65,40],[59,32,59,40],[60,4,60,8],[60,32,60,40],[61,4,62,8],[61,11,61,18],[61,32,61,40],[62,26,62,27]]}
[null,null,null,null,null,null,null,null,null,null,null,null,null,null,null,null,null,null,null,null,null,null,null,null,null,null,null,null,null,null,null,null,null,null,null,null,null,null,null,null,null,null,null,null,null,"]"]
[null,"自己評価書　【一戸建て住宅（木造軸組・枠組壁工法）】"]
[]
[null," 建築物の名称",null,null,null,null,null,null,null,null,{"$f":"IF(設計申請書!$L$192<>\"\",設計申請書!$L$192,\"\")","v":""}]
[null," 建築物の所在地",null,null,null,null,null,null,null,"　",{"$f":"IF(設計申請書!$I$158<>\"\",設計申請書!$I$158,\"\")","v":""}]
[null," 設計者氏名",null,null,null,null,null,null,null,"　",{"$f":"IF(設計申請書!$L$79<>\"\",設計申請書!$L$79,\"\")","v":""},null,null,null,null,null,null,null,null,null,null,null,null,null,null,null,{"$f":"IF(設計申請書!$L$77<>\"\",設計申請書!$L$77,\"\")","v":""}]
[null," 評価者氏名",null,null,null,null,null,null,null,null,"評価書記載による"]
[]
[null,"－必須事項－",null,null,null,null,null,null,null,null,null,null,null,null,null,null,null,null,null,null,null,null,"－選択項目（住戸）－"]
[null,"評価項目",null,null,"性能表示項目",null,null,null,null,"自己評価結果",null,null,null,null,null,null,null,null,null,null,null,null,"評価項目",null,null,"性能表示項目",null,null,null,null,"自己評価結果"]
[null,null,null,null,null,null,null,null,null,"評価方法",null,null,null,null,null,null,null,null,null,null,null,null,null,null,null,null,null,null,null,null,"評価方法"]
[null,"1.構造の安定に関すること",null,null,"1-1 耐震等級",null,null,null,null,"等級：",null,null,null,null,null,null,null,null,null,null,null,null,"2.火災時の安全に関すること",null,null,"2-4 脱出対策",null,null,null,null,{"$f":"設計申請書!$C$117","v":"□"},"選択",null,{"$f":"IF(設計申請書!$C$117=\"■\",\"□\",\"■\")","v":"■"},"非選択"]
[null,null,null,null,"(構造躯体の倒壊等防止)",null,null,null,null,null,null,null,null,null,null,null,null,null,null,null,null,null,null,null,null,"（火災時）",null,null,null,null,"対策："]
[null,null,null,null,"□","評価対象外",null,null,null,"■","基準",null,"□","特認",null,"□","型式",null,"□","製造",null,null,null,null,null,null,null,null,null,null,"□","基準",null,"□","特認",null,"□","型式",null,"□","製造"]
[null,null,null,null,"1-3 その他",null,null,null,null,null,"□","その他",null,null,"□","免震建築物",null,null,null,null,null,null,null,null,null,"2-5 耐火等級\n（延焼のおそれのある部分（開口部））",null,null,null,null,{"$f":"設計申請書!$C$118","v":"□"},"選択",null,{"$f":"IF(設計申請書!$C$118=\"■\",\"□\",\"■\")","v":"■"},"非選択"]
[null,null,null,null,"（地震に対する構造躯体の倒壊等防止及び損傷防止）",null,null,null,null,null,null,null,null,null,null,null,null,null,null,null,null,null,null,null,null,null,null,null,null,null,"等級："]
[null,null,null,null,null,null,null,null,null,"■","基準",null,"□","特認",null,"□","型式",null,"□","製造",null,null,null,null,null,null,null,null,null,null,"□","基準",null,"□","特認",null,"□","型式",null,"□","製造",null,null,null,"※表1　地盤改良の種類"]
[null,null,null,null,"1-6 地盤又は杭の許容支持力等及びその設定方法",null,null,null,null,"許容支持力等",null,null,null,null,null,null,null,null,null,null,null,null,null,null,null,"2-6 耐火等級\n（延焼のおそれのある部分（開口部以外））",null,null,null,null,{"$f":"設計申請書!$C$119","v":"□"},"選択",null,{"$f":"IF(設計申請書!$C$119=\"■\",\"□\",\"■\")","v":"■"},"非選択"]
[null,null,null,null,null,null,null,null,null,"□","地盤(許容応力度)",null,null,null,null,"（",null,null,"kN/m2",null,"）",null,null,null,null,null,null,null,null,null,"等級：",null,null,null,null,null,null,null,null,null,null,null,null,null,null,"改良の方法","概要"]
[null,null,null,null,null,null,null,null,null,"□","杭状改良(許容支持力度)",null,null,null,null,"（",null,null,"kN/m2",null,"）",null,null,null,null,null,null,null,null,null,"□","基準",null,"□","特認",null,"□","型式",null,"□","製造"]
[null,null,null,null,null,null,null,null,null,"□","杭状改良(許容支持力)",null,null,null,null,"（",null,null,"kN/本",null,"）",null,"6.空気環境に関すること",null,null,"6-1 ﾎﾙﾑｱﾙﾃﾞﾋﾄﾞ\n対策\n（内装及び天井裏等）",null,null,null,null,{"$f":"設計申請書!$C$126","v":"□"},"選択",null,{"$f":"IF(設計申請書!$C$126=\"■\",\"□\",\"■\")","v":"■"},"非選択",null,null,null,null,null,null,null,null,null,"表層系","浅層混合処理工法","バックホーなどによる土と固化材との攪拌。"]
[null,null,null,null,null,null,null,null,null,"□","杭(許容支持力)",null,null,null,null,"（",null,null,"kN/本",null,"）",null,null,null,null,null,null,null,null,null,null,"□","製材等（製材、単層ﾌﾛｰﾘﾝｸﾞを含む）を使用",null,null,null,null,null,null,null,null,null,null,null,null,"(表層改良工法）"]
[null,null,null,null,null,null,null,null,null,"調査方法等",null,null,null,null,null,null,null,null,null,null,null,null,null,null,null,null,null,null,null,null,null,"□","特定建材を使用",null,null,null,null,null,null,null,null,null,null,null,null,"補強土工法","鉄、繊維などの補強材を地盤中に"]
[null,null,null,null,null,null,null,null,null,"（",null,null,null,null,null,null,null,null,null,null,"）",null,null,null,null,null,null,null,null,null,null,"□","その他の建材を使用",null,null,null,null,null,null,null,null,null,null,null,null,null,"設置することによる地盤補強。"]
[null,null,null,null,null,null,null,null,null,"地盤改良の方法",null,null,null,null,"※表1参照",null,null,null,null,null,null,null,null,null,null,"[ﾎﾙﾑｱﾙﾃﾞﾋﾄﾞ\n放散等級]",null,null,null,null,"　内装　　　　　　等級：",null,null,null,null,null,null,null,null,null,null,null,null,null,null,"置換工法","特殊ブロック、良質土"]
[null,null,null,null,null,null,null,null,null,"（","　",null,null,null,null,null,null,null,null,null,"）",null,null,null,null,null,null,null,null,null,"　天井裏等　　　等級：",null,null,null,null,null,null,null,null,null,null,null,null,null,null,null,"または軽量材などによる置換"]
[null,null,null,null,"1-7 基礎の構造\n方法及び形式等",null,null,null,null,"■","直接基礎",null,null,null,null,null,null,null,null,null,null,null,null,null,null,null,null,null,null,null,"□","基準",null,"□","特認",null,"□","型式",null,"□","製造",null,null,null,"深層系","深層混合処理工法","攪拌翼による土と固化材との攪拌混合。"]
[null,null,null,null,null,null,null,null,null,"構造方法",null,null,"（",null,null,null,null,null,null,null,"）",null,null,null,null,"6-2 換気対策",null,null,null,null,{"$f":"設計申請書!$C$127","v":"□"},"選択",null,{"$f":"IF(設計申請書!$C$127=\"■\",\"□\",\"■\")","v":"■"},"非選択",null,null,null,null,null,null,null,null,null,null,"(柱状改良工法）","機械式を用いることが多い。"]
[null,null,null,null,null,null,null,null,null,"形式",null,null,"（",null,null,null,null,null,null,null,"）",null,null,null,null,"[居室の換気対策]",null,null,null,null,null,"□","機械換気設備",null,null,null,null,null,null,null,null,null,null,null,null,"小口径鋼管工法","回転貫入・圧入・打撃などによる施工。"]
[null,null,null,null,null,null,null,null,null,"□","杭基礎",null,null,null,null,null,null,null,null,null,null,null,null,null,null,null,null,null,null,null,null,"□","その他　（",null,null,null,null,null,null,null,null,"）",null,null,null,null,"先端などに螺旋翼を取り付けているものもある。"]
[null,null,null,null,null,null,null,null,null,"杭種",null,"（",null,null,null,null,null,null,null,null,"）",null,null,null,null,null,null,null,null,null,"□","基準",null,"□","特認",null,"□","型式",null,"□","製造",null,null,null,null,null,"基礎ぐいを用いた構造（鋼管杭）として扱うことも可能。"]
[null,null,null,null,null,null,null,null,null,"（",null,null,null,null,null,null,null,null,null,null,"）",null,null,null,null,"[局所換気対策]",null,null,null,null,"便所：",null,"□","機械換気設備",null,null,null,null,"□","なし",null,null,null,null,null,"木杭","圧入・打撃などによる施工。"]
[null,null,null,null,null,null,null,null,null,"杭径",null,"（",null,null,null,"～",null,null,null,"cm","）",null,null,null,null,null,"□","便所\n該当なし",null,null,null,null,"□","換気のできる窓",null,null,null,null,null,null,null,null,null,null,null,null,"基礎ぐいを用いた構造として扱うことも可能。"]
[null,null,null,null,null,null,null,null,null,"杭長",null,"（",null,null,null,"～",null,null,null,"m","）",null,null,null,null,null,null,null,null,null,"浴室：",null,"□","機械換気設備",null,null,null,null,"□","なし",null,null,null,null,null,"柱状砕石補強工法","掘削孔に砕石を締固めながら充填して柱状砕石"]
[null,"3.劣化の軽減に関すること",null,null,"3-1 劣化対策等級（構造躯体等）",null,null,null,null,"等級：",null,null,null,null,null,null,null,null,null,null,null,null,null,null,null,null,"□","浴室\n該当なし",null,null,null,null,"□","換気のできる窓",null,null,null,null,null,null,null,null,null,null,null,null,"補強体を造成し用いる地盤補強工法。"]
[null,null,null,null,null,null,null,null,null,null,null,null,null,null,null,null,null,null,null,null,null,null,null,null,null,null,null,null,null,null,"台所：",null,"□","機械換気設備",null,null,null,null,"□","なし"]
[null,null,null,null,null,null,null,null,null,"■","基準",null,"□","特認",null,"□","型式",null,"□","製造",null,null,null,null,null,null,"□","台所\n該当なし",null,null,null,null,"□","換気のできる窓"]
[null,"4.維持管理・更新への配慮に関すること",null,null,"4-1 維持管理対策等級",null,null,null,null,"等級：",null,null,null,null,null,null,null,null,null,null,null,null,null,null,null,null,null,null,null,null,"□","基準",null,"□","特認",null,"□","型式",null,"□","製造"]
[null,null,null,null,null,null,null,null,null,null,null,null,null,null,null,null,null,null,null,null,null,null,"7.光・視環境に関すること",null,null,"7-1 単純開口率",null,null,null,null,{"$f":"設計申請書!$C$130","v":"□"},"選択",null,{"$f":"IF(設計申請書!$C$130=\"■\",\"□\",\"■\")","v":"■"},"非選択"]
[null,null,null,null,"（専用配管）",null,null,null,null,"■","基準",null,"□","特認",null,"□","型式",null,"□","製造",null,null,null,null,null,null,null,null,null,null,null,null,null,null,null,null,null,"％以上"]
[null,"5.温熱環境・エネルギー消費量に関すること",null,null,"5-1 断熱等性能等級",null,null,null,null,{"$f":"IF(設計申請書!$C$122=\"■\",\"■\",\"□\")","v":"□"},"選択",null,{"$f":"IF(設計申請書!$C$122=\"■\",\"□\",\"■\")","v":"■"},"非選択",null,null,null,null,null,null,null,null,null,null,null,null,null,null,null,null,"□","基準",null,"□","特認",null,"□","型式",null,"□","製造"]
[null,null,null,null,null,null,null,null,null,"等級：",null,null,null,null,"地域区分：",null,null,null,null,null,null,null,null,null,null,"7-2 方位別開口比",null,null,null,null,{"$f":"設計申請書!$C$131","v":"□"},"選択",null,{"$f":"IF(設計申請書!$C$131=\"■\",\"□\",\"■\")","v":"■"},"非選択"]
[null,null,null,null,null,null,null,null,null,"外皮平均熱貫流率※1：〔",null,null,null,null,null,null,null,null,"W/(㎡/K)〕",null,null,null,null,null,null,null,null,null,null,null,"北面",null,null,null,"％",{"$f":"IF(AG43=0,\"\",IF(AG43=\"\",\"\",\"以上\"))","v":""}]
[null,null,null,null,null,null,null,null,null,"冷房期の平均日射熱取得率※2：〔",null,null,null,null,null,null,null,null,null,null,"〕",null,null,null,null,null,null,null,null,null,"東面",null,null,null,"％",{"$f":"IF(AG44=0,\"\",IF(AG44=\"\",\"\",\"以上\"))","v":""}]
[null,null,null,null,null,null,null,null,null,{"$f":"IF(設計申請書!$C$122=\"■\",\"■\",\"□\")","v":"□"},"基準",null,"□","特認",null,"□","型式",null,"□","製造",null,null,null,null,null,null,null,null,null,null,"南面",null,null,null,"％",{"$f":"IF(AG45=0,\"\",IF(AG45=\"\",\"\",\"以上\"))","v":""}]
[null,null,null,null,"5-2 一次エネルギー消費量等級",null,null,null,null,{"$f":"IF(設計申請書!$C$123=\"■\",\"■\",\"□\")","v":"□"},"選択",null,{"$f":"IF(設計申請書!$C$123=\"■\",\"□\",\"■\")","v":"■"},"非選択",null,null,null,null,null,null,null,null,null,null,null,null,null,null,null,null,"西面",null,null,null,"％",{"$f":"IF(AG46=0,\"\",IF(AG46=\"\",\"\",\"以上\"))","v":""}]
[null,null,null,null,null,null,null,null,null,"等級：",null,null,null,null,null,"地域区分：",null,null,null,null,null,null,null,null,null,null,null,null,null,null,"真上",null,null,null,"％","　",null,"（計",null,{"$f":"SUM(AG43:AH47)","v":0},null,"％）"]
[null,null,null,null,null,null,null,null,null,"床面積あたりの設計一次エネルギー消費量※3",null,null,null,null,null,null,null,null,null,null,null,null,null,null,null,null,null,null,null,null,"□","基準",null,"□","特認",null,"□","型式",null,"□","製造"]
[null,null,null,null,null,null,null,null,null,null,"〔",null,null,null,null,null,"MJ/(㎡・年)",null,null,null,"〕",null,"8.音環境に関すること",null,null,"8-4 透過損失\n等級",null,null,null,null,{"$f":"設計申請書!$C$134","v":"□"},"選択",null,{"$f":"IF(設計申請書!$C$134=\"■\",\"□\",\"■\")","v":"■"},"非選択"]
[null,null,null,null,null,null,null,null,null,{"$f":"IF(設計申請書!$C$123=\"■\",\"■\",\"□\")","v":"□"},"基準",null,"□","特認",null,"□","型式",null,"□","製造",null,null,null,null,null,null,null,null,null,null,"北面 等級：",null,null,null,null,null,"東面 等級："]
[null,"※1：等級5の場合のみ明示することができる。（地域区分の８地域を除く）",null,null,null,null,null,null,null,null,null,null,null,null,null,null,null,null,null,null,null,null,null,null,null,"(外壁開口部)",null,null,null,null,"南面 等級：",null,null,null,null,null,"西面 等級："]
[null,"※2：等級5の場合のみ明示することができる。（地域区分の１，２，３及び４地域を除く）",null,null,null,null,null,null,null,null,null,null,null,null,null,null,null,null,null,null,null,null,null,null,null,null,null,null,null,null,"□","基準",null,"□","特認",null,"□","型式",null,"□","製造"]
[null,"※3：等級6の場合のみ明示することができる。",null,null,null,null,null,null,null,null,null,null,null,null,null,null,null,null,null,null,null,null,"9.高齢者等への配慮に関すること",null,null,"9-1 高齢者等配慮対策等級\n（専用部分）",null,null,null,null,{"$f":"設計申請書!$C$137","v":"□"},"選択",null,{"$f":"IF(設計申請書!$C$137=\"■\",\"□\",\"■\")","v":"■"},"非選択"]
[null,null,null,null,null,null,null,null,null,null,null,null,null,null,null,null,null,null,null,null,null,null,null,null,null,null,null,null,null,null,"等級："]
[null,"－選択項目（住戸）－",null,null,null,null,null,null,null,null,null,null,null,null,null,null,null,null,null,null,null,null,null,null,null,null,null,null,null,null,"□","基準",null,"□","特認",null,"□","型式",null,"□","製造"]
[null,"評価項目",null,null,"性能表示項目",null,null,null,null,"自己評価結果",null,null,null,null,null,null,null,null,null,null,null,null,"10.防犯に関すること",null,null,"10-1開口部の侵入防止対策",null,null,null,null,{"$f":"設計申請書!$C$140","v":"□"},"選択",null,{"$f":"IF(設計申請書!$C$140=\"■\",\"□\",\"■\")","v":"■"},"非選択"]
[null,null,null,null,null,null,null,null,null,"評価方法",null,null,null,null,null,null,null,null,null,null,null,null,null,null,null,null,null,null,null,null,"ａ 住戸の出入り口"]
[null,"1.構造の安定に関すること",null,null,"1-2 耐震等級",null,null,null,null,{"$f":"設計申請書!$C$111","v":"□"},"選択",null,{"$f":"IF(設計申請書!$C$111=\"■\",\"□\",\"■\")","v":"■"},"非選択",null,null,null,null,null,null,null,null,null,null,null,null,null,null,null,null,"ｂ 外部から接近が比較的容易な開口部"]
[null,null,null,null,null,null,null,null,null,"等級：",null,null,null,null,null,null,null,null,null,null,null,null,null,null,null,null,null,null,null,null,"ｃ その他の開口部"]
[null,null,null,null,"(構造躯体の損傷防止)",null,null,null,null,"□","基準",null,"□","特認",null,"□","型式",null,"□","製造",null,null,null,null,null,"[",null,null,"階]",null,"a","(",null,null,null,null,null,null,null,null,null,")"]
[null,null,null,null,"1-4 耐風等級",null,null,null,null,{"$f":"設計申請書!$C$112","v":"□"},"選択",null,{"$f":"IF(設計申請書!$C$112=\"■\",\"□\",\"■\")","v":"■"},"非選択",null,null,null,null,null,null,null,null,null,null,null,null,null,null,null,null,"b","(",null,null,null,null,null,null,null,null,null,")"]
[null,null,null,null,"（構造躯体の倒壊等防止及び損傷防止）",null,null,null,null,"等級：",null,null,null,null,null,null,null,null,null,null,null,null,null,null,null,null,null,null,null,null,"c","(",null,null,null,null,null,null,null,null,null,")"]
[null,null,null,null,null,null,null,null,null,"□","基準",null,"□","特認",null,"□","型式",null,"□","製造",null,null,null,null,null,"[",null,null,"階]",null,"a","(",null,null,null,null,null,null,null,null,null,")"]
[null,null,null,null,"1-5 耐積雪等級",null,null,null,null,{"$f":"設計申請書!$C$113","v":"□"},"選択",null,{"$f":"IF(設計申請書!$C$113=\"■\",\"□\",\"■\")","v":"■"},"非選択",null,null,null,null,null,null,null,null,null,null,null,null,null,null,null,null,"b","(",null,null,null,null,null,null,null,null,null,")"]
[null,null,null,null,"（構造躯体の倒壊等防止及び損傷防止）",null,null,null,null,"等級：",null,null,null,null,null,null,null,null,null,null,null,null,null,null,null,null,null,null,null,null,"c","(",null,null,null,null,null,null,null,null,null,")"]
[null,null,null,null,null,null,null,null,null,"□","基準",null,"□","特認",null,"□","型式",null,"□","製造",null,null,null,null,null,"[",null,null,"階]",null,"a","(",null,null,null,null,null,null,null,null,null,")"]
[null,"2.火災時の安全に関すること",null,null,"2-1 感知警報装置設置等級",null,null,null,null,{"$f":"設計申請書!$C$116","v":"□"},"選択",null,{"$f":"IF(設計申請書!$C$116=\"■\",\"□\",\"■\")","v":"■"},"非選択",null,null,null,null,null,null,null,null,null,null,null,null,null,null,null,null,"b","(",null,null,null,null,null,null,null,null,null,")"]
[null,null,null,null,null,null,null,null,null,"等級：",null,null,null,null,null,null,null,null,null,null,null,null,null,null,null,null,null,null,null,null,"c","(",null,null,null,null,null,null,null,null,null,")"]
[null,null,null,null,"（自住戸火災時）",null,null,null,null,"□","基準",null,"□","特認",null,"□","型式",null,"□","製造",null,null,null,null,null,null,null,null,null,null,"□","基準",null,"□","特認",null,"□","型式",null,"□","製造"]
[null,"＜評価方法＞　",null,null,null,"基準：評価方法基準による　　特認：特別評価方法認定による　　型式：住宅型式性能認定による　　製造：型式住宅部分等製造者の認証による",null,null,null,null,null,null,null,null,null,null,null,null,null,null,null,null,null,null,null,null,null,null,null,null,null,null,null,null,null,null,null,null,null,null,null,null,null,null,null,null,null,null,null,null,null,null,null,null,"　"]

{"sheet":"設計内容説明書_必須・長期","index":9,"n_rows":132,"n_cols":77,"rows_kept":132,"cut":false,"hidden":false,"merged":[[21,20,21,30],[22,11,22,14],[16,3,16,5],[17,20,17,30],[18,20,18,30],[19,11,19,14],[20,2,20,5],[20,20,20,30],[40,16,42,17],[32,2,33,5],[28,2,30,5],[10,2,10,5],[10,6,11,7],[10,8,10,10],[10,11,10,37],[10,38,11,39],[11,2,11,5],[11,8,11,10],[11,11,11,14],[15,11,15,14],[15,35,15,37],[15,3,15,5],[4,1,4,8],[5,1,5,8],[7,1,7,8],[4,10,4,38],[5,10,5,38],[14,2,14,5],[14,8,14,10],[14,20,14,30],[14,35,14,37],[11,15,11,33],[11,34,11,37],[12,1,26,1],[12,2,12,5],[12,6,12,7],[12,8,12,10],[12,11,12,14],[13,2,13,5],[13,8,13,10],[13,11,13,14],[21,2,21,5],[24,11,24,14],[25,11,26,14],[25,35,25,37],[26,35,26,37],[37,35,37,37],[43,16,44,17],[45,20,45,30],[46,8,46,10],[46,11,46,14],[34,1,62,1],[34,8,34,10],[34,11,34,14],[34,25,34,31],[35,8,35,10],[35,11,35,14],[35,16,38,17],[36,2,36,5],[37,2,37,5],[54,8,54,10],[54,11,54,14],[56,21,56,29],[57,8,57,10],[57,11,57,14],[58,8,58,10],[58,11,58,14],[47,11,47,14],[46,35,46,37],[45,35,45,37],[50,8,50,10],[50,11,50,14],[51,23,51,31],[53,23,53,31],[61,25,61,31],[63,8,63,10],[63,11,63,14],[64,8,64,10],[64,11,64,14],[59,8,59,10],[59,11,59,14],[59,25,59,31],[60,11,60,14],[60,29,60,30],[60,31,60,32],[70,38,71,39],[71,2,71,5],[80,11,80,14],[71,11,71,14],[71,15,71,33],[72,11,72,14],[73,11,73,14],[74,8,74,10],[74,11,75,14],[77,8,77,14],[78,8,78,10],[78,11,78,14],[76,35,76,37],[77,35,77,37],[78,35,78,37],[72,35,72,37],[73,35,73,37],[74,35,74,37],[75,35,75,37],[71,34,71,37],[71,8,71,10],[74,2,74,5],[79,35,79,37],[80,35,80,37],[79,1,89,1],[79,8,79,10],[79,11,79,14],[79,16,80,33],[80,2,80,5],[81,2,81,5],[81,8,81,10],[121,35,121,37],[122,35,122,37],[86,8,86,10],[86,11,86,14],[87,8,87,10],[87,11,87,14],[88,8,88,10],[88,11,88,14],[83,2,83,5],[83,8,83,10],[83,11,83,14],[84,8,84,10],[84,11,84,14],[85,8,85,10],[85,11,85,14],[81,11,81,14],[81,16,82,33],[90,1,118,1],[90,8,92,10],[90,11,91,14],[92,11,92,14],[103,11,105,14],[113,8,113,10],[113,11,113,14],[112,8,112,10],[112,11,112,14],[95,11,102,14],[129,11,130,14],[123,35,123,37],[111,35,111,37],[116,35,116,37],[117,35,117,37],[118,35,118,37],[124,35,124,37],[126,35,126,37],[97,28,97,30],[101,28,101,30],[107,35,107,37],[108,35,108,37],[110,35,110,37],[128,35,128,37],[129,35,129,37],[130,35,130,37],[106,35,106,37],[103,35,103,37],[125,17,125,26],[99,35,99,37],[101,35,101,37],[102,35,102,37],[98,35,98,37],[72,1,77,1],[131,8,131,10],[131,11,131,14],[124,17,124,33],[125,28,125,30],[125,35,125,37],[127,15,128,18],[127,35,127,37],[114,11,114,14],[114,21,114,29],[115,11,115,14],[116,11,116,14],[117,21,117,29],[118,8,118,10],[118,11,118,14],[103,15,103,18],[104,15,105,18],[106,15,108,18],[109,15,111,18],[109,21,109,33],[94,24,94,32],[94,35,94,37],[119,1,130,1],[119,6,119,7],[16,35,16,37],[17,35,17,37],[18,35,18,37],[19,35,19,37],[20,35,20,37],[21,35,21,37],[22,35,22,37],[23,35,23,37],[24,35,24,37],[58,35,58,37],[59,35,59,37],[60,35,60,37],[61,35,61,37],[44,35,44,37],[43,35,43,37],[38,35,38,37],[47,35,47,37],[48,35,48,37],[49,35,49,37],[50,35,50,37],[51,35,51,37],[52,35,52,37],[39,35,39,37],[40,35,40,37],[41,35,41,37],[42,35,42,37],[56,35,56,37],[57,35,57,37],[82,35,82,37],[83,35,83,37],[84,35,84,37],[90,35,90,37],[85,35,85,37],[86,35,86,37],[87,35,87,37],[88,35,88,37],[89,35,89,37],[96,35,96,37],[100,35,100,37],[65,35,65,37],[62,35,62,37],[104,35,104,37],[105,35,105,37],[6,10,6,25],[6,26,6,38],[27,6,30,7],[27,8,27,10],[27,11,27,14],[27,22,27,30],[27,35,27,37],[95,35,95,37],[31,8,31,10],[31,11,33,14],[32,8,32,10],[33,8,33,10],[90,6,90,7],[21,6,21,7],[23,6,23,7],[34,6,34,7],[28,8,28,10],[28,11,29,14],[66,35,66,37],[81,35,81,37],[131,35,131,37],[12,35,12,37],[13,35,13,37],[34,35,34,37],[35,35,35,37],[36,35,36,37],[91,35,91,37],[92,35,92,37],[93,35,93,37],[112,35,112,37],[113,35,113,37],[114,35,114,37],[115,35,115,37],[119,35,119,37],[120,35,120,37],[97,35,97,37],[28,35,28,37],[29,35,29,37],[30,35,30,37],[31,35,31,37],[32,35,32,37],[33,35,33,37],[63,35,63,37],[64,35,64,37],[49,20,49,30],[119,8,121,10],[119,11,120,14],[120,2,121,5],[121,11,121,14],[123,8,127,10],[123,11,125,14],[89,8,89,10],[89,11,89,14],[70,2,70,5],[70,6,71,7],[70,8,70,10],[82,2,82,5],[82,8,82,10],[70,11,70,37],[82,11,82,14],[68,1,68,11],[68,12,68,39],[95,8,98,10],[53,35,53,37],[54,35,54,37],[55,35,55,37]]}
[]
[]
[null,"設計内容説明書　【一戸建て住宅（木造軸組・枠組壁工法）】"]
[]
[null,"建築物の名称",null,null,null,null,null,null,null,null,{"$f":"IF(設計申請書!$L$192<>\"\",設計申請書!$L$192,\"\")","v":""}]
[null,"建築物の所在地",null,null,null,null,null,null,null,null,{"$f":"IF(設計申請書!$I$158<>\"\",設計申請書!$I$158,\"\")","v":""}]
[null,"設計者氏名",null,null,null,null,null,null,null,"　",{"$f":"IF(設計申請書!$L$79<>\"\",設計申請書!$L$79,\"\")","v":""},null,null,null,null,null,null,null,null,null,null,null,null,null,null,null,{"$f":"IF(設計申請書!$L$77<>\"\",設計申請書!$L$77,\"\")","v":""}]
[null,"評価者氏名",null,null,null,null,null,null,null,null,"確認書記載による"]
[]
[null,"―必須項目―　"]
[null,null,"性能表示　　　　",null,null,null,"等級\n表示",null,"確認",null,null,"設計内容説明欄",null,null,null,null,null,null,null,null,null,null,null,null,null,null,null,null,null,null,null,null,null,null,null,null,null,null,"設計\n内容\n確認欄"]
[null,null,"事項",null,null,null,null,null,"項目",null,null,"項目",null,null,null,"設計内容",null,null,null,null,null,null,null,null,null,null,null,null,null,null,null,null,null,null,"記載図書"]
[null,"1構造の安定に関すること","１－１",null,null,null,"等級",null,"構造躯体",null,null,"地震力及び",null,null,null,"□","壁量計算による",null,null,null,null,null,null,null,null,null,null,null,null,null,null,null,null,null,"□","仕様書"]
[null,null,"耐震等級",null,null,null,{"$f":"_xlfn.IFS(自己評価書!$L$12=3,\"■\",TRUE,\"□\")","v":"□"},3,"及び",null,null,"風圧力",null,null,null,"□","許容応力度計算による(ルート1)",null,null,null,null,null,null,null,null,null,null,null,null,null,null,null,null,null,"□","意匠図"]
[null,null,"（倒壊等防止）",null,null,null,{"$f":"_xlfn.IFS(自己評価書!$L$12=2,\"■\",TRUE,\"□\")","v":"□"},2,"基礎等",null,null,null,null,null,null,"□","その他",null,null,"（",null,null,null,null,null,null,null,null,null,null,null,"）",null,null,"□","構造図"]
[null,null,{"$f":"自己評価書!$E$14","v":"□"},"評価対象外",null,null,{"$f":"_xlfn.IFS(自己評価書!$L$12=1,\"■\",TRUE,\"□\")","v":"□"},1,null,null,null,"基礎",null,null,null,"□","建築基準法の規定による",null,null,null,null,null,null,null,null,null,null,null,null,null,null,null,null,null,"□","計算書"]
[null,null,null,"(免震建築物)",null,null,null,null,null,null,null,null,null,null,null,"□","許容応力度計算による",null,null,null,null,null,null,null,null,null,null,null,null,null,null,null,null,null,"□"]
[null,null,null,null,null,null,null,null,null,null,null,null,null,null,null,"□","スパン表",null,null,"（",null,null,null,null,null,null,null,null,null,null,null,"）",null,null,"□"]
[null,null,null,null,null,null,null,null,null,null,null,null,null,null,null,"□","その他",null,null,"（",null,null,null,null,null,null,null,null,null,null,null,"）",null,null,"□"]
[null,null,null,null,null,null,null,null,null,null,null,"横架材",null,null,null,"□","許容応力度計算による",null,null,null,null,null,null,null,null,null,null,null,null,null,null,null,null,null,"□"]
[null,null,"１－３",null,null,null,{"$f":"自己評価書!$O$15","v":"□"},null,null,null,null,null,null,null,null,"□","スパン表",null,null,"（",null,null,null,null,null,null,null,null,null,null,null,"）",null,null,"□"]
[null,null,"その他",null,null,null,"免震",null,null,null,null,null,null,null,null,"□","その他",null,null,"（",null,null,null,null,null,null,null,null,null,null,null,"）",null,null,"□"]
[null,null,null,null,null,null,{"$f":"自己評価書!$K$15","v":"□"},null,null,null,null,"免震建築物",null,null,null,"□","平成12年建設省告示第2009号第1第3号による免震建築物",null,null,null,null,null,null,null,null,null,null,null,null,null,null,null,null,null,"□"]
[null,null,null,null,null,null,"その他",null,null,null,null,null,null,null,null,"□","免震層及び免震材料の維持管理に関する図書の作成",null,null,null,null,null,null,null,null,null,null,null,null,null,null,null,null,null,"□"]
[null,null,null,null,null,null,null,null,null,null,null,"認定書等活用",null,null,null,"□","認定書等の活用",null,null,null,null,null,null,null,null,null,null,null,null,null,null,null,null,null,"□"]
[null,null,null,null,null,null,null,null,null,null,null,"限界耐力計算",null,null,null,"□","限界耐力計算による",null,null,null,null,null,null,null,null,null,null,null,null,null,null,null,null,null,"□"]
[null,null,null,null,null,null,null,null,null,null,null,null,null,null,null,"□","各階の安全限界変形の基準に適合",null,null,null,null,null,null,null,null,null,null,null,null,null,null,null,null,null,"□"]
[null,null,"１－６",null,null,null,null,null,"地盤及び",null,null,"地盤の種類",null,null,null,"・","支持地盤の種類",null,null,null,null,"（",null,null,null,null,null,null,null,null,null,"）",null,null,"□","調査報告書"]
[null,null,"地盤又は杭の許容支持力等及びその設定方法",null,null,null,null,null,"地業",null,null,"許容支持力等及び設定根拠",null,null,null,"■","自己評価書に同じ",null,null,null,null,null,null,null,null,null,null,null,null,null,null,null,null,null,"□","改良検討書"]
[null,null,null,null,null,null,null,null,null,null,null,null,null,null,null,null,null,null,null,null,null,null,null,null,null,null,null,null,null,null,null,null,null,null,"□","改良位置図"]
[null,null,null,null,null,null,null,null,null,null,null,null,null,null,null,null,null,null,null,null,null,null,null,null,null,null,null,null,null,null,null,null,null,null,"□","構造伏図"]
[null,null,"１－７",null,null,null,null,null,"基礎",null,null,"基礎の構造方法及び形式等",null,null,null,"■","自己評価書に同じ",null,null,null,null,null,null,null,null,null,null,null,null,null,null,null,null,null,"□","構造計算書"]
[null,null,"基礎の構造方法及び形式等",null,null,null,null,null,null,null,null,null,null,null,null,null,null,null,null,null,null,null,null,null,null,null,null,null,null,null,null,null,null,null,"□","構造図"]
[null,null,null,null,null,null,null,null,null,null,null,null,null,null,null,null,null,null,null,null,null,null,null,null,null,null,null,null,null,null,null,null,null,null,"□","意匠図"]
[null,"３劣化の軽減に関すること","３－１",null,null,null,"等級",null,"外壁の",null,null,"外壁の構造等",null,null,null,"□","外壁通気構造等",null,null,null,null,"□","その他",null,"（",null,null,null,null,null,null,null,"）",null,"□","仕様書"]
[null,null,"劣化対策等級",null,null,null,{"$f":"_xlfn.IFS(自己評価書!$L$35=3,\"■\",TRUE,\"□\")","v":"□"},3,"軸組等",null,null,"（地面から１m）",null,null,null,null,"柱\n・\n枠組部",null,"□","製材、集成材等＋薬剤処理（現場処理可）",null,null,null,null,null,null,null,null,null,null,null,null,null,null,"□","意匠図"]
[null,null,"（構造躯体等）",null,null,null,{"$f":"_xlfn.IFS(自己評価書!$L$35=2,\"■\",TRUE,\"□\")","v":"□"},2,null,null,null,null,null,null,null,null,null,null,"□","製材、集成材等＋小径13.5㎝",null,null,null,null,null,null,null,null,null,null,null,null,null,null,"□","構造図"]
[null,null,null,null,null,null,{"$f":"_xlfn.IFS(自己評価書!$L$35=1,\"■\",TRUE,\"□\")","v":"□"},1,null,null,null,null,null,null,null,null,null,null,"□","製材、集成材等＋耐久性区分Ｄ1＋小径12.0㎝以上",null,null,null,null,null,null,null,null,null,null,null,null,null,null,"□","資料"]
[null,null,null,null,null,null,null,null,null,null,null,null,null,null,null,null,null,null,"□","耐久性区分Ｄ１のうち、ヒノキ等の高耐久樹種",null,null,null,null,null,null,null,null,null,null,null,null,null,null,"□"]
[null,null,null,null,null,null,null,null,null,null,null,null,null,null,null,null,null,null,"□","Ｋ３以上の薬剤処理（工場処理）",null,null,null,null,null,null,null,null,null,null,null,null,null,null,"□"]
[null,null,null,null,null,null,null,null,null,null,null,null,null,null,null,null,"軸材\n・\n下地材",null,"□","製材、集成材等＋薬剤処理（現場処理可）",null,null,null,null,null,null,null,null,null,null,null,null,null,null,"□"]
[null,null,null,null,null,null,null,null,null,null,null,null,null,null,null,null,null,null,"□","耐久性区分Ｄ１のうち、ヒノキ等の高耐久樹種",null,null,null,null,null,null,null,null,null,null,null,null,null,null,"□"]
[null,null,null,null,null,null,null,null,null,null,null,null,null,null,null,null,null,null,"□","Ｋ３以上の薬剤処理（工場処理）",null,null,null,null,null,null,null,null,null,null,null,null,null,null,"□"]
[null,null,null,null,null,null,null,null,null,null,null,null,null,null,null,null,"合板",null,"□","構造用合板等＋薬剤処理（現場処理可）",null,null,null,null,null,null,null,null,null,null,null,null,null,null,"□"]
[null,null,null,null,null,null,null,null,null,null,null,null,null,null,null,null,null,null,"□","Ｋ３以上の薬剤処理（工場処理）",null,null,null,null,null,null,null,null,null,null,null,null,null,null,"□"]
[null,null,null,null,null,null,null,null,null,null,null,null,null,null,null,"□","その他",null,null,"（",null,null,null,null,null,null,null,null,null,null,null,"）",null,null,"□"]
[null,null,null,null,null,null,null,null,"土台",null,null,"防腐・防蟻",null,null,null,"□","土台に接する外壁下端水切り",null,null,null,null,null,null,null,null,null,null,null,null,null,null,null,null,null,"□","仕様書"]
[null,null,null,null,null,null,null,null,null,null,null,"処理",null,null,null,"□","Ｋ３以上の薬剤処理（工場処理）",null,null,null,null,null,null,null,null,null,null,null,null,null,null,null,null,null,"□","意匠図"]
[null,null,null,null,null,null,null,null,null,null,null,null,null,null,null,"□","耐久性区分Ｄ１のうち、ヒノキ等の高耐久樹種",null,null,null,null,null,null,null,null,null,null,null,null,null,null,null,null,null,"□","構造図"]
[null,null,null,null,null,null,null,null,null,null,null,null,null,null,null,"□","その他",null,null,"（",null,null,null,null,null,null,null,null,null,null,null,"）",null,null,"□","資料"]
[null,null,null,null,null,null,null,null,"浴室・脱衣",null,null,"防水上の措置",null,null,null,"・","浴室",null,"□","浴室ユニット",null,null,null,null,null,"□","外壁軸組等の防腐措置等",null,null,null,null,null,null,null,"□","仕様書"]
[null,null,null,null,null,null,null,null,"室の防水",null,null,null,null,null,null,null,null,null,"□","その他",null,null,"（",null,null,null,null,null,null,null,null,null,"）",null,"□","意匠図"]
[null,null,null,null,null,null,null,null,null,null,null,null,null,null,null,"・","脱衣室",null,"□","防水上有効な仕上げ",null,null,null,null,null,"□","外壁軸組等の防腐措置等",null,null,null,null,null,null,null,"□","構造図"]
[null,null,null,null,null,null,null,null,null,null,null,null,null,null,null,null,null,null,"□","その他",null,null,"（",null,null,null,null,null,null,null,null,null,"）",null,"□","資料"]
[null,null,null,null,null,null,null,null,"地盤",null,null,"防蟻措置",null,null,null,"・","防蟻措置",null,null,null,"（","□","有",null,"□","対象区域外）",null,null,null,null,null,null,null,null,"□","仕様書"]
[null,null,null,null,null,null,null,null,null,null,null,null,null,null,null,null,"□","べた基礎等",null,null,null,"□","土壌処理",null,null,null,null,null,null,null,null,null,null,null,"□","意匠図"]
[null,null,null,null,null,null,null,null,null,null,null,null,null,null,null,null,"□","その他",null,null,"（",null,null,null,null,null,null,null,null,null,"）",null,null,null,"□","構造図"]
[null,null,null,null,null,null,null,null,"基礎高さ",null,null,"基礎高さ",null,null,null,"□","地面から土台下端までの高さが400mm以上",null,null,null,null,null,null,null,null,null,null,null,null,null,null,null,null,null,"□","資料"]
[null,null,null,null,null,null,null,null,"床下防湿",null,null,"床下地盤面の",null,null,null,"・","防湿方法",null,null,null,"□","コンクリート",null,null,null,"□","防湿フィルム",null,null,null,null,null,null,null,"□","仕様書"]
[null,null,null,null,null,null,null,null,"措置等",null,null,"防湿措置",null,null,null,null,null,null,null,null,"□","その他",null,null,"（",null,null,null,null,null,null,null,"）",null,"□","意匠図"]
[null,null,null,null,null,null,null,null,null,null,null,"床下換気措置",null,null,null,"□","換気措置",null,null,null,"□","換気口",null,null,"□","ねこ土台",null,null,null,null,null,null,null,null,"□","構造図"]
[null,null,null,null,null,null,null,null,null,null,null,null,null,null,null,null,null,null,null,null,"□","その他",null,null,"（",null,null,null,null,null,null,null,"）",null,"□","資料"]
[null,null,null,null,null,null,null,null,null,null,null,null,null,null,null,"□","基礎断熱工法",null,null,null,null,null,null,null,null,null,null,null,null,null,"※一部基礎断熱工法の場合もチェック",null,null,null,"□"]
[null,null,null,null,null,null,null,null,"小屋裏",null,null,"小屋裏換気",null,null,null,"□","小屋裏有り",null,null,"（換気措置による）",null,null,null,null,null,null,null,null,null,null,null,null,null,null,"□","仕様書"]
[null,null,null,null,null,null,null,null,"換気",null,null,"の措置",null,null,null,"□","小屋裏無し",null,null,"（屋根断熱工法・その他の措置）",null,null,null,null,null,null,null,null,null,null,null,null,null,null,"□","意匠図"]
[null,null,null,null,null,null,null,null,null,null,null,null,null,null,null,null,null,null,null,null,null,null,null,null,null,null,null,null,null,null,null,null,null,null,"□","計算書"]
[null,null,null,null,null,null,null,null,null,null,null,null,null,null,null,null,null,null,null,null,null,null,null,null,null,null,null,null,null,null,null,null,null,null,"□","資料"]
[]
[null,"建築物の名称",null,null,null,null,null,null,null,null,null,null,{"$f":"K5","v":""}]
[null,"―必須項目―　"]
[null,null,"性能表示　　　　",null,null,null,"等級\n表示",null,"確認",null,null,"設計内容説明欄",null,null,null,null,null,null,null,null,null,null,null,null,null,null,null,null,null,null,null,null,null,null,null,null,null,null,"設計\n内容\n確認欄"]
[null,null,"事項",null,null,null,null,null,"項目",null,null,"項目",null,null,null,"設計内容",null,null,null,null,null,null,null,null,null,null,null,null,null,null,null,null,null,null,"記載図書"]
[null,"３劣化の軽減","３－１",null,null,null,null,null,null,null,null,"小屋裏空間",null,null,null,"□","小屋裏空間ごとに点検口を設置",null,null,null,null,null,null,null,null,null,null,null,null,null,null,null,null,null,"□","仕様書"]
[null,null,"劣化対策等級",null,null,null,null,null,null,null,null,"床下空間",null,null,null,"□","床下空間ごとに点検口を設置",null,null,null,null,null,null,null,null,null,null,null,null,null,null,null,null,null,"□","意匠図"]
[null,null,"（構造躯体等）",null,null,null,null,null,"点検措置",null,null,"床下空間の\n有効高さ",null,null,null,"□","床下空間の有効高さ330㎜以上",null,null,null,null,null,null,null,null,null,null,null,null,null,null,null,null,null,"□","計算書"]
[null,null,null,null,null,null,null,null,null,null,null,null,null,null,null,null,"点検に支障のない範囲で上記寸法に満たない部分の有無",null,null,null,null,null,null,null,null,null,null,null,null,null,null,null,null,null,"□","資料"]
[null,null,null,null,null,null,null,null,null,null,null,null,null,null,null,null,null,null,null,"（","□","無",null,null,"□","有","）",null,null,null,null,null,null,null,"□"]
[null,null,null,null,null,null,null,null,"構造部材等",null,null,null,null,null,null,"□","建築基準法施行令第37条、第41条、第49条及び第80条の２の規定に適合",null,null,null,null,null,null,null,null,null,null,null,null,null,null,null,null,null,"□"]
[null,null,null,null,null,null,null,null,"認定書等",null,null,"認定書等活用",null,null,null,"□","認定書等の活用",null,null,null,null,null,null,null,null,null,null,null,null,null,null,null,null,null,"□"]
[null,"４維持管理・更新への配慮","４－１",null,null,null,null,null,"専用配管",null,null,"コンクリート",null,null,null,"□","給水管、排水管、給湯管及びガス管のコンクリート内への埋め込み無し\n（コンクリートブロックを含む）",null,null,null,null,null,null,null,null,null,null,null,null,null,null,null,null,null,"□","仕様書"]
[null,null,"維持管理",null,null,null,null,null,null,null,null,"内埋込み配管",null,null,null,null,null,null,null,null,null,null,null,null,null,null,null,null,null,null,null,null,null,null,"□","意匠図"]
[null,null,"対策等級",null,null,null,null,null,"地中",null,null,"埋設管上の",null,null,null,"□","給水管、排水管、給湯管及びガス管の埋設管上へのコンクリート打設無し\n（コンクリートブロックを含む）",null,null,null,null,null,null,null,null,null,null,null,null,null,null,null,null,null,"□","資料"]
[null,null,"（専用配管）",null,null,null,null,null,"埋設管",null,null,"ｺﾝｸﾘｰﾄ打設",null,null,null,null,null,null,null,null,null,null,null,null,null,null,null,null,null,null,null,null,null,null,"□"]
[null,null,null,null,null,null,null,null,null,null,null,null,null,null,null,"（","□","適用除外の土間コン打設有",null,null,null,null,null,null,null,"□","条例等による適用外の地域",null,null,null,null,null,null,"）","□"]
[null,null,null,null,null,null,null,null,"排水管の",null,null,"内面の仕様",null,null,null,"□","排水管内面が平滑である",null,null,null,null,null,null,null,null,null,null,null,null,null,null,null,null,null,"□"]
[null,null,null,null,null,null,null,null,"性状等",null,null,"設置状態",null,null,null,"□","たわみ、抜け等が生じないよう設置",null,null,null,null,null,null,null,null,null,null,null,null,null,null,null,null,null,"□"]
[null,null,null,null,null,null,null,null,"専用",null,null,"排水管の",null,null,null,"□","便所、その他水廻りに必要な清掃措置の確保",null,null,null,null,null,null,null,null,null,null,null,null,null,null,null,null,null,"□"]
[null,null,null,null,null,null,null,null,"排水管",null,null,"清掃措置",null,null,null,null,null,null,null,null,null,null,null,null,null,null,null,null,null,null,null,null,null,null,"□"]
[null,null,null,null,null,null,null,null,"配管",null,null,"主要接合部等",null,null,null,"□","主要接合部等の点検措置等の確保",null,null,null,null,null,null,null,null,null,null,null,null,null,null,null,null,null,"□"]
[null,null,null,null,null,null,null,null,"点検口",null,null,"の点検措置",null,null,null,null,null,null,null,null,null,null,null,null,null,null,null,null,null,null,null,null,null,null,"□"]
[null,"５温熱環境・エネルギー消費量に関すること","５－１",null,null,null,"等級",null,"地域区分・適用する\n基準",null,null,"地域区分",null,null,null,{"$f":"_xlfn.IFS(自己評価書!$S$42=1,\"■\",TRUE,\"□\")","v":"□"},"１地域",null,null,{"$f":"_xlfn.IFS(自己評価書!$S$42=2,\"■\",TRUE,\"□\")","v":"□"},"２地域",null,null,{"$f":"_xlfn.IFS(自己評価書!$S$42=3,\"■\",TRUE,\"□\")","v":"□"},"３地域",null,null,{"$f":"_xlfn.IFS(自己評価書!$S$42=4,\"■\",TRUE,\"□\")","v":"□"},"４地域",null,null,null,null,null,"□","仕様書"]
[null,null,"断熱等",null,null,null,{"$f":"_xlfn.IFS(自己評価書!$L$42=5,\"■\",TRUE,\"□\")","v":"□"},5,null,null,null,null,null,null,null,{"$f":"_xlfn.IFS(自己評価書!$S$42=5,\"■\",TRUE,\"□\")","v":"□"},"５地域",null,null,{"$f":"_xlfn.IFS(自己評価書!$S$42=6,\"■\",TRUE,\"□\")","v":"□"},"６地域",null,null,{"$f":"_xlfn.IFS(自己評価書!$S$42=7,\"■\",TRUE,\"□\")","v":"□"},"７地域",null,null,{"$f":"_xlfn.IFS(自己評価書!$S$42=8,\"■\",TRUE,\"□\")","v":"□"},"８地域",null,null,null,null,null,"□","意匠図"]
[null,null,"性能等級",null,null,null,{"$f":"_xlfn.IFS(自己評価書!$L$42=4,\"■\",TRUE,\"□\")","v":"□"},4,null,null,null,"適用する基準",null,null,null,"□","性能基準",null,null,null,null,null,null,null,null,null,null,null,null,null,null,null,null,null,"□","計算書"]
[null,null,null,null,null,null,{"$f":"_xlfn.IFS(自己評価書!$L$42=3,\"■\",TRUE,\"□\")","v":"□"},3,null,null,null,null,null,null,null,"□","仕様基準（等級４のみ）",null,null,null,null,null,null,null,null,null,null,null,null,null,null,null,null,null,"□","資料"]
[null,null,null,null,null,null,{"$f":"_xlfn.IFS(自己評価書!$L$42=2,\"■\",TRUE,\"□\")","v":"□"},2,null,null,null,null,null,null,null,"□","国土交通大臣が認める方法",null,null,null,null,null,null,"（",null,null,null,null,null,null,null,null,null,"）","□"]
[null,null,null,null,null,null,{"$f":"_xlfn.IFS(自己評価書!$L$42=1,\"■\",TRUE,\"□\")","v":"□"},1,"躯体・開口部の断熱性能等",null,null,"性能基準",null,null,null,"□","外皮平均熱貫流率の基準に適合",null,null,null,null,null,null,null,null,null,null,null,null,null,null,null,null,null,"□"]
[null,null,null,null,null,null,null,null,null,null,null,null,null,null,null,null,null,null,"□","UAの値を評価書に記載する",null,null,null,null,null,null,null,null,null,null,null,null,null,null,"□"]
[null,null,null,null,null,null,null,null,null,null,null,null,null,null,null,null,null,null,null,"外皮平均熱貫流率　UA",null,null,null,null,null,null,null,"（",null,null,null,"W/㎡K）",null,null,"□"]
[null,null,null,null,null,null,null,null,null,null,null,null,null,null,null,"※8地域を除く",null,null,null,null,null,null,null,null,null,null,null,null,null,null,null,null,"※小数点第三位を切り上げ",null,"□"]
[null,null,null,null,null,null,null,null,null,null,null,null,null,null,null,"□","冷房期の平均日射熱取得率の基準に適合",null,null,null,null,null,null,null,null,null,null,null,null,null,null,null,null,null,"□"]
[null,null,null,null,null,null,null,null,null,null,null,null,null,null,null,null,null,null,"□","ηACの値を評価書に記載する",null,null,null,null,null,null,null,null,null,null,null,null,null,null,"□"]
[null,null,null,null,null,null,null,null,null,null,null,null,null,null,null,null,null,null,null,null,null,null,null,null,null,null,null,"冷房期の平均日射熱取得率　ηAC　（",null,null,null,"）",null,null,"□"]
[null,null,null,null,null,null,null,null,null,null,null,null,null,null,null,"※1～4地域を除く",null,null,null,null,null,null,null,null,null,null,null,null,null,null,null,null,"※小数点第二位を切り上げ",null,"□"]
[null,null,null,null,null,null,null,null,null,null,null,"仕様基準",null,null,null,"適用条件",null,null,null,null,"□","開口部比率の基準に適合",null,null,null,null,null,null,null,null,null,null,null,null,"□"]
[null,null,null,null,null,null,null,null,null,null,null,null,null,null,null,"躯体の断熱\n性能等",null,null,null,null,"□","熱貫流率の基準に適合",null,null,null,null,null,null,null,null,null,null,null,null,"□"]
[null,null,null,null,null,null,null,null,null,null,null,null,null,null,null,null,null,null,null,null,"□","断熱材の熱抵抗の基準に適合",null,null,null,null,null,null,null,null,null,null,null,null,"□"]
[null,null,null,null,null,null,null,null,null,null,null,null,null,null,null,"開口部の断熱性能等",null,null,null,"・","開口部比率の区分",null,null,null,null,null,null,null,null,null,null,null,null,null,"□"]
[null,null,null,null,null,null,null,null,null,null,null,null,null,null,null,null,null,null,null,null,"□","区分（い）",null,null,"□","区分（ろ）",null,null,"□","区分（は）",null,null,null,null,"□"]
[null,null,null,null,null,null,null,null,null,null,null,null,null,null,null,null,null,null,null,null,"□","区分（に）",null,null,null,null,null,null,null,null,null,null,null,null,"□"]
[null,null,null,null,null,null,null,null,null,null,null,null,null,null,null,"緩和措置",null,null,null,null,"□","外気に接する床をその他の部分とみなす（５％緩和）",null,null,null,null,null,null,null,null,null,null,null,null,"□"]
[null,null,null,null,null,null,null,null,null,null,null,null,null,null,null,null,null,null,null,null,"□","窓の断熱（２％緩和）",null,null,null,null,null,"□","窓の日射（４％緩和）",null,null,null,null,null,"□"]
[null,null,null,null,null,null,null,null,null,null,null,null,null,null,null,null,null,null,null,null,null,null,null,null,null,null,null,null,"※天窓以外",null,null,null,null,null,"□"]
[null,null,null,null,null,null,null,null,"結露防止",null,null,"繊維系断熱材",null,null,null,"・","繊維系断熱材等の使用（",null,null,null,null,null,null,"□","有",null,"□","無　）",null,null,null,null,null,null,"□","仕様書"]
[null,null,null,null,null,null,null,null,"対策",null,null,"防湿層",null,null,null,"・","防湿層の設置",null,null,null,null,null,"（","□","有",null,"□","無　）",null,null,null,null,null,null,"□","意匠図",null,null,null,null,null,null,null,null,null,null,null,null,null,null,null,null,null,null,null,null,null,null,null,null,null,null,null,null,null,null,null,null,null,null,null,null,null,null,null,null,{"$f":"IF(AA113=\"□\",1,0)","v":1}]
[null,null,null,null,null,null,null,null,null,null,null,"の設置",null,null,null,"□","除外規定適用",null,null,null,"（",null,null,null,null,null,null,null,null,null,"）",null,null,null,"□","計算書"]
[null,null,null,null,null,null,null,null,null,null,null,"通気層",null,null,null,"・","通気層の設置",null,null,null,null,null,"（","□","有",null,"□","無　）",null,null,null,null,null,null,"□","資料"]
[null,null,null,null,null,null,null,null,null,null,null,"の設置",null,null,null,"・","防風層の設置",null,null,null,null,null,"（","□","有",null,"□","無　）",null,null,null,null,null,null,"□"]
[null,null,null,null,null,null,null,null,null,null,null,null,null,null,null,"□","除外規定適用",null,null,null,"（",null,null,null,null,null,null,null,null,null,"）",null,null,null,"□"]
[null,null,null,null,null,null,null,null,"認定書等",null,null,"認定書等活用",null,null,null,"□","認定書等の活用",null,null,null,null,null,null,null,null,null,null,null,null,null,null,null,null,null,"□"]
[null,null,"５－２",null,null,null,"等級",null,"地域区分・適用する\n基準",null,null,"地域区分",null,null,null,{"$f":"_xlfn.IFS(自己評価書!$S$47=1,\"■\",TRUE,\"□\")","v":"□"},"１地域",null,null,{"$f":"_xlfn.IFS(自己評価書!$S$47=2,\"■\",TRUE,\"□\")","v":"□"},"２地域",null,null,{"$f":"_xlfn.IFS(自己評価書!$S$47=3,\"■\",TRUE,\"□\")","v":"□"},"３地域",null,null,{"$f":"_xlfn.IFS(自己評価書!$S$47=4,\"■\",TRUE,\"□\")","v":"□"},"４地域",null,null,null,null,null,"□","仕様書"]
[null,null,"一次ｴﾈﾙｷﾞｰ\n消費量等級",null,null,null,{"$f":"_xlfn.IFS(自己評価書!$L$47=6,\"■\",TRUE,\"□\")","v":"□"},6,null,null,null,null,null,null,null,{"$f":"_xlfn.IFS(自己評価書!$S$47=5,\"■\",TRUE,\"□\")","v":"□"},"５地域",null,null,{"$f":"_xlfn.IFS(自己評価書!$S$47=6,\"■\",TRUE,\"□\")","v":"□"},"６地域",null,null,{"$f":"_xlfn.IFS(自己評価書!$S$47=7,\"■\",TRUE,\"□\")","v":"□"},"７地域",null,null,{"$f":"_xlfn.IFS(自己評価書!$S$47=8,\"■\",TRUE,\"□\")","v":"□"},"８地域",null,null,null,null,null,"□","意匠図"]
[null,null,null,null,null,null,{"$f":"_xlfn.IFS(自己評価書!$L$47=5,\"■\",TRUE,\"□\")","v":"□"},5,null,null,null,"適用する基準",null,null,null,"□","性能基準",null,null,null,null,null,null,null,null,null,null,null,null,null,null,null,null,null,"□","設備図"]
[null,null,"□","非選択",null,null,{"$f":"_xlfn.IFS(自己評価書!$L$47=4,\"■\",TRUE,\"□\")","v":"□"},4,null,null,null,null,null,null,null,"□","仕様基準（等級４のみ）",null,null,null,null,null,null,null,null,null,null,null,null,null,null,null,null,null,"□","計算書"]
[null,null,null,null,null,null,{"$f":"_xlfn.IFS(自己評価書!$L$47=1,\"■\",TRUE,\"□\")","v":"□"},1,"一次エネルギー消費量に関する基本事項",null,null,"性能基準",null,null,null,"□","一次エネルギー消費量の基準に適合",null,null,null,null,null,null,null,null,null,null,null,null,null,null,null,null,null,"□","資料"]
[null,null,null,null,null,null,null,null,null,null,null,null,null,null,null,null,"□","単位床面積当たりの一次エネルギー消費量の値を評価書に記載する",null,null,null,null,null,null,null,null,null,null,null,null,null,null,null,null,"□"]
[null,null,null,null,null,null,null,null,null,null,null,null,null,null,null,null,null,"単位床面積当たりの一次エネルギー消費量",null,null,null,null,null,null,null,null,null,"（",null,null,null,"MJ/㎡・年）",null,null,"□"]
[null,null,null,null,null,null,null,null,null,null,null,null,null,null,null,null,null,null,null,null,null,null,null,null,null,null,null,null,null,null,null,null,"※整数未満の端数を切り上げ",null,"□"]
[null,null,null,null,null,null,null,null,null,null,null,null,null,null,null,"設備機器に\n係る概要",null,null,null,"□","Webプログラム出力票による",null,null,null,null,null,null,null,null,null,null,null,null,null,"□"]
[null,null,null,null,null,null,null,null,null,null,null,null,null,null,null,null,null,null,null,"□","その他",null,null,null,null,null,null,null,null,null,null,null,null,null,"□"]
[null,null,null,null,null,null,null,null,null,null,null,"仕様基準",null,null,null,"適用条件",null,null,null,"□","外皮面積比率の基準に適合",null,null,null,null,null,null,null,null,null,null,null,null,null,"□"]
[null,null,null,null,null,null,null,null,null,null,null,null,null,null,null,"□","申請者が提案する設備仕様における同等性の確認を利用",null,null,null,null,null,null,null,null,null,null,null,null,null,null,null,null,null,"□"]
[null,null,null,null,null,null,null,null,"認定書等",null,null,"認定書等活用",null,null,null,"□","認定書等の活用",null,null,null,null,null,null,null,null,null,null,null,null,null,null,null,null,null,"□"]

{"sheet":"設計内容説明書_選択","index":10,"n_rows":142,"n_cols":79,"rows_kept":142,"cut":false,"hidden":false,"merged":[[45,35,45,37],[6,2,6,5],[6,6,7,7],[6,8,6,10],[6,11,6,37],[6,38,7,39],[7,2,7,5],[7,8,7,10],[7,11,7,14],[10,35,10,37],[11,35,11,37],[38,2,38,5],[41,21,41,30],[42,6,42,7],[42,8,43,10],[42,11,42,14],[43,2,45,5],[43,11,43,14],[44,8,46,10],[44,11,44,14],[45,11,45,14],[46,11,46,14],[12,35,12,37],[13,35,13,37],[3,1,3,8],[3,10,3,38],[10,8,10,10],[10,20,10,29],[11,3,11,5],[11,11,11,14],[12,2,12,5],[12,6,12,7],[7,15,7,33],[7,34,7,37],[8,1,17,1],[8,2,8,5],[8,6,8,7],[8,8,8,10],[8,11,8,14],[9,2,9,5],[9,8,9,10],[9,11,9,14],[13,2,13,5],[15,2,15,5],[15,6,15,7],[15,11,15,14],[8,35,8,37],[9,35,9,37],[18,1,35,1],[18,6,18,7],[18,8,18,10],[18,11,18,14],[19,2,20,5],[22,2,22,5],[36,8,36,10],[36,11,36,14],[37,2,37,5],[37,8,37,10],[37,11,37,14],[22,11,22,14],[25,11,25,14],[27,11,27,14],[29,8,29,10],[29,11,29,14],[32,11,32,14],[47,6,47,7],[47,8,48,10],[47,11,47,14],[48,2,50,5],[48,11,48,14],[49,8,53,10],[49,11,49,14],[51,11,51,14],[52,11,52,14],[53,11,53,14],[60,21,60,29],[61,6,61,7],[61,8,61,10],[61,11,61,14],[62,6,62,7],[62,8,62,10],[62,11,62,14],[56,21,56,29],[57,8,57,10],[67,8,67,10],[58,2,59,5],[58,8,58,10],[58,11,58,14],[59,8,59,10],[54,1,67,1],[54,6,54,7],[54,8,54,10],[54,11,54,14],[55,2,57,5],[55,6,55,7],[55,8,55,10],[63,8,63,10],[64,8,64,10],[64,11,64,14],[57,11,57,14],[65,8,65,10],[65,11,65,14],[66,8,66,10],[66,11,66,14],[68,1,72,1],[71,2,71,5],[71,23,71,24],[71,25,71,27],[71,29,71,30],[71,35,71,37],[72,23,72,24],[72,25,72,27],[72,29,72,30],[69,2,69,5],[69,25,69,27],[69,29,69,30],[70,23,70,24],[70,25,70,27],[70,29,70,30],[70,35,70,37],[80,16,80,28],[81,6,81,7],[81,11,81,14],[82,11,82,14],[83,11,83,14],[75,35,75,37],[76,11,76,14],[76,16,76,28],[76,35,76,37],[77,6,77,7],[77,11,77,14],[73,1,83,1],[73,6,73,7],[73,8,73,10],[73,11,73,14],[74,2,74,5],[74,8,74,10],[74,11,74,14],[75,11,75,14],[78,11,78,14],[79,11,79,14],[80,11,80,14],[84,11,84,14],[84,16,84,28],[85,6,85,7],[85,11,85,14],[86,11,86,14],[87,11,87,14],[91,2,92,5],[91,8,91,10],[93,8,93,10],[93,11,94,14],[88,11,88,14],[88,16,88,28],[89,8,89,10],[89,11,89,14],[89,35,89,37],[92,35,92,37],[103,11,103,14],[90,1,102,1],[90,6,90,7],[90,8,90,10],[90,11,92,14],[90,20,90,21],[90,25,90,30],[104,11,104,14],[105,11,105,14],[106,8,106,10],[106,11,107,14],[95,11,96,14],[95,35,95,37],[97,8,97,10],[97,11,97,14],[98,11,99,14],[98,35,98,37],[96,35,96,37],[99,35,99,37],[100,35,100,37],[101,35,101,37],[102,35,102,37],[103,35,103,37],[104,35,104,37],[105,35,105,37],[97,35,97,37],[106,35,106,37],[100,11,102,14],[115,8,115,10],[115,11,115,14],[116,8,116,10],[117,8,117,10],[117,11,117,14],[118,8,118,10],[118,11,118,14],[107,35,107,37],[108,11,111,14],[112,11,112,14],[113,8,113,10],[113,11,113,14],[114,8,114,10],[114,11,114,14],[114,35,114,37],[108,35,108,37],[109,35,109,37],[110,35,110,37],[111,35,111,37],[112,35,112,37],[115,35,115,37],[116,35,116,37],[113,35,113,37],[117,35,117,37],[123,6,126,7],[123,9,123,10],[123,11,123,14],[124,1,140,1],[125,35,125,37],[129,9,129,10],[129,11,129,14],[135,11,135,14],[118,35,118,37],[119,8,119,10],[120,8,120,10],[121,8,121,10],[122,8,122,10],[122,11,122,14],[119,35,119,37],[120,35,120,37],[121,35,121,37],[122,35,122,37],[124,35,124,37],[126,35,126,37],[127,35,127,37],[128,35,128,37],[129,35,129,37],[130,35,130,37],[14,35,14,37],[15,35,15,37],[16,35,16,37],[17,35,17,37],[22,35,22,37],[23,35,23,37],[24,35,24,37],[18,35,18,37],[19,35,19,37],[20,35,20,37],[21,35,21,37],[25,35,25,37],[26,35,26,37],[27,35,27,37],[28,35,28,37],[29,35,29,37],[30,35,30,37],[31,35,31,37],[32,35,32,37],[33,35,33,37],[34,35,34,37],[35,35,35,37],[40,35,40,37],[41,35,41,37],[46,35,46,37],[51,35,51,37],[52,35,52,37],[53,35,53,37],[58,35,58,37],[57,35,57,37],[36,35,36,37],[37,35,37,37],[38,35,38,37],[39,35,39,37],[42,35,42,37],[43,35,43,37],[44,35,44,37],[47,35,47,37],[48,35,48,37],[49,35,49,37],[50,35,50,37],[54,35,54,37],[55,35,55,37],[56,35,56,37],[59,35,59,37],[61,35,61,37],[62,35,62,37],[63,35,63,37],[64,35,64,37],[72,35,72,37],[77,35,77,37],[78,35,78,37],[79,35,79,37],[66,35,66,37],[69,35,69,37],[73,35,73,37],[74,35,74,37],[67,35,67,37],[68,35,68,37],[65,35,65,37],[60,35,60,37],[140,35,140,37],[80,35,80,37],[81,35,81,37],[82,35,82,37],[83,35,83,37],[84,35,84,37],[85,35,85,37],[86,35,86,37],[87,35,87,37],[88,35,88,37],[91,35,91,37],[131,35,131,37],[132,35,132,37],[133,35,133,37],[134,35,134,37],[135,35,135,37],[136,35,136,37],[137,35,137,37],[138,35,138,37],[139,35,139,37],[123,35,123,37],[93,35,93,37],[90,35,90,37],[94,35,94,37]]}
[]
[]
[]
[null,"建築物の名称",null,null,null,null,null,null,null,null,{"$f":"IF(設計申請書!$L$192<>\"\",設計申請書!$L$192,\"\")","v":""}]
[]
[null,"―選択項目―　"]
[null,null,"性能表示　　　　",null,null,null,"自己\n評価\n等級",null,"確認",null,null,"設計内容説明欄",null,null,null,null,null,null,null,null,null,null,null,null,null,null,null,null,null,null,null,null,null,null,null,null,null,null,"設計\n内容\n確認欄"]
[null,null,"事項",null,null,null,null,null,"項目",null,null,"項目",null,null,null,"設計内容",null,null,null,null,null,null,null,null,null,null,null,null,null,null,null,null,null,null,"記載図書"]
[null,"1構造の安定に関すること","１－２耐震等級",null,null,null,"等級",null,"構造躯体",null,null,"地震力及び",null,null,null,null,null,null,null,null,null,null,null,null,null,null,null,null,null,null,null,null,null,null,"□"]
[null,null,"（損傷防止）",null,null,null,"□",3,"及び",null,null,"風圧力",null,null,null,"□","１－１耐震等級と同じ",null,null,null,null,null,null,null,null,null,null,null,null,null,null,null,null,null,"□"]
[null,null,"□","評価対象外",null,null,"□",2,"基礎等",null,null,null,null,null,null,"□","その他",null,null,"（",null,null,null,null,null,null,null,null,null,null,"）",null,null,null,"□"]
[null,null,null,"(免震建築物)",null,null,"□",1,null,null,null,"基礎",null,null,null,null,null,null,null,null,null,null,null,null,null,null,null,null,null,null,null,null,null,null,"□"]
[null,null,"１－４",null,null,null,"等級",null,null,null,null,null,null,null,null,null,null,null,null,null,null,null,null,null,null,null,null,null,null,null,null,null,null,null,"□"]
[null,null,"耐風等級",null,null,null,"□",2,null,null,null,null,null,null,null,null,null,null,null,null,null,null,null,null,null,null,null,null,null,null,null,null,null,null,"□"]
[null,null,null,null,null,null,"□",1,null,null,null,null,null,null,null,null,null,null,null,null,null,null,null,null,null,null,null,null,null,null,null,null,null,null,"□"]
[null,null,"１－５",null,null,null,"等級",null,null,null,null,"横架材",null,null,null,null,null,null,null,null,null,null,null,null,null,null,null,null,null,null,null,null,null,null,"□"]
[null,null,"耐積雪等級",null,null,null,"□",2,null,null,null,null,null,null,null,null,null,null,null,null,null,null,null,null,null,null,null,null,null,null,null,null,null,null,"□"]
[null,null,"□","該当区域外",null,null,"□",1,null,null,null,null,null,null,null,null,null,null,null,null,null,null,null,null,null,null,null,null,null,null,null,null,null,null,"□"]
[null,"２火災時の安全に関すること","２－１",null,null,null,"等級",null,"感知部分",null,null,"種類",null,null,null,"□","自動火災報知設備等",null,null,null,null,null,null,null,null,null,null,null,null,null,null,null,null,"(等級4,3,2,1)","□","仕様書"]
[null,null,"感知警報装置設置等級",null,null,null,"□",4,null,null,null,null,null,null,null,"□","住宅用防災警報器（ネットワーク化）",null,null,null,null,null,null,null,null,null,null,null,null,null,null,null,null,"(等級4)","□","意匠図"]
[null,null,null,null,null,null,"□",3,null,null,null,null,null,null,null,"□","住宅用防災警報器等",null,null,null,null,null,null,null,null,null,null,null,null,null,null,null,null,"(等級3,2,1)","□","設備図"]
[null,null,null,null,null,null,"□",2,null,null,null,null,null,null,null,"□","住宅用防災報知設備等",null,null,null,null,null,null,null,null,null,null,null,null,null,null,null,null,"(等級4,3,2,1)","□","資料"]
[null,null,"(自住戸火災時)",null,null,null,"□",1,null,null,null,"設置場所",null,null,null,"□","寝室、居室、台所等、階段",null,null,null,null,null,null,null,null,null,null,null,null,null,null,null,null,"(等級4,3)","□"]
[null,null,null,null,null,null,null,null,null,null,null,null,null,null,null,"□","寝室、台所等",null,null,null,null,null,null,null,null,null,null,null,null,null,null,null,null,"(等級2)","□"]
[null,null,null,null,null,null,null,null,null,null,null,null,null,null,null,"□","消防法に定める場所",null,null,null,null,null,null,null,null,null,null,null,null,null,null,null,null,"(等級1)","□"]
[null,null,null,null,null,null,null,null,null,null,null,"種別・感度",null,null,null,"□","評価基準に定める種別及び感度の基準に適合",null,null,null,null,null,null,null,null,null,null,null,null,null,null,null,null,"(等級4,3,2)","□"]
[null,null,null,null,null,null,null,null,null,null,null,null,null,null,null,"□","消防法に定める種別及び感度の基準に適合",null,null,null,null,null,null,null,null,null,null,null,null,null,null,null,null,"(等級1)","□"]
[null,null,null,null,null,null,null,null,null,null,null,"取付け位置",null,null,null,"□","評価基準に定める設置位置の基準に適合",null,null,null,null,null,null,null,null,null,null,null,null,null,null,null,null,"(等級4,3,2)","□"]
[null,null,null,null,null,null,null,null,null,null,null,null,null,null,null,"□","消防法に定める設置位置の基準に適合",null,null,null,null,null,null,null,null,null,null,null,null,null,null,null,null,"(等級1)","□"]
[null,null,null,null,null,null,null,null,"警報部分",null,null,"設置場所",null,null,null,"□","居室のある各階に設置",null,null,null,null,null,null,null,null,null,null,null,null,null,null,null,null,"(等級4)","□"]
[null,null,null,null,null,null,null,null,null,null,null,null,null,null,null,"□","住戸内に設置",null,null,null,null,null,null,null,null,null,null,null,null,null,null,null,null,"(等級3,2)","□"]
[null,null,null,null,null,null,null,null,null,null,null,null,null,null,null,"□","設置なし（消防法施行令第２１条による自動火災報知設備の場合）",null,null,null,null,null,null,null,null,null,null,null,null,null,null,null,null,"(等級1)","□"]
[null,null,null,null,null,null,null,null,null,null,null,"音響性能",null,null,null,"□","警報音70dB以上のものを150㎡毎に設置",null,null,null,null,null,null,null,null,null,null,null,null,null,null,null,null,"(等級4)","□"]
[null,null,null,null,null,null,null,null,null,null,null,null,null,null,null,"□","警報音85dB以上のものを350㎡毎に設置",null,null,null,null,null,null,null,null,null,null,null,null,null,null,null,null,"(等級4)","□"]
[null,null,null,null,null,null,null,null,null,null,null,null,null,null,null,"□","警報音70dB以上のものを設置",null,null,null,null,null,null,null,null,null,null,null,null,null,null,null,null,"(等級3,2)","□"]
[null,null,null,null,null,null,null,null,null,null,null,null,null,null,null,"□","上記以外の警報器で基準に適合するものを設置",null,null,null,null,null,null,null,null,null,null,null,null,null,null,null,null,"(等級4,3,2)","□"]
[null,null,"２－４",null,null,null,null,null,"脱出対策",null,null,"避難器具",null,null,null,{"$f":"_xlfn.IFS(自己評価書!$AG$13=\"直通階段に直接通じるバルコニー\",\"■\",TRUE,\"□\")","v":"□"},"直通階段に直接通ずるバルコニー",null,null,null,null,null,null,null,null,null,null,null,null,null,null,null,null,null,"□","仕様書"]
[null,null,"脱出対策",null,null,null,null,null,"（３階以上）",null,null,"の種類",null,null,null,{"$f":"_xlfn.IFS(自己評価書!$AG$13=\"避難器具\",\"■\",TRUE,\"□\")","v":"□"},"避難器具",null,null,null,"（","□","避難ロープ",null,null,null,null,"□","避難はしご",null,null,null,null,null,"□","意匠図"]
[null,null,"（火災時）",null,null,null,null,null,null,null,null,null,null,null,null,null,null,null,null,null,null,"□","避難用タラップ",null,null,null,null,"□","避難橋",null,null,null,null,null,"□","設備図"]
[null,null,"□","該当なし",null,null,null,null,null,null,null,null,null,null,null,null,null,null,null,null,null,"□","滑り棒",null,null,null,null,"□","滑り台",null,null,null,null,null,"□","資料"]
[null,null,null,null,null,null,null,null,null,null,null,null,null,null,null,null,null,null,null,null,null,"□","緩降機",null,null,null,null,"□","救助袋",null,null,"）",null,null,"□"]
[null,null,null,null,null,null,null,null,null,null,null,null,null,null,null,"□","その他",null,null,null,"（",null,null,null,null,null,null,null,null,null,null,"）",null,null,"□"]
[null,null,"２－５耐火等級",null,null,null,"等級",null,"開口部の耐火性能",null,null,"防火設備",null,null,null,"・","外壁の開口部の耐火性能",null,null,null,null,null,null,null,null,null,null,null,null,null,null,null,null,null,"□","仕様書"]
[null,null,"（延焼のおそれのある部分・開口部）",null,null,null,"□",3,null,null,null,"の仕様等",null,null,null,null,null,null,"耐火時間",null,null,"（","□","60分以上",null,null,null,"□","20分以上",null,null,null,null,null,"□","意匠図"]
[null,null,null,null,null,null,"□",2,"（耐火性能が最も低いもの）",null,null,null,null,null,null,null,null,null,null,null,null,null,null,null,null,null,null,"□","その他",null,null,"）",null,null,"□","設備図"]
[null,null,null,null,null,null,"□",1,null,null,null,null,null,null,null,null,null,null,null,null,null,null,null,null,null,null,null,null,null,null,null,null,null,null,"□","資料",null,null,null,null,null,null,null,null,null,null,null,null,null,null,null,null,null,null,null,null,null,null,null,null,null,null,null,null,null,null,null,null,null,null,null,null,null,null,null,null,null,null,{"$f":"IF(G46=\"□\",1,0)","v":1}]
[null,null,"□","該当なし",null,null,null,null,null,null,null,"認定書等活用",null,null,null,"□","認定書等の活用",null,null,null,null,null,null,null,null,null,null,null,null,null,null,null,null,null,"□"]
[null,null,"２－６耐火等級",null,null,null,"等級",null,"外壁・軒裏の構造",null,null,"外壁の構造等",null,null,null,"・","外壁の耐火時間",null,null,null,null,"（","□","60分以上",null,null,null,"□","45分以上",null,null,null,null,null,"□","仕様書"]
[null,null,"（延焼のおそれのある部分・開口部以外）",null,null,null,"□",4,null,null,null,null,null,null,null,null,null,null,null,null,null,null,"□","20分以上",null,null,null,"□","その他",null,null,"）",null,null,"□","意匠図",null,null,null,null,null,null,null,null,"※","等級 ２ 以上の場合のみ入力"]
[null,null,null,null,null,null,"□",3,"（耐火性能が最も低いもの）",null,null,"軒裏の構造等",null,null,null,"・","軒裏の耐火時間",null,null,null,null,"（","□","60分以上",null,null,null,"□","45分以上",null,null,null,null,null,"□","設備図"]
[null,null,null,null,null,null,"□",2,null,null,null,null,null,null,null,null,null,null,null,null,null,null,"□","20分以上",null,null,null,"□","その他",null,null,"）",null,null,"□","資料"]
[null,null,null,null,null,null,"□",1,null,null,null,"軒裏換気口の",null,null,null,"・","軒裏換気口の",null,null,null,null,"（","□","60分以上",null,null,null,"□","45分以上",null,null,null,null,null,"□",null,null,null,null,null,null,null,null,null,null,null,null,null,null,null,null,null,null,null,null,null,null,null,null,null,null,null,null,null,null,null,null,null,null,null,null,null,null,null,null,null,null,null,{"$f":"IF(G52=\"□\",1,0)","v":1}]
[null,null,null,null,null,null,null,null,null,null,null,"構造等",null,null,null,null,"耐火時間",null,null,null,null,null,"□","20分以上",null,null,null,"□","その他",null,null,"）",null,null,"□"]
[null,null,"□","該当なし",null,null,null,null,null,null,null,"認定書等活用",null,null,null,"□","認定書等の活用",null,null,null,null,null,null,null,null,null,null,null,null,null,null,null,null,null,"□"]
[null,"６空気環境に関すること","６－１",null,null,null,"内装",null,"内装仕上",null,null,"使用建材",null,null,null,"・",{"$f":"_xlfn.IFS(自己評価書!$AF$22=\"■\",\"■\",TRUE,\"□\")","v":"□"},"製材等",null,null,null,{"$f":"_xlfn.IFS(自己評価書!$AF$23=\"■\",\"■\",TRUE,\"□\")","v":"□"},"特定建材",null,null,null,{"$f":"_xlfn.IFS(自己評価書!$AF$24=\"■\",\"■\",TRUE,\"□\")","v":"□"},"その他の建材",null,null,null,null,null,null,"□","仕様書"]
[null,null,"ホルムアルデヒド対策",null,null,null,"等級",null,"下地材等",null,null,null,null,null,null,null,null,null,null,null,null,null,null,null,null,null,null,null,null,null,null,null,null,null,"□","意匠図"]
[null,null,null,null,null,null,null,null,null,null,null,"適用除外等",null,null,null,null,"□","あり",null,"（箇所",null,null,null,null,null,null,null,null,null,null,"）",null,null,null,"□","建材表"]
[null,null,null,null,null,null,"□",3,"居室の",null,null,"ホルムアルデ",null,null,null,"・","特定建材のうち最もﾎﾙﾑｱﾙﾃﾞﾋﾄﾞ発散が大きい建材",null,null,null,null,null,null,null,null,null,null,null,null,null,null,null,null,null,"□"]
[null,null,"（内装及び天井裏等）",null,null,null,"□",2,"内装の",null,null,"ヒド発散等級",null,null,null,null,"□","F☆☆☆☆",null,null,null,"□","F☆☆☆",null,null,null,"□","F☆☆",null,null,null,null,null,null,"□"]
[null,null,null,null,null,null,"□",1,"仕上げ材",null,null,{"$f":"_xlfn.IFS(自己評価書!$AK$25=\"該当対象外\",\"■\",TRUE,\"□\")","v":"□"},"該当なし",null,null,null,null,null,null,null,null,null,null,null,null,null,null,null,null,null,null,null,null,null,"□"]
[null,null,null,null,null,null,null,null,null,null,null,"適用除外等",null,null,null,null,"□","あり",null,"（箇所",null,null,null,null,null,null,null,null,null,null,"）",null,null,null,"□"]
[null,null,null,null,null,null,"天井裏等",null,"天井裏",null,null,"ホルムアルデ",null,null,null,"・","特定建材のうち最もﾎﾙﾑｱﾙﾃﾞﾋﾄﾞ発散が大きい建材",null,null,null,null,null,null,null,null,null,null,null,null,null,null,null,null,null,"□"]
[null,null,null,null,null,null,"等級",null,"等の下",null,null,"ヒド発散等級",null,null,null,null,"□","F☆☆☆☆",null,null,null,"□","F☆☆☆",null,null,null,null,null,null,null,null,null,null,null,"□"]
[null,null,null,null,null,null,"□",3,"地材等",null,null,{"$f":"_xlfn.IFS(自己評価書!$AK$26=\"該当対象外\",\"■\",TRUE,\"□\")","v":"□"},"該当なし",null,null,null,null,null,null,null,null,null,null,null,null,null,null,null,null,null,null,null,null,null,"□"]
[null,null,null,null,null,null,"□",2,null,null,null,"措置方法",null,null,null,"□","換気又は気密・通気止め措置による",null,null,null,null,null,null,null,null,null,null,null,null,null,null,null,null,null,"□"]
[null,null,"６－２",null,null,null,null,null,"換気対策",null,null,"種類",null,null,null,{"$f":"_xlfn.IFS(自己評価書!$AF$29=\"■\",\"■\",TRUE,\"□\")","v":"□"},"機械換気設備",null,null,null,null,null,{"$f":"_xlfn.IFS(自己評価書!$AF$30=\"■\",\"■\",TRUE,\"□\")","v":"□"},"その他",null,null,null,null,null,null,null,null,null,null,"□","意匠図"]
[null,null,"換気対策",null,null,null,null,null,"局所換気",null,null,"便所・浴室",null,null,null,"■","自己評価書に同じ",null,null,null,null,null,null,null,null,null,null,null,null,null,null,null,null,null,"□","計算書"]
[null,null,null,null,null,null,null,null,"対策",null,null,"・台所",null,null,null,null,null,null,null,null,null,null,null,null,null,null,null,null,null,null,null,null,null,null,"□"]
[null,"７光・視環境","７－１",null,null,null,null,null,"居室床面積に対する",null,null,null,null,null,null,"■","自己評価書に同じ",null,null,null,null,null,null,null,null,null,null,null,null,null,null,null,null,null,"□","意匠図"]
[null,null,"単純開口率",null,null,null,null,null,"開口部の割合",null,null,null,null,null,null,null,null,null,null,null,null,null,null,null,null,null,null,null,null,null,null,null,null,null,"□","計算書"]
[null,null,"７－２",null,null,null,null,null,"方位別開口部の",null,null,null,null,null,null,"■","自己評価書に同じ",null,null,null,null,null,null,null,null,null,null,null,null,null,null,null,null,null,"□"]
[null,null,"方位別開口比",null,null,null,null,null,"面積合計の比",null,null,null,null,null,null,null,null,null,null,null,null,null,null,null,null,null,null,null,null,null,null,null,null,null,"□"]
[null,null,null,null,null,null,null,null,null,null,null,null,null,null,null,null,null,null,null,null,null,null,null,null,null,null,null,null,null,null,null,null,null,null,"□"]
[null,"８音環境に関すること","８－４",null,null,null,"北面",null,"開口部の",null,null,"北の方位の",null,null,null,"□","JIS遮音等級表示品",null,null,null,null,null,null,"□","同等品",null,null,null,null,null,null,null,null,null,"□","仕様書"]
[null,null,"透過損失等級",null,null,null,"□",3,"遮音性能",null,null,"ｻｯｼ・ﾄﾞｱｾｯﾄ",null,null,null,"□","T-4",null,"□","T-3",null,"□","T-2",null,"□","T-1",null,"□","その他",null,null,null,null,null,"□","意匠図"]
[null,null,"（外壁開口部）",null,null,null,"□",2,"（最低遮音）",null,null,null,null,null,null,"その他試験を行うもの",null,null,null,null,null,null,null,null,null,null,null,null,null,null,null,null,null,null,"□","資料"]
[null,null,null,null,null,null,"□",1,null,null,null,null,null,null,null,"（",null,null,null,null,null,null,null,null,null,null,null,null,null,"）",null,null,null,null,"□"]
[null,null,null,null,null,null,"東面",null,null,null,null,"東の方位の",null,null,null,"□","JIS遮音等級表示品",null,null,null,null,null,null,"□","同等品",null,null,null,null,null,null,null,null,null,"□"]
[null,null,null,null,null,null,"□",3,null,null,null,"ｻｯｼ・ﾄﾞｱｾｯﾄ",null,null,null,"□","T-4",null,"□","T-3",null,"□","T-2",null,"□","T-1",null,"□","その他",null,null,null,null,null,"□"]
[null,null,null,null,null,null,"□",2,null,null,null,null,null,null,null,"その他試験を行うもの",null,null,null,null,null,null,null,null,null,null,null,null,null,null,null,null,null,null,"□"]
[null,null,null,null,null,null,"□",1,null,null,null,null,null,null,null,"（",null,null,null,null,null,null,null,null,null,null,null,null,null,"）",null,null,null,null,"□"]
[null,null,null,null,null,null,"南面",null,null,null,null,"南の方位の",null,null,null,"□","JIS遮音等級表示品",null,null,null,null,null,null,"□","同等品",null,null,null,null,null,null,null,null,null,"□"]
[null,null,null,null,null,null,"□",3,null,null,null,"ｻｯｼ・ﾄﾞｱｾｯﾄ",null,null,null,"□","T-4",null,"□","T-3",null,"□","T-2",null,"□","T-1",null,"□","その他",null,null,null,null,null,"□"]
[null,null,null,null,null,null,"□",2,null,null,null,null,null,null,null,"その他試験を行うもの",null,null,null,null,null,null,null,null,null,null,null,null,null,null,null,null,null,null,"□"]
[null,null,"□","該当無し（北）",null,null,"□",1,null,null,null,null,null,null,null,"（",null,null,null,null,null,null,null,null,null,null,null,null,null,"）",null,null,null,null,"□"]
[null,null,"□","該当無し（東）",null,null,"西面",null,null,null,null,"西の方位の",null,null,null,"□","JIS遮音等級表示品",null,null,null,null,null,null,"□","同等品",null,null,null,null,null,null,null,null,null,"□"]
[null,null,"□","該当無し（南）",null,null,"□",3,null,null,null,"ｻｯｼ・ﾄﾞｱｾｯﾄ",null,null,null,"□","T-4",null,"□","T-3",null,"□","T-2",null,"□","T-1",null,"□","その他",null,null,null,null,null,"□"]
[null,null,"□","該当無し（西）",null,null,"□",2,null,null,null,null,null,null,null,"その他試験を行うもの",null,null,null,null,null,null,null,null,null,null,null,null,null,null,null,null,null,null,"□"]
[null,null,null,null,null,null,"□",1,null,null,null,null,null,null,null,"（",null,null,null,null,null,null,null,null,null,null,null,null,null,"）",null,null,null,null,"□"]
[null,null,null,null,null,null,null,null,"認定書等",null,null,"認定書等活用",null,null,null,"□","認定書等の活用",null,null,null,null,null,null,null,null,null,null,null,null,null,null,null,null,null,"□"]
[null,"９高齢者等への配慮に関すること","９－１",null,null,null,"等級",null,"部屋の",null,null,"特定寝室\nの位置",null,null,null,"・","特定寝室",null,null,"（",null,null,"階、室名：",null,null,null,null,null,null,null,null,"）",null,null,"□","意匠図"]
[null,null,"高齢者等配慮対策等級",null,null,null,"□",5,"配置等",null,null,null,null,null,null,"・","基準に適合したホームエレベーター",null,null,null,null,null,null,null,null,"（","□","有",null,"□","無","）",null,null,"□"]
[null,null,null,null,null,null,"□",4,null,null,null,null,null,null,null,"□","特定寝室と同一階に配置すべき室等の基準に適合",null,null,null,null,null,null,null,null,null,null,null,null,null,null,null,null,null,"□"]
[null,null,"（専用部分）",null,null,null,"□",3,"段差",null,null,"日常生活\n空間内",null,null,null,"□","日常生活空間内の床が段差のない構造",null,null,null,null,null,null,null,null,null,null,null,null,null,null,null,null,null,"□","意匠図",null,null,null,null,null,null,null,null,null,null,null,null,null,null,null,null,null,null,null,null,null,null,null,null,null,null,null,null,null,null,null,null,null,null,null,null,null,null,null,null,null,null,{"$f":"IF(G94=\"□\",1,0)","v":1}]
[null,null,null,null,null,null,"□",2,null,null,null,null,null,null,null,"□","適用除外の段差あり",null,null,null,null,null,null,null,null,null,null,null,null,null,null,null,null,null,"□",null,null,null,null,null,null,null,null,null,null,null,null,null,null,null,null,null,null,null,null,null,null,null,null,null,null,null,null,null,null,null,null,null,null,null,null,null,null,null,null,null,null,null,{"$f":"IF(G95=\"□\",1,0)","v":1}]
[null,null,null,null,null,null,"□",1,null,null,null,"日常生活\n空間外",null,null,null,"□","日常生活空間外の床が段差のない構造",null,null,null,null,null,null,null,null,null,null,null,null,null,null,null,null,null,"□",null,null,null,null,null,null,null,null,null,null,null,null,null,null,null,null,null,null,null,null,null,null,null,null,null,null,null,null,null,null,null,null,null,null,null,null,null,null,null,null,null,null,null,{"$f":"IF(G96=\"□\",1,0)","v":1}]
[null,null,null,null,null,null,null,null,null,null,null,null,null,null,null,"□","適用除外の段差あり",null,null,null,null,null,null,null,null,null,null,null,null,null,null,null,null,null,"□"]
[null,null,null,null,null,null,null,null,"階段",null,null,"勾配等",null,null,null,"□","階段の勾配等の基準に適合",null,null,null,null,null,null,null,null,null,null,null,null,null,null,null,null,null,"□","意匠図"]
[null,null,null,null,null,null,null,null,"□","階段無",null,"蹴込み",null,null,null,"□","蹴込みが30mm以下",null,null,null,null,null,null,null,null,null,null,null,null,null,null,null,null,null,"□"]
[null,null,null,null,null,null,null,null,null,null,null,null,null,null,null,"・","蹴込み板の設置",null,null,null,null,null,null,null,null,"（","□","有",null,"□","無","）",null,null,"□"]
[null,null,null,null,null,null,null,null,null,null,null,"形式等",null,null,null,"・","回り階段等の設置",null,null,null,null,null,null,null,null,"（","□","有",null,"□","無","）",null,null,"□"]
[null,null,null,null,null,null,null,null,null,null,null,null,null,null,null,"・","通路等への食い込み、突出",null,null,null,null,null,null,null,null,"（","□","有",null,"□","無","）",null,null,"□",null,null,null,null,null,null,null,null,null,"※","等級 ２ 以上の場合のみ入力"]
[null,null,null,null,null,null,null,null,null,null,null,null,null,null,null,"・","最下段の通路等への突出",null,null,null,null,null,null,null,null,"（","□","有",null,"□","無","）",null,null,"□"]
[null,null,null,null,null,null,null,null,null,null,null,"滑り防止",null,null,null,"・","滑り止め",null,null,null,"（","□","無",null,null,"□","有、踏面と同一面",null,null,null,null,"）",null,null,"□"]
[null,null,null,null,null,null,null,null,null,null,null,"段鼻",null,null,null,"・","段鼻の出",null,null,null,null,null,null,null,null,"（","□","有",null,"□","無","）",null,null,"□"]
[null,null,null,null,null,null,null,null,null,null,null,"階段の幅員",null,null,null,"□","建築基準法施行令第23条～第27条の基準に適合",null,null,null,null,null,null,null,null,null,null,null,null,null,null,null,null,null,"□"]
[null,null,null,null,null,null,null,null,"手摺",null,null,"手摺の設置",null,null,null,null,"□","階段",null,null,"□","便所",null,null,"□","浴室（等級５の場合のみ入力）",null,null,null,null,null,null,null,null,"□","意匠図"]
[null,null,null,null,null,null,null,null,null,null,null,null,null,null,null,null,"□","玄関（",null,"□","設置準備）",null,null,null,"□","脱衣室",null,"（","□","設置準備）",null,null,null,null,"□"]
[null,null,null,null,null,null,null,null,null,null,null,"転落防止手摺の設置",null,null,null,"□","バルコニー",null,null,null,"（","□","手すりの設置",null,null,null,"□","転落のおそれなし）",null,null,null,null,null,null,"□"]
[null,null,null,null,null,null,null,null,null,null,null,null,null,null,null,"□","窓（２階以上）",null,null,null,"（","□","手すりの設置",null,null,null,"□","転落のおそれなし）",null,null,null,null,null,null,"□"]
[null,null,null,null,null,null,null,null,null,null,null,null,null,null,null,"□","廊下及び階段",null,null,null,null,null,null,null,null,null,null,null,null,null,null,null,null,null,"□"]
[null,null,null,null,null,null,null,null,null,null,null,null,null,null,null,"（","□","開放なし",null,null,null,"□","手すりの設置",null,null,null,"□","転落のおそれなし）",null,null,null,null,null,null,"□"]
[null,null,null,null,null,null,null,null,null,null,null,"バルコニー等",null,null,null,"□","建築基準法施行令第126条第1項の基準に適合",null,null,null,null,null,null,null,null,null,null,null,null,null,null,null,null,null,"□"]
[null,null,null,null,null,null,null,null,"通路等の",null,null,"通路の幅員",null,null,null,"□","通路幅員の基準に適合",null,null,null,null,null,null,null,null,null,null,null,null,null,null,null,null,null,"□","意匠図"]
[null,null,null,null,null,null,null,null,"幅員",null,null,"出入口の幅員",null,null,null,"□","玄関・浴室出入口の幅員の基準に適合",null,null,null,null,null,null,null,null,null,null,null,null,null,null,null,null,null,"□"]
[null,null,null,null,null,null,null,null,"(日常生活",null,null,null,null,null,null,"□","玄関・浴室以外出入口の幅員の基準に適合",null,null,null,null,null,null,null,null,null,null,null,null,null,null,null,null,null,"□"]
[null,null,null,null,null,null,null,null,"空間内）",null,null,null,null,null,null,null,"（","□","工事を伴わない撤去等",null,null,null,null,null,null,"□","軽微な改造",null,null,null,"）",null,null,null,"□"]
[null,null,null,null,null,null,null,null,"寝室、便",null,null,"浴室の寸法",null,null,null,"□","内法面積、短辺寸法の基準に適合",null,null,null,null,null,null,null,null,null,null,null,null,null,null,null,null,null,"□","意匠図"]
[null,null,null,null,null,null,null,null,"所及び浴",null,null,"便所の寸法等",null,null,null,"□","内法寸法の基準に適合",null,null,null,null,null,null,"□","便器と壁の距離の基準に適合",null,null,null,null,null,null,null,null,null,"□",null,null,null,null,null,null,null,null,null,"※","等級 ３ 以上の場合のみ入力"]
[null,null,null,null,null,null,null,null,"室",null,null,null,null,null,null,null,"□","ドアの開放により確保",null,null,null,null,null,null,"□","軽微な改造により確保",null,null,null,null,null,null,null,null,"□"]
[null,null,null,null,null,null,null,null,"(日常生活",null,null,null,null,null,null,null,"□","工事を伴わない撤去等により確保",null,null,null,null,null,null,null,null,null,null,null,null,null,null,null,null,"□"]
[null,null,null,null,null,null,null,null,"空間内）",null,null,null,null,null,null,"□","腰掛け式便器を設置",null,null,null,null,null,null,null,null,null,null,null,null,null,null,null,null,null,"□"]
[null,null,null,null,null,null,null,null,null,null,null,"特定寝室面積",null,null,null,"□","特定寝室の内法面積の確保",null,null,null,null,null,null,null,null,null,null,null,null,null,null,null,null,null,"□"]
[null,10,"１０－１",null,null,null,"設計内容説明欄と同様",null,null,"１階",null,"区分及び措置",null,null,null,"・","区分a",null,{"$f":"_xlfn.IFS(自己評価書!$AG$60=\"侵入防止上有効な措置\",\"■\",TRUE,\"□\")","v":"□"},"侵入防止上有効な措置（",null,null,null,null,null,null,{"$f":"_xlfn.IFS(自己評価書!$AG$60=\"シャッター又は雨戸対策含む\",\"■\",TRUE,\"□\")","v":"□"},"雨戸等による対策）",null,null,null,null,null,null,"□","意匠図"]
[null,"防犯に関すること","開口部の",null,null,null,null,null,null,null,null,null,null,null,null,null,null,null,{"$f":"_xlfn.IFS(自己評価書!$AG$60=\"その他\",\"■\",TRUE,\"□\")","v":"□"},"その他",null,null,{"$f":"_xlfn.IFS(自己評価書!$AG$60=\"該当開口部なし\",\"■\",TRUE,\"□\")","v":"□"},"該当する開口部無し",null,null,null,null,null,null,null,null,null,null,"□"]
[null,null,"侵入防止対策",null,null,null,null,null,null,null,null,null,null,null,null,"・","区分b",null,{"$f":"_xlfn.IFS(自己評価書!$AG$61=\"侵入防止上有効な措置\",\"■\",TRUE,\"□\")","v":"□"},"侵入防止上有効な措置（",null,null,null,null,null,null,{"$f":"_xlfn.IFS(自己評価書!$AG$61=\"シャッター又は雨戸対策含む\",\"■\",TRUE,\"□\")","v":"□"},"雨戸等による対策）",null,null,null,null,null,null,"□"]
[null,null,null,null,null,null,null,null,null,null,null,null,null,null,null,null,null,null,{"$f":"_xlfn.IFS(自己評価書!$AG$61=\"その他\",\"■\",TRUE,\"□\")","v":"□"},"その他",null,null,{"$f":"_xlfn.IFS(自己評価書!$AG$61=\"該当開口部なし\",\"■\",TRUE,\"□\")","v":"□"},"該当する開口部無し",null,null,null,null,null,null,null,null,null,null,"□"]
[null,null,null,null,null,null,null,null,null,null,null,null,null,null,null,"・","区分c",null,{"$f":"_xlfn.IFS(自己評価書!$AG$62=\"侵入防止上有効な措置\",\"■\",TRUE,\"□\")","v":"□"},"侵入防止上有効な措置（",null,null,null,null,null,null,{"$f":"_xlfn.IFS(自己評価書!$AG$62=\"シャッター又は雨戸対策含む\",\"■\",TRUE,\"□\")","v":"□"},"雨戸等による対策）",null,null,null,null,null,null,"□"]
[null,null,null,null,null,null,null,null,null,null,null,null,null,null,null,null,null,null,{"$f":"_xlfn.IFS(自己評価書!$AG$62=\"その他\",\"■\",TRUE,\"□\")","v":"□"},"その他",null,null,{"$f":"_xlfn.IFS(自己評価書!$AG$62=\"該当開口部なし\",\"■\",TRUE,\"□\")","v":"□"},"該当する開口部無し",null,null,null,null,null,null,null,null,null,null,"□"]
[null,null,null,null,null,null,null,null,"□","２階",null,"区分及び措置",null,null,null,"・","区分a",null,{"$f":"_xlfn.IFS(自己評価書!$AG$63=\"侵入防止上有効な措置\",\"■\",TRUE,\"□\")","v":"□"},"侵入防止上有効な措置（",null,null,null,null,null,null,{"$f":"_xlfn.IFS(自己評価書!$AG$63=\"シャッター又は雨戸対策含む\",\"■\",TRUE,\"□\")","v":"□"},"雨戸等による対策）",null,null,null,null,null,null,"□"]
[null,null,null,null,null,null,null,null,null,null,null,null,null,null,null,null,null,null,{"$f":"_xlfn.IFS(自己評価書!$AG$63=\"その他\",\"■\",TRUE,\"□\")","v":"□"},"その他",null,null,{"$f":"_xlfn.IFS(自己評価書!$AG$63=\"該当開口部なし\",\"■\",TRUE,\"□\")","v":"□"},"該当する開口部無し",null,null,null,null,null,null,null,null,null,null,"□"]
[null,null,null,null,null,null,null,null,null,null,null,null,null,null,null,"・","区分b",null,{"$f":"_xlfn.IFS(自己評価書!$AG$64=\"侵入防止上有効な措置\",\"■\",TRUE,\"□\")","v":"□"},"侵入防止上有効な措置（",null,null,null,null,null,null,{"$f":"_xlfn.IFS(自己評価書!$AG$64=\"シャッター又は雨戸対策含む\",\"■\",TRUE,\"□\")","v":"□"},"雨戸等による対策）",null,null,null,null,null,null,"□"]
[null,null,null,null,null,null,null,null,null,null,null,null,null,null,null,null,null,null,{"$f":"_xlfn.IFS(自己評価書!$AG$64=\"その他\",\"■\",TRUE,\"□\")","v":"□"},"その他",null,null,{"$f":"_xlfn.IFS(自己評価書!$AG$64=\"該当開口部なし\",\"■\",TRUE,\"□\")","v":"□"},"該当する開口部無し",null,null,null,null,null,null,null,null,null,null,"□"]
[null,null,null,null,null,null,null,null,null,null,null,null,null,null,null,"・","区分c",null,{"$f":"_xlfn.IFS(自己評価書!$AG$65=\"侵入防止上有効な措置\",\"■\",TRUE,\"□\")","v":"□"},"侵入防止上有効な措置（",null,null,null,null,null,null,{"$f":"_xlfn.IFS(自己評価書!$AG$65=\"シャッター又は雨戸対策含む\",\"■\",TRUE,\"□\")","v":"□"},"雨戸等による対策）",null,null,null,null,null,null,"□"]
[null,null,null,null,null,null,null,null,null,null,null,null,null,null,null,null,null,null,{"$f":"_xlfn.IFS(自己評価書!$AG$65=\"その他\",\"■\",TRUE,\"□\")","v":"□"},"その他",null,null,{"$f":"_xlfn.IFS(自己評価書!$AG$65=\"該当開口部なし\",\"■\",TRUE,\"□\")","v":"□"},"該当する開口部無し",null,null,null,null,null,null,null,null,null,null,"□"]
[null,null,null,null,null,null,null,null,"□",null,"階","区分及び措置",null,null,null,"・","区分a",null,{"$f":"_xlfn.IFS(自己評価書!$AG$66=\"侵入防止上有効な措置\",\"■\",TRUE,\"□\")","v":"□"},"侵入防止上有効な措置（",null,null,null,null,null,null,{"$f":"_xlfn.IFS(自己評価書!$AG$66=\"シャッター又は雨戸対策含む\",\"■\",TRUE,\"□\")","v":"□"},"雨戸等による対策）",null,null,null,null,null,null,"□"]
[null,null,null,null,null,null,null,null,null,null,null,null,null,null,null,null,null,null,{"$f":"_xlfn.IFS(自己評価書!$AG$66=\"その他\",\"■\",TRUE,\"□\")","v":"□"},"その他",null,null,{"$f":"_xlfn.IFS(自己評価書!$AG$66=\"該当開口部なし\",\"■\",TRUE,\"□\")","v":"□"},"該当する開口部無し",null,null,null,null,null,null,null,null,null,null,"□"]
[null,null,null,null,null,null,null,null,null,null,null,null,null,null,null,"・","区分b",null,{"$f":"_xlfn.IFS(自己評価書!$AG$67=\"侵入防止上有効な措置\",\"■\",TRUE,\"□\")","v":"□"},"侵入防止上有効な措置（",null,null,null,null,null,null,{"$f":"_xlfn.IFS(自己評価書!$AG$67=\"シャッター又は雨戸対策含む\",\"■\",TRUE,\"□\")","v":"□"},"雨戸等による対策）",null,null,null,null,null,null,"□"]
[null,null,null,null,null,null,null,null,null,null,null,null,null,null,null,null,null,null,{"$f":"_xlfn.IFS(自己評価書!$AG$67=\"その他\",\"■\",TRUE,\"□\")","v":"□"},"その他",null,null,{"$f":"_xlfn.IFS(自己評価書!$AG$67=\"該当開口部なし\",\"■\",TRUE,\"□\")","v":"□"},"該当する開口部無し",null,null,null,null,null,null,null,null,null,null,"□"]
[null,null,null,null,null,null,null,null,null,null,null,null,null,null,null,"・","区分c",null,{"$f":"_xlfn.IFS(自己評価書!$AG$68=\"侵入防止上有効な措置\",\"■\",TRUE,\"□\")","v":"□"},"侵入防止上有効な措置（",null,null,null,null,null,null,{"$f":"_xlfn.IFS(自己評価書!$AG$68=\"シャッター又は雨戸対策含む\",\"■\",TRUE,\"□\")","v":"□"},"雨戸等による対策）",null,null,null,null,null,null,"□"]
[null,null,null,null,null,null,null,null,null,null,null,null,null,null,null,null,null,null,{"$f":"_xlfn.IFS(自己評価書!$AG$68=\"その他\",\"■\",TRUE,\"□\")","v":"□"},"その他",null,null,{"$f":"_xlfn.IFS(自己評価書!$AG$68=\"該当開口部なし\",\"■\",TRUE,\"□\")","v":"□"},"該当する開口部無し",null,null,null,null,null,null,null,null,null,null,"□"]
[null,null,"＊","区分ａ・・・住戸の出入口",null,null,null,null,null,null,null,null,"＊","区分ｂ・・・外部からの接近が比較的容易な開口部",null,null,null,null,null,null,null,null,null,null,null,null,null,null,null,"＊","区分ｃ・・・その他の開口部"]

{"sheet":"変更_確認申請書","index":11,"n_rows":53,"n_cols":35,"rows_kept":53,"cut":false,"hidden":true,"merged":[[4,1,5,34],[8,25,8,27],[8,29,8,30],[8,32,8,33],[13,21,14,33],[30,17,33,32],[15,21,15,33],[16,21,16,33],[34,17,34,22],[35,9,36,32],[19,2,21,33],[23,1,23,34],[27,17,27,27],[29,17,29,26],[28,17,28,19],[28,21,28,22],[28,24,28,25]]}
[]
[null,"第十一号の三様式（第七条の二関係）",null,null,null,null,null,null,null,null,null,null,null,null,null,null,null,null,null,null,null,null,null,null,null,null,null,null,null,null,null,null,null,null,"（第一面）"]
[]
[]
[null,"変更確認申請書\n（新築／増築・改築）"]
[]
[]
[]
[null,null,null,null,null,null,null,null,null,null,null,null,null,null,null,null,null,null,null,null,null,null,null,null,null,null,null,null,"年",null,null,"月",null,null,"日"]
[]
[null,"株式会社　ハウスジーメン　殿"]
[]
[]
[null,null,null,null,null,null,null,null,null,null,null,null,null,"申請者の住所又は",null,null,null,null,null,null,null,{"$f":"IF(設計申請書!$I$158<>\"\",設計申請書!$I$158,\"\")","v":""}]
[null,null,null,null,null,null,null,null,null,null,null,null,null,"主たる事務所の所在地"]
[null,null,null,null,null,null,null,null,null,null,null,null,null,"申請者の氏名又は名称\n",null,null,null,null,null,null,null,{"$f":"IF(設計申請書!$U$13<>\"\",設計申請書!$U$13&\"　\"&設計申請書!$U$14,\"\")","v":""}]
[null,null,null,null,null,null,null,null,null,null,null,null,null,"代表者の氏名"]
[]
[]
[null,null,"　下記の住宅について、住宅の品質確保の促進等に関する法律第６条の２第１項の規定に基づき、変更確認を行うことを求めます。この申請書及び添付図書に記載の事項は、事実に相違ありません。"]
[]
[]
[]
[null,"記"]
[]
[]
[null,null,"【計画を変更する住宅の直前の",null,null,null,null,null,null,null,null,"□","確認書　・",null,null,"□","住宅性能評価書　）】"]
[null,null,"１. 確認書又は住宅性能評価書交付番号"]
[null,null,"２. 確認書又は住宅性能評価書交付年月日",null,null,null,null,null,null,null,null,null,null,null,null,null,null,null,null,null,"年",null,null,"月",null,null,"日"]
[null,null,"３. 確認書又は住宅性能評価書交付者",null,null,null,null,null,null,null,null,null,null,null,null,null,null,"株式会社　ハウスジーメン"]
[null,null,"４. 確認又は住宅性能評価に係る住宅の位置",null,null,null,null,null,null,null,null,null,null,null,null,null,null,{"$f":"IF(設計申請書!$I$158<>\"\",設計申請書!$I$158,\"\")","v":""}]
[]
[]
[]
[null,null,"５. 当初確認時又は住宅性能評価時の工事種別",null,null,null,null,null,null,null,null,null,null,null,null,null,null,"新築"]
[null,null,"６. 変更の概要"]
[]
[]
[null,null,null,"※受付欄",null,null,null,null,null,null,null,null,null,"※料金欄"]
[null,null,null,null,null,null,"年",null,null,"月",null,null,"日"]
[null,null,null,"第",null,null,null,null,null,null,null,null,"号"]
[null,null,null,"申請受理者氏名"]
[]
[]
[null,null,"（注意）"]
[null,null,"① この様式において、「一戸建ての住宅」は、人の居住の用以外の用途に供する部分を有しないものに限り、「共同住宅"]
[null,null,null,"等」とは、共同住宅、長屋その他の一戸建ての住宅以外の住宅をいいます。"]
[null,null,"② 【計画を変更する住宅の直前の（確認書・住宅性能評価書）】については、「確認書」又は「住宅性能評価書」の"]
[null,null,null,"該当するいずれかを〇で囲んでください。"]
[null,null,"③ 数字は算用数字を用いてください。"]
[null,null,"④ ※印のある欄は記入しないでください。"]
[]
[null,null,"備考　この用紙の大きさは、日本産業規格A4としてください。"]

{"sheet":"軽微変更","index":12,"n_rows":50,"n_cols":35,"rows_kept":50,"cut":false,"hidden":false,"merged":[[3,1,3,34],[4,1,4,34],[5,29,5,30],[5,32,5,33],[5,25,5,27],[32,18,32,28],[34,14,37,33],[39,13,39,14],[39,15,39,21],[9,20,10,33],[11,20,11,33],[12,20,12,33],[14,2,16,33],[18,2,18,33],[24,18,24,21],[24,23,24,24],[24,26,24,27],[28,18,30,33],[22,19,22,27],[26,18,26,28]]}
[]
[null,"（参考様式）"]
[]
[null,"軽微変更該当証明申請書"]
[null,"（　　新　築　／　増　築　・　改　築　　）"]
[null,null,null,null,null,null,null,null,null,null,null,null,null,null,null,null,null,null,null,null,null,null,null,null,null,null,null,null,"年",null,null,"月",null,null,"日"]
[]
[null,"株式会社　ハウスジーメン　宛"]
[]
[null,null,null,null,null,null,null,null,null,null,null,"申請者の住所又は",null,null,null,null,null,null,null,null,{"$f":"IF(設計申請書!$L$58<>\"\",設計申請書!$L$58,\"\")","v":""}]
[null,null,null,null,null,null,null,null,null,null,null,"主たる事務所の所在地"]
[null,null,null,null,null,null,null,null,null,null,null,"申請者の氏名又は名称",null,null,null,null,null,null,null,null,{"$f":"IF(設計申請書!$L$56<>\"\",設計申請書!$L$56,\"\")","v":""}]
[null,null,null,null,null,null,null,null,null,null,null,"代表者の氏名",null,null,null,null,null,null,null,null,{"$f":"IF(設計申請書!$U$63<>\"\",設計申請書!$U$63,\"\")","v":""}]
[]
[null,null,"　下記の住宅について長期優良住宅の普及の促進に関する法律第８条第１項及び長期優良住宅の普及の促進に関する法律施行規則第７条第４号に規定する軽微な変更に該当していることを証する書面の交付を申請します。この申請書及び添付図書に記載の事項は、事実に相違ありません。\n"]
[]
[]
[]
[null,null,"記"]
[]
[null,null,"【計画を変更する住宅の直前の (",null,null,null,null,null,null,null,null,"□","確認書　・",null,null,"■","住宅性能評価書　）】"]
[]
[null,null,"１．確認書又は住宅性能評価書交付番号",null,null,null,null,null,null,null,null,null,null,null,null,null,null,null,"第",null,null,null,null,null,null,null,null,null,"号"]
[]
[null,null,"２．確認書又は住宅性能評価書交付年月日",null,null,null,null,null,null,null,null,null,null,null,null,null,null,null,null,null,null,null,"年",null,null,"月",null,null,"日"]
[]
[null,null,"３．確認書又は住宅性能評価書交付者",null,null,null,null,null,null,null,null,null,null,null,null,null,null,null,"株式会社ハウスジーメン"]
[]
[null,null,"４．確認又は住宅性能評価に係る住宅の位置",null,null,null,null,null,null,null,null,null,null,null,null,null,null,null,{"$f":"IF(設計申請書!$I$158<>\"\",設計申請書!$I$158,\"\")","v":""}]
[]
[]
[]
[null,null,"５．当初確認時又は住宅性能評価時の工事種別",null,null,null,null,null,null,null,null,null,null,null,null,null,null,null,"新 築"]
[]
[null,null,"６．変更の概要"]
[]
[]
[]
[]
[null,null,"７．その他",null,null,null,null,null,null,null,"物件番号 ：　",null,null,20]
[]
[null,"※受付欄",null,null,null,null,null,null,null,null,null,null,null,"※料金欄"]
[null,null,null,null,"年",null,null,"月",null,null,"日"]
[null,null,"第",null,null,null,null,null,null,null,null,"号"]
[null,null,"申請受理者氏名"]
[null,"（注意）"]
[null,1,"数字は算用数字を用いてください。"]
[null,2,"※印のある欄は記入しないでください。"]
[null,3,"当機関の交付した確認書又は住宅性能評価書を用いずに認定申請を行った住宅の場合は"]
[null,null,"当機関へ予めご相談ください。"]

{"sheet":"確認書","index":13,"n_rows":45,"n_cols":34,"rows_kept":45,"cut":false,"hidden":true,"merged":[[47,13,47,29],[30,23,30,29],[30,21,30,22],[30,15,30,20],[23,15,25,29],[38,24,38,27],[40,1,40,17],[40,21,40,29],[28,25,28,26],[42,1,42,6],[43,2,43,20],[44,4,44,7],[44,10,44,13],[44,16,44,19],[37,24,37,27],[37,2,37,20],[16,1,18,29],[28,1,28,13],[28,19,28,20],[29,19,29,21],[36,1,36,13],[26,15,26,29],[20,0,20,30],[36,24,36,27],[23,1,23,13],[32,1,32,5],[32,21,32,29],[34,1,34,11],[34,21,34,29],[7,20,7,22],[7,24,7,25],[7,27,7,28],[2,0,4,30],[6,21,6,28]]}
[null,"第十一号の四様式（第七条の四関係）"]
[]
["住宅の品質確保の促進等に関する法律第６条の２第３項の規定による\n長期使用構造等である旨の確認書\n（新築／増築・改築）"]
[]
[]
[]
[null,null,null,null,null,null,null,null,null,null,null,null,null,null,null,null,null,null,null,null,"第",{"$f":"#REF!","v":{"$error":"#REF!"}},null,null,null,null,null,null,null,"号"]
[null,null,null,null,null,null,null,null,null,null,null,null,null,null,null,null,null,null,null,null,{"$f":"#REF!","v":{"$error":"#REF!"}},null,null,"年",{"$f":"#REF!","v":{"$error":"#REF!"}},null,"月",{"$f":"#REF!","v":{"$error":"#REF!"}},null,"日"]
[]
[null,{"$f":"#REF!&\"　　\"&\"殿\"","v":{"$error":"#REF!"}},null,null,null,null,null,null,null,null,null,null,null,null,null,null,null,null,null,null,null,null,null,null,null,null,null,null,null,null,null,null,null,{"$f":"確認申請書!$V$16&\"　　\"&別紙!$L$7&\"　　　\"&\"殿\"","v":"　　　　　殿"}]
[null,null,null,null,null,null,null,null,null,null,null,null,null,null,null,null,null,null,null,null,null,null,null,null,null,null,null,null,null,null,null,null,null,{"$f":"#REF!&\"　　\"&\"殿\"","v":{"$error":"#REF!"}}]
[]
[null,null,null,null,null,null,null,null,null,null,null,null,null,null,null,null,null,null,null,null,null,null,null,null,null,"株式会社　ハウスジーメン"]
[null,null,null,null,null,null,null,null,null,null,null,null,null,null,null,null,null,null,null,null,null,null,null,null,null,"東京都港区西新橋三丁目7番1号"]
[null,null,null,null,null,null,null,null,null,null,null,null,null,null,null,null,null,null,null,null,null,null,null,null,null,"ランディック第2新橋ビル"]
[]
[null,"　別添の確認申請書に記載の住宅の構造及び設備については、長期優良住宅の普及の促進に関する法律（平成20年法律第87号）第２条第４項に規定する長期使用構造等であることを確認しました。"]
[]
[]
[]
["記"]
[]
[]
[null,"１. 確認を行った住宅の所在地及び名称",null,null,null,null,null,null,null,null,null,null,null,null,null,{"$f":"#REF!","v":{"$error":"#REF!"}}]
[]
[]
[null,null,null,null,null,null,null,null,null,null,null,null,null,null,null,{"$f":"#REF!","v":{"$error":"#REF!"}}]
[]
[null,"２. 確認を行った住宅の階数、延べ面積及び構造",null,null,null,null,null,null,null,null,null,null,null,null,null,"階数：地上",null,null,null,{"$f":"#REF!","v":{"$error":"#REF!"}},null,"階",null,"地下：",null,{"$f":"#REF!","v":{"$error":"#REF!"}},null,"階"]
[null,null,null,null,null,null,null,null,null,null,null,null,null,null,null,"延べ面積：",null,null,null,{"$f":"#REF!","v":{"$error":"#REF!"}},null,null,"㎡"]
[null,null,null,null,null,null,null,null,null,null,null,null,"　",null,null,{"$f":"#REF!","v":{"$error":"#REF!"}},null,null,null,null,null,null,null,{"$f":"#REF!","v":{"$error":"#REF!"}}]
[]
[null,"３. 工事種別",null,null,null,null,null,null,null,null,null,null,null,null,null,null,null,null,null,null,null,"新築"]
[]
[null,"４. 確認を行った評価員の氏名",null,null,null,null,null,null,null,null,null,null,null,null,null,null,null,null,null,null,null,{"$f":"#REF!","v":{"$error":"#REF!"}}]
[]
[null,"５. 確認対象住戸及び当該住戸の床面積",null,null,null,null,null,null,null,null,null,null,null,null,null,null,null,null,null,null,null,null,{"$f":"#REF!","v":{"$error":"#REF!"}},"階",{"$f":"#REF!","v":{"$error":"#REF!"}},null,null,null,"㎡"]
[null,null,"（当該住戸が複数の階にわたる場合はそれぞれの階における床面積）",null,null,null,null,null,null,null,null,null,null,null,null,null,null,null,null,null,null,null,{"$f":"IF(#REF!=0,\"\",#REF!)","v":{"$error":"#REF!"}},"階",{"$f":"IF(#REF!=0,\"\",#REF!)","v":{"$error":"#REF!"}},null,null,null,"㎡"]
[null,null,null,null,null,null,null,null,null,null,null,null,null,null,null,null,null,null,null,null,null,null,{"$f":"IF(#REF!=0,\"\",#REF!)","v":{"$error":"#REF!"}},"階",{"$f":"IF(#REF!=0,\"\",#REF!)","v":{"$error":"#REF!"}},null,null,null,"㎡"]
[]
[null,"６. 申請対象住戸のうち、上記確認対象住戸に該当しない住戸",null,null,null,null,null,null,null,null,null,null,null,null,null,null,null,null,null,null,null,"無し"]
[]
[null,"　　特記事項"]
[null,null,"　免震建築物、耐震等級２又は耐震等級３に適合する場合"]
[null,null,null,{"$f":"_xlfn.IFS(#REF!=\"■\",\"■\",TRUE,\"□\")","v":{"$error":"#REF!"}},"免震建築物",null,null,null,null,{"$f":"_xlfn.IFS(#REF!=\"■\",\"■\",TRUE,\"□\")","v":{"$error":"#REF!"}},"耐震等級２",null,null,null,null,{"$f":"_xlfn.IFS(#REF!=\"■\",\"■\",TRUE,\"□\")","v":{"$error":"#REF!"}},"耐震等級３"]

{"sheet":"確認書 (変更)","index":14,"n_rows":45,"n_cols":30,"rows_kept":45,"cut":false,"hidden":true,"merged":[[47,13,47,29],[38,24,38,27],[40,1,40,17],[40,21,40,29],[42,1,42,6],[43,2,43,20],[44,4,44,7],[44,10,44,13],[44,16,44,19],[34,1,34,11],[34,21,34,29],[36,1,36,13],[36,24,36,27],[37,2,37,20],[37,24,37,27],[29,19,29,21],[30,15,30,20],[30,21,30,22],[30,23,30,29],[32,1,32,5],[32,21,32,29],[28,1,28,13],[28,19,28,20],[28,25,28,26],[26,15,26,29],[2,0,4,30],[16,1,18,29],[20,0,20,30],[23,1,23,13],[23,15,25,29],[6,21,6,28],[7,20,7,22],[7,24,7,25],[7,27,7,28]]}
[null,"第十一号の四様式（第七条の四関係）"]
[]
["住宅の品質確保の促進等に関する法律第６条の２第３項の規定による\n長期使用構造等である旨の確認書（変更）\n（新築／増築・改築）"]
[]
[]
[]
[null,null,null,null,null,null,null,null,null,null,null,null,null,null,null,null,null,null,null,null,"第",{"$f":"#REF!","v":{"$error":"#REF!"}},null,null,null,null,null,null,null,"号"]
[null,null,null,null,null,null,null,null,null,null,null,null,null,null,null,null,null,null,null,null,{"$f":"#REF!","v":{"$error":"#REF!"}},null,null,"年",{"$f":"#REF!","v":{"$error":"#REF!"}},null,"月",{"$f":"#REF!","v":{"$error":"#REF!"}},null,"日"]
[]
[null,{"$f":"#REF!&\"　　\"&\"殿\"","v":{"$error":"#REF!"}}]
[]
[]
[null,null,null,null,null,null,null,null,null,null,null,null,null,null,null,null,null,null,null,null,null,null,null,null,null,"株式会社　ハウスジーメン"]
[null,null,null,null,null,null,null,null,null,null,null,null,null,null,null,null,null,null,null,null,null,null,null,null,null,"東京都港区西新橋三丁目7番1号"]
[null,null,null,null,null,null,null,null,null,null,null,null,null,null,null,null,null,null,null,null,null,null,null,null,null,"ランディック第2新橋ビル"]
[]
[null,"　別添の確認申請書に記載の住宅の構造及び設備については、長期優良住宅の普及の促進に関する法律（平成20年法律第87号）第２条第４項に規定する長期使用構造等であることを確認しました。"]
[]
[]
[]
["記"]
[]
[]
[null,"１. 確認を行った住宅の所在地及び名称",null,null,null,null,null,null,null,null,null,null,null,null,null,{"$f":"#REF!","v":{"$error":"#REF!"}}]
[]
[]
[null,null,null,null,null,null,null,null,null,null,null,null,null,null,null,{"$f":"#REF!","v":{"$error":"#REF!"}}]
[]
[null,"２. 確認を行った住宅の階数、延べ面積及び構造",null,null,null,null,null,null,null,null,null,null,null,null,null,"階数：地上",null,null,null,{"$f":"#REF!","v":{"$error":"#REF!"}},null,"階",null,"地下：",null,{"$f":"#REF!","v":{"$error":"#REF!"}},null,"階"]
[null,null,null,null,null,null,null,null,null,null,null,null,null,null,null,"延べ面積：",null,null,null,{"$f":"#REF!","v":{"$error":"#REF!"}},null,null,"㎡"]
[null,null,null,null,null,null,null,null,null,null,null,null,"　",null,null,{"$f":"#REF!","v":{"$error":"#REF!"}},null,null,null,null,null,null,null,{"$f":"#REF!","v":{"$error":"#REF!"}}]
[]
[null,"３. 工事種別",null,null,null,null,null,null,null,null,null,null,null,null,null,null,null,null,null,null,null,"新築"]
[]
[null,"４. 確認を行った評価員の氏名",null,null,null,null,null,null,null,null,null,null,null,null,null,null,null,null,null,null,null,{"$f":"#REF!","v":{"$error":"#REF!"}}]
[]
[null,"５. 確認対象住戸及び当該住戸の床面積",null,null,null,null,null,null,null,null,null,null,null,null,null,null,null,null,null,null,null,null,{"$f":"#REF!","v":{"$error":"#REF!"}},"階",{"$f":"#REF!","v":{"$error":"#REF!"}},null,null,null,"㎡"]
[null,null,"（当該住戸が複数の階にわたる場合はそれぞれの階における床面積）",null,null,null,null,null,null,null,null,null,null,null,null,null,null,null,null,null,null,null,{"$f":"IF(#REF!=0,\"\",#REF!)","v":{"$error":"#REF!"}},"階",{"$f":"IF(#REF!=0,\"\",#REF!)","v":{"$error":"#REF!"}},null,null,null,"㎡"]
[null,null,null,null,null,null,null,null,null,null,null,null,null,null,null,null,null,null,null,null,null,null,{"$f":"IF(#REF!=0,\"\",#REF!)","v":{"$error":"#REF!"}},"階",{"$f":"IF(#REF!=0,\"\",#REF!)","v":{"$error":"#REF!"}},null,null,null,"㎡"]
[]
[null,"６. 申請対象住戸のうち、上記確認対象住戸に該当しない住戸",null,null,null,null,null,null,null,null,null,null,null,null,null,null,null,null,null,null,null,"無し"]
[]
[null,"　　特記事項"]
[null,null,"　免震建築物、耐震等級２又は耐震等級３に適合する場合"]
[null,null,null,{"$f":"_xlfn.IFS(#REF!=\"■\",\"■\",TRUE,\"□\")","v":{"$error":"#REF!"}},"免震建築物",null,null,null,null,{"$f":"_xlfn.IFS(#REF!=\"■\",\"■\",TRUE,\"□\")","v":{"$error":"#REF!"}},"耐震等級２",null,null,null,null,{"$f":"_xlfn.IFS(#REF!=\"■\",\"■\",TRUE,\"□\")","v":{"$error":"#REF!"}},"耐震等級３"]

{"sheet":"長期使用構造でない確認書","index":15,"n_rows":39,"n_cols":29,"rows_kept":39,"cut":false,"hidden":true,"merged":[[33,1,33,12],[35,1,35,12],[33,20,33,27],[35,20,35,27],[39,2,42,27],[17,1,19,28],[2,0,4,29],[7,19,7,21],[7,23,7,24],[7,26,7,27],[6,20,6,27],[22,0,22,29],[31,22,31,28],[25,1,25,13],[30,1,30,13],[30,19,30,20],[30,25,30,26],[25,15,27,28],[28,15,28,28],[31,20,31,21],[31,13,31,19]]}
[null,"第十一号の五様式（第七条の四条関係）"]
[]
["住宅の品質確保の促進等に関する法律第６条の２第３項の規定による\n長期使用構造等でない旨の確認書\n（新築／増築・改築）"]
[]
[]
[]
[null,null,null,null,null,null,null,null,null,null,null,null,null,null,null,null,null,null,null,"第",null,null,null,null,null,null,null,null,"号"]
[null,null,null,null,null,null,null,null,null,null,null,null,null,null,null,null,null,null,null,null,null,null,"年",null,null,"月",null,null,"日"]
[]
[null,{"$f":"#REF!&\"　　\"&\"殿\"","v":{"$error":"#REF!"}}]
[]
[]
[null,null,null,null,null,null,null,null,null,null,null,null,null,null,null,null,null,null,null,null,null,null,null,null,"株式会社　ハウスジーメン"]
[null,null,null,null,null,null,null,null,null,null,null,null,null,null,null,null,null,null,null,null,null,null,null,null,"東京都港区西新橋三丁目7番1号"]
[null,null,null,null,null,null,null,null,null,null,null,null,null,null,null,null,null,null,null,null,null,null,null,null,"ランディック第2新橋ビル"]
[]
[]
[null,"　別添の確認申請書に記載の住宅の構造及び設備については、下記の理由により長期優良住宅の普及の促進に関する法律（平成20年法律第87号）第２条第４項に規定する長期使用構造等でないことを確認しました。"]
[]
[]
[]
[]
["記"]
[]
[]
[null,"１. 確認を行った住宅の所在地及び名称",null,null,null,null,null,null,null,null,null,null,null,null,null,{"$f":"#REF!","v":{"$error":"#REF!"}}]
[]
[]
[null,null,null,null,null,null,null,null,null,null,null,null,null,null,null,{"$f":"#REF!","v":{"$error":"#REF!"}}]
[]
[null,"２. 確認を行った住宅の階数、延べ面積及び構造",null,null,null,null,null,null,null,null,null,null,null,null,null,"階数：地上",null,null,null,{"$f":"#REF!","v":{"$error":"#REF!"}},null,"階",null,"地下：",null,{"$f":"#REF!","v":{"$error":"#REF!"}},null,"階"]
[null,null,null,null,null,null,null,null,null,null,null,null,null,{"$f":"#REF!","v":{"$error":"#REF!"}},null,null,null,null,null,null,"一部",null,{"$f":"#REF!","v":{"$error":"#REF!"}}]
[]
[null,"３. 工事種別",null,null,null,null,null,null,null,null,null,null,null,null,null,null,null,null,null,null,"木造"]
[]
[null,"４. 確認を行った評価員の氏名",null,null,null,null,null,null,null,null,null,null,null,null,null,null,null,null,null,null,{"$f":"#REF!","v":{"$error":"#REF!"}}]
[]
[]
[null,"（理由）"]